Workbook

Sheet Licence agreement

Sheet Instructions English
B1: Instruction on how to use CTAP:
B3: Introduction:
B4: CTAP was designed to provide a good estimate of a community's residential building sector greenhouse gas (GHG) inventory with as simple as possible data entry requirements.
B5: Its target user base is made up of small and medium communities administrators who want to engage into the national GHG reduction initiative and who want to gain an understanding of the magnitude challenge in a timely and cost effective manner, and develop a road map for setting targets and achieving them.
B6: CTAP allows the user to quickly obtain a general idea of where their community stands in terms of GHG inventory:
C8: * for any given reference year (e.g. 2005, 2017, etc.) and
C9: * for the current year (e.g. 2024) and
C10: * and for any future scenario.
B12: A scenario is defined as a series of building interventions in the community's residential buildings stock.
B13: Building level interventions include: conversions of heating system (example: electrification), introduction of renewable energy generation (example: solar panels), and energy conservation measures (example: deep energy retrofit).
B15: The main objective of CTAP is to assist the local GHG reduction task force to quantify the type and level of penetration of building level interventions required to achieve a given percentage GHG reduction target. The percentage reduction of GHG is relative to that of the chosen reference year. An important section of the User Manual discusses the selection of the reference year and targets. CTAP also provides a very broad cost estimate for implementing any given scenario. Although the financial analysis is not applicable to any specific building, the overall order of magnitude of the investment required can be used in sourcing funds by associating a capital budget estimate to a given program its targeted results when applying for subsidies, incentives or other financing vehicles.
B21: First Phase of the Study: Select the CTAP version for your locality, and obtaining the GHG inventory for the reference year and for the current year:
B23: Customized CTAP version:
B24: From the 51 customized CTAP versions, the user selects the one for the city closest to his/her locality. This version of CTAP will be pre-populated with the data for the user's community. In Cell O14 of the "User Input Output" Tab, select French of English. Save a virgin copy and work on a duplicate. CTAP comes customized for a given region with the appropriate climate file, 11 default archetypes and their baseline annual hourly energy demand profiles (the 24 hours for 365 days, also called the "8760s" data points). The archetypes counts and existing heating systems in use are also pre-defined based on provincial averages contained in the latest census for dwelling counts and types, and the National Energy Usage Database. This is done for the current year, and for any past reference (or baseline) year, adjusting the data accordingly. *** Note that the data used is for a provincial average, applied to your city. Should better information be available that would be significantly different from the provincial average, the user can adjust the data as per the explanatory notes on the input screen.
B34: Reference year GHG inventory:
B35: 1) In Cell K18 on "User Input Output" Tab, select your City
B36: 2) After selecting the reference year (see section of the User Manual on this topic), enter it in Cell C17 of the "Scenarios Definition" Tab. In cell C18, the estimated number of buildings appears. If better data is available (example tax roll database), validate and correct that number by overriding the default in that same cell. Then, adjust the number of buildings in each of the 11 default archetypes presented in the first table in Cells B23 to B33. See explanatory notes in Cells A34, A35 and J34 as required.
B39: 3) The reference year run can now be executed. In the "User Input Output" Tab, select Scenario 1 in Cell L15. Then click on the macro button (beside "Step 2"). The macro beside "Step 3" will save the result matrix into the scenario comparison table. The macro beside "Step 4" saves you work up to that point.
B41: Current year GHG inventory:
B42: 1) In Cell T15 on "User Input Output" Tab, enter current year (example: 2024).
B43: 2) After entering the current year CTAP extrapolates from the latest census to get an estimated number of buildings which appears in Cell W15. If data is available (example tax roll database), validate and correct that number by overriding the formula in Cell W15. CTAP adjusts the number of buildings in the most recent archetype of the second table, in Cell B53. Adjust data as required, see explanatory note in Cell J54 as required.
B46: 3) CTAP also performs a very simple constant dollar estimation of the annual energy costs for the community's residential building stock, as a reference for the impact of future scenarios, excluding any inflationary impact. To obtain that value, the user can enter the energy unit costs in the "Financial" Tab in Rows 18 to 45. It includes electricity costs (fixed and time of Use (TOU)), natural gas, propane, oil, and wood.
B47: 4) The current year run can now be executed. In the "User Input Output" Tab, select Scenario 2 in Cell L15. Then click on the macro button (beside "Step 2"). The macro beside "Step 3" will save the result matrix into the scenario comparison table in the second column where it can be readily compared to the results for the reference year. The macro beside "Step 4" saves you work up to that point.
B49: Second Phase of the Study: develop and evaluate Scenarios for different milestones, until GHG reduction target reached
B51: 1) Prior to proceeding with this phase, the community's administrator should:
C52: * Identify a task force leader
C53: * Establish targets and millstones, between now and 2050 in terms of GHG reduction for any and as many interim years along the path to Net-Zero.
C54: * Identify and solicit the assistance of local stakeholders, technical resources and subject matter experts to build a local task force (See relevant section in the User Manual)
C56: * After several workshops and consultations, identify the best technologies for the local context, and even validate the default unit costs provided in the upper section of the "Financial" Tab
B58: 2) Defining the first future scenario:
C59: * Starting in the third table in the "Scenarios Definition" Tab, in Cell B62 and C62, enter the scenario's year and name. The name should start with the year, and contain a short form of the main components on the scenario in abbreviated form to keep it somewhat short, but still capturing the main attributes of the scenario.
C61: * The user must also estimate the number of dwellings that will be added between the current year and the year of the future scenario. This is done by increasing the number of dwellings in the most recent archetype(s) vintage. (2011-2020). Unless those new dwellings are demonstratively going to be built to NET-ZERO standard.
C62: * CTAP uses provincial averages for existing heating systems as a strating point. The user can have a glimpse at the progression since the reference year by comparing the heating system counts in Columns C to Column J betweeb the first and second table of the "Scenarios definition" Tab. If data or local knowledge exists and shows different circumstances, the user can overwrite those default counts.
C63: * enter the number of dwellings converting to different heating system technologies. It is assumed that the conversion will be on dwelling currently using fossil fuels, and CTAP will reduce the count of fossil fuel heating systems automatically as conversions are entered. The user can of course overwrite that assumption if, for example, a heat pump is introduced into a dwelling heated by baseboard.
C66: * Enter the number of new technologies (solar arrays, solar domestic hot water, thermal or electrical storage and their average capacities, etc..) in Cells K63 to Q73.
C67: * Enter the targets energy conservation measures (ECMs) in Cells S63 to W73. Note that these are target reductions. Consultation with a local energy adviser will be needed to define what actual conponents of a deep energy retrofit or other measures are required to achieve those targets for any given archetype.
C70: Once those choices are made, just like selecting items from a menu, the first "future scenario" run can be executed. In the "User Input Output" Tab, the user selects Scenario "3" ("Step 1"). then clicks the macro " Step 2" to calculate, and "Step 3" to save the result matrix in tje third column of the comparison table. At the bottom, the GHG % reduction from the reference year is shown. Shoudl the result not match the target for that year, the user can go back to the "Scenarios definition" Tab and add more interventions/items in Cells "B63 to W73" and run the scenario again, until the target is achieved.
B75: 3) Defining additional future scenarios:
C76: * Any additional scenario would normally be cummulative to the previous ones, that is it includes all of the interventions done previously, and then adds some more to achieve more GHG % reduction. Don't forget to adjust forecasted number of new dwellings to be added.
C79: * To save the user the tedious task of re-entering all of the interventions selected in previous scenarios, a macro button is provided to the right of the entry tables. The blue one copies the data from the previous table, and the orange one re-initializes the table to the setting of the current year (second table).
C82: * The next future scenario runs are executed in the same fashion in the "User Input Output" Tab.
B85: Composite Building Stocks approach
C86: When only a subset of buildings within an archetype is ear-tagged for ECMs (energy conservation measures) the group must be broken up in what becomes 2 archetypes; the original archetype and a second one with different properties as per the ECMs. Since the capacity of the software is 11 archetypes, we can create a second scenario for the additional modified archetype. If an archetype A with 10 buildings assigned to it will have only 3 of its buildings retrofitted, that scenario would included in "part 1" the 7 buildings of archetype A with no retrofit, and the other 10 archetypes counts remain the same. A "Part two scenario" would contain the 12th archetype - which is archetype A + retrofit identified - with a count of 3, All other counts are 0. The sum of the results matrices is for both parts, and can be copied into the next column of the comparison table ("Step 5" on the "User Input Output" Tab)
C150: A similar approach can be used to add future expansion of the building stocks. If the future buildings to be added are of different archetypes, for example, of more advanced standards such as those suggested in "Step Codes" building codes, they can be defined as custom archetypes. Separate CTAP files/runs can be used to establish the GHG contribution of the forecasted growth in building stock for the jurisdiction. Then, the resulting metrics can be added to the metrics of the current building stock metrics to obtain the overall GHG inventory for a given milestone in time, for example 2030.

Sheet Instructions Francais
B1: Instructions: comment utiliser OETC
B3: Introduction:
B4: L'OETC a été conçu pour fournir une bonne estimation de l'inventaire des gaz à effet de serre (GES) du secteur des bâtiments résidentiels d'une communauté avec des exigences de saisie de données aussi simples que possible.
B5: Sa base d'utilisateurs cibles est constituée d'administrateurs de petites et moyennes communautés qui souhaitent s'engager dans l'initiative nationale de réduction des GES et qui souhaitent comprendre le défi de manière opportune et rentable.
B6: L'OETC permet à l'utilisateur d'avoir rapidement une idée générale de la situation de sa communauté en termes d'inventaire de GES :
C8: * pour toute année de référence donnée (par exemple 2005, 2017, etc.) et
C9: * pour l'année en cours (par exemple 2024) et''
C10: * et pour tout scénario futur.
B12: Un scénario est défini comme une série d'interventions de construction dans le parc de bâtiments résidentiels de la communauté.
B13: Les interventions au niveau du bâtiment comprennent : les conversions du système de chauffage (exemple : électrification), l'introduction de la production d'énergie renouvelable (exemple : panneaux solaires) et des mesures d'économie d'énergie (exemple : rénovation énergétique en profondeur).
B15: L’objectif principal de l’OETC est d’aider le groupe de travail local sur la réduction des GES à quantifier le type et le niveau de pénétration des interventions au niveau du bâtiment nécessaires pour atteindre un objectif de réduction des GES en pourcentage donné. Le pourcentage de réduction des GES est proportionnel à celui de l'année de référence choisie. Une section importante du Manuel de l'utilisateur traite de la sélection de l'année de référence et des cibles. L'OETC fournit également une estimation approximative des coûts pour la mise en œuvre d'un scénario donné. Bien que l'analyse financière ne soit applicable à aucun bâtiment spécifique, l'ordre de grandeur global de l'investissement requis peut être utilisé pour trouver des fonds en associant une estimation du budget d'investissement à un programme donné et ses résultats ciblés lors de demandes de subventions, d'incitations ou d'autres véhicules de financement.
B21: Première phase de l'étude : Sélectionnez la version OETC pour votre localité, et obtention de l'inventaire GES pour l'année de référence et pour l'année en cours :
B23: Version OETC personnalisée :
B24: Parmi les 51 versions personnalisées de l'OETC, l'utilisateur sélectionne celle de la ville la plus proche de sa localité. Cette version de l'OETC sera pré-remplie avec les données de la communauté de l'utilisateur. Dans la cellule O14 de l'onglet « User Input Output », sélectionnez Français ou Anglais. Sauvegardez une copie OETC vierge et travaillez sur un duplicata. L'OETC est personnalisé pour une région donnée avec le fichier climatique approprié, 11 archétypes par défaut et leurs profils de demande d'énergie horaire annuels de base (les 24 heures pour 365 jours, également appelés points de données « 8760 »). Le nombre d'archétypes et les systèmes de chauffage existants utilisés sont également prédéfinis en fonction des moyennes provinciales contenues dans le dernier recensement pour le nombre et les types de logements, ainsi que de la base de données nationale sur la consommation d'énergie. Ceci est effectué pour l’année en cours et pour toute année de référence passée, en ajustant les données en conséquence. *** Notez que les données utilisées correspondent à une moyenne provinciale, appliquée à votre ville. Si de meilleures informations sont disponibles et seraient significativement différentes de la moyenne provinciale, l'utilisateur peut ajuster les données selon les notes explicatives sur l'écran de saisie.
B34: Inventaire des GES de l’année de référence :
B35: 1) Dans la cellule K18 de l'onglet "User Input Output", sélectionnez votre ville
B36: 2) Après avoir sélectionné l'année de référence (voir section du Manuel d'utilisation à ce sujet), saisissez-la dans la cellule C17 de l'onglet « Scenarios Définition ». Dans la cellule C18, le nombre estimé de bâtiments apparaît. Si de meilleures données sont disponibles (exemple de base de données du rôle d'impôt foncier), validez et corrigez ce numéro en remplaçant la valeur fournie par défaut dans cette même cellule. Ensuite, ajustez le nombre de bâtiments dans chacun des 11 archétypes par défaut présentés dans le premier tableau des cellules B23 à B33. Voir les notes explicatives dans les cellules A34, A35 et J34, au besoin.
B39: 3) Les calculs pour l'année écoulée peuvent maintenant être exécutés. Dans l'onglet « User Input Output », sélectionnez le scénario 1 dans la cellule L15. Cliquez ensuite sur le bouton macro (à côté de « Pas 2 »). La macro à côté de « Pas 3 » enregistrera la matrice de résultats dans le tableau de comparaison des scénarios. La macro à côté de « Pas 4 » sauvegarde votre travail jusqu'à ce point.
B41: Inventaire des GES de l’année en cours :
B42: 1) Dans la cellule T15 de l'onglet « User Input Output », entrez l'année en cours (exemple : 2024).
B43: 2) After entering the current year OETC extrapolates from the latest census to get an estimated number of buildings which appears in Cell W15. If data is available (example tax roll database), validate and correct that number by overriding the formula in Cell W15. OETC adjusts the number of buildings in the most recent archetype of the second table, in Cell B53. Adjust data as required, see explanatory note in Cell J54 as required.
B46: 3) L'OETC effectue également une estimation très simple, en dollars constants, des coûts énergétiques annuels du parc de bâtiments résidentiels de la communauté, comme référence pour l'impact des scénarios futurs, excluant tout impact inflationniste. Pour obtenir cette valeur, l'utilisateur peut saisir les coûts unitaires d'énergie dans l'onglet « Financial » des lignes 18 à 45. Ils comprennent les coûts d'électricité (fixes et horaires d'utilisation (TOU)), le gaz naturel, le propane, le mazout et le bois.
B47: 4) Les calculs pour l'année en cours peuvent maintenant être exécutés. Dans l'onglet « User Input Output », sélectionnez le scénario 2 dans la cellule L15. Cliquez ensuite sur le bouton macro (à côté de « Pas 2 »). La macro à côté de « Pas 3 » enregistrera la matrice des résultats dans le tableau de comparaison des scénarios dans la deuxième colonne où elle pourra être facilement comparée aux résultats de l'année de référence. La macro à côté de « Pas 4 » sauvegarde votre travail jusqu'à ce point.
B49: Deuxième phase de l'étude : élaborer et évaluer des scénarios pour différentes étapes, jusqu'à ce que l'objectif de réduction des GES soit atteint:
B51: 1) Avant de procéder à cette phase, l'administrateur de la communauté est encouragé de :
C52: * Identifier un chef de groupe de travail
C53: * Établir des objectifs et des jalons, d'ici 2050, en termes de réduction des GES pour toutes les années intermédiaires sur la voie du zéro émission nette (NET ZERO).
C54: * Identifier et solliciter l'aide des parties prenantes locales, des ressources techniques et des experts en la matière pour constituer un groupe de travail local (voir la section pertinente dans le manuel de l'utilisateur)
C56: * Après plusieurs ateliers et consultations, identifier les meilleures technologies pour le contexte local, et même valider les coûts unitaires par défaut fournis dans la partie supérieure de l'onglet « Financial »
B58: 2) Définir le premier scénario futur :
C59: * Dans le troisième tableau de l'onglet « Scénarios definition », dans les cellules B62 et C62, saisissez l'année et le nom du scénario. Le nom doit commencer par l'année et contenir une forme abrégée des principaux composants du scénario pour le garder le nom du scénario court, tout en capturant les principaux attributs du scénario.
C61: * L'utilisateur doit également estimer le nombre de logements qui seront ajoutés entre l'année en cours et l'année du scénario futur. Cela se fait en augmentant le nombre d'habitations dans le(s) millésime(s) d'archétype(s) le plus récent. (2011-2020). À moins que ces nouveaux logements soient manifestement construits selon la norme NET-ZERO.
C63: * Entrez le nombre de logements convertis à différentes technologies de système de chauffage. On suppose que la conversion portera sur les logements utilisant actuellement des combustibles fossiles, et l'OETC réduira automatiquement le nombre de systèmes de chauffage à combustibles fossiles au fur et à mesure que les conversions seront saisies. L'utilisateur peut bien entendu modifier cette hypothèse si, par exemple, une pompe à chaleur est introduite dans une habitation chauffée par des plinthes électriques.
C66: * Inscrivez le nombre de nouvelles technologies (panneaux solaires, chauffe-eau solaire domestique, stockage thermique ou électrique et leurs capacités moyennes, etc.) dans les cellules K63 à Q73.
C67: * Entrez les mesures d'économie d'énergie (ECM) cibles dans les cellules S63 à W73. Notez qu’il s’agit de réductions cibles. Une consultation avec un conseiller local en matière d'énergie sera nécessaire pour définir les éléments réels d'une rénovation énergétique approfondie ou d'autres mesures nécessaires pour atteindre ces objectifs pour un archétype donné.
C70: Une fois ces choix effectués, tout comme la sélection d'éléments dans un menu, la première exécution du « scénario futur » peut être exécutée. Dans l'onglet « User Input Output », l'utilisateur sélectionne le scénario « 3 » (« Pas 1 »). clique ensuite sur la macro "Pas 2" pour calculer, et " Pas 3" pour enregistrer la matrice de résultat dans la troisième colonne du tableau de comparaison. En bas, le pourcentage de réduction des GES par rapport à l’année de référence est indiqué. Si le résultat ne correspond pas à l'objectif pour cette année, l'utilisateur peut revenir à l'onglet « Scenarios Définition » et ajouter d'autres interventions/éléments dans les cellules « B63 à W73 » et exécuter à nouveau le scénario jusqu'à ce que l'objectif soit atteint.
B75: 3) Définir des scénarios futurs supplémentaires :
C76: * Tout scénario supplémentaire serait normalement cumulatif aux précédents, c'est-à-dire qu'il inclut toutes les interventions effectuées précédemment, puis en ajoute d'autres pour obtenir un pourcentage de réduction des GES plus important. N'oubliez pas d'ajuster le nombre prévu de nouveaux logements à ajouter d'ici l'année du scénario futur.
C79: * Pour éviter à l'utilisateur la tâche fastidieuse de ressaisir toutes les interventions sélectionnées dans les scénarios précédents, un bouton macro est prévu à droite des tableaux de saisie. Le bleu copie les données du tableau précédent, et l'orange réinitialise le tableau au réglage de l'année en cours (deuxième tableau).
C82: * Les prochaines exécutions de scénarios futurs sont exécutées de la même manière dans l'onglet « User Input Output ».
B86: Approche du parc immobilier "composé"
C89: Lorsque seul un sous-ensemble de bâtiments au sein d'un archétype est identifié pour les ECM (mesures d'économie d'énergie), le groupe doit être divisé en ce qui devient 2 archétypes ; l'archétype original et un second avec des propriétés différentes selon les ECM. Puisque la capacité du logiciel est de 11 archétypes, nous pouvons créer un deuxième scénario pour l'archétype modifié supplémentaire. Si un archétype A avec 10 bâtiments qui lui sont attribués verra seulement 3 de ses bâtiments modernisés, ce scénario inclura dans la « partie 1 » les 7 bâtiments de l'archétype A sans rénovation, et les 10 autres archétypes resteront les mêmes. Un "scénario de la deuxième partie" contiendrait le 12ème archétype - qui est l'archétype A + rénovation identifié - avec un compte de 3, tous les autres comptes sont 0. La somme des matrices de résultats concerne les deux parties et peut être copiée dans la suivante. colonne du tableau de comparaison (" Pas 5 " sur l'onglet " User Input Output ")
D117: Une approche similaire peut être utilisée pour ajouter une expansion future du parc immobilier. Si les futurs bâtiments à ajouter sont d'archétypes différents, par exemple de normes plus avancées telles que celles suggérées dans les codes du bâtiment « Step Codes », ils peuvent être définis comme des archétypes personnalisés. Des fichiers/analyses CTAP distincts peuvent être utilisés pour établir la contribution aux GES de la croissance prévue du parc immobilier pour la juridiction. Ensuite, les mesures résultantes peuvent être ajoutées aux mesures du parc immobilier actuel pour obtenir l’inventaire global des GES pour une étape donnée dans le temps, par exemple 2030.
C153: A similar approach can be used to add future expansion of the building stocks. If the future buildings to be added are of different archetypes, for example, of more advanced standards such as those suggested in "Step Codes" building codes, they can be defined as custom archetypes. Separate OETC files/runs can be used to establish the GHG contribution of the forecasted growth in building stock for the jurisdiction. Then, the resulting metrics can be added to the metrics of the current building stock metrics to obtain the overall GHG inventory for a given milestone in time, for example 2030.

Sheet User Input Output
A1: Current Scenario INPUTS (imported from "Tab Scenarios definition" by selecting Scenario in Cell L15. | Y1: Order of magnitude Unit Costs for GHG Reduction Measures | AV1: Order of magnitude costs of measures for entire inventory | AZ1: Note: cost calculations apply to intervention post-current year
A2: Archetype | B2: Total Number (INPUT) | C2: #StatusQuo_ElecHeat (INPUT) | D2: #StatusQuo_FuelHeat (INPUT) | E2: Fuel Efficiency | F2: #StatusQuo_Wood/ BiomassHeat (INPUT) | G2: #ASHP_HeatCool (INPUT) | H2: #GSHP_HeatCool (INPUT) | I2: GSHP Size (kW) per dwelling | J2: GSHP Gas or Elec Aux. | K2: SDHW (INPUT) | L2: PV #(INPUT) | M2: PV kWdc/dweling (INPUT) | N2: Total # Battery (INPUT) | O2: # Thermal Storage (INPUT) | P2: Heating Load % Reduction | Q2: Cooling Load % Reduction | R2: DHW % Reduction | S2: Lighting Load % Reduction | T2: Plug Load % Reduction | U2: INFO: Peak Heat per Dwelling (kW) | V2: INFO: Peak Cool per Dwelling (kW) | Y2: Average area per building (ft²) | Z2: # of Buildings | AA2: Peak heat load post measures (tons/ building) | AB2: Post measures Peak cooling load (tons/ building) | AC2: Battery bank capacity (kWhrs) | AD2: Thermal storage capacity (kWhrs) | AE2: ASHP (intercept equipment) ( $/unit) | AF2: ASHP ($/ton) | AG2: AS/GS HP (ductwork upgrade average allowance) ($/ft2) | AH2: AS/GS HP (electrical service upgrade avg allowance) ($/unit) | AI2: GSHP (intercept equipment) ($/unit) | AJ2: GSHP ($/ton) | AK2: SDHW ($/each) | AL2: DHW HP ($/each) | AM2: PV ($/kWp) | AN2: indirect cost PV installation ($/building) | AO2: Battery ($/kWhr) | AP2: # Thermal Storage ($/kWhr) | AQ2: Heating Load % Reduction ($/ft2/%) | AR2: Cooling Load % Reduction ($/ft2/%) | AS2: DHW % Reduction avg allowance ($/dweling/%) | AT2: Plug Load reduction ($/dwelling/%) | AU2: Lighting Load % Reduction ($/ft2/%) | AW2: ASHP Cost | AX2: GSHP Cost | AY2: =K2 -> SDHW (INPUT) | AZ2: =L2 -> PV #(INPUT) | BA2: Battery Cost | BB2: Thermal Storage | BC2: Heating Load Reduction | BD2: Cooling Load Reduction | BE2: DHW Reduction | BF2: Plug Load reduction | BG2: Lighting Load Reduction | BH2: total
A3: ='Scenarios definition'!A3 -> Before 1946 All dwellings , Single Detached, Single Attached, Apart., Mob. H. | B3: ='Scenarios definition'!B3 -> 127 | C3: ='Scenarios definition'!C3 -> 73 | D3: ='Scenarios definition'!D3 -> 24 | E3: ='Scenarios definition'!E3 -> 0.81 | F3: ='Scenarios definition'!F3 -> 28 | G3: ='Scenarios definition'!G3 -> 2 | H3: ='Scenarios definition'!H3 -> 0 | I3: ='Scenarios definition'!I3 -> 28.9555 | J3: ='Scenarios definition'!J3 -> Fossil fuel | K3: ='Scenarios definition'!K3 -> 0 | L3: ='Scenarios definition'!L3 -> 0 | M3: ='Scenarios definition'!M3 -> 0 | N3: ='Scenarios definition'!N3 -> 0 | O3: ='Scenarios definition'!O3 -> 0 | P3: ='Scenarios definition'!P3 -> 0 | Q3: ='Scenarios definition'!Q3 -> 0 | R3: ='Scenarios definition'!R3 -> 0 | S3: ='Scenarios definition'!S3 -> 0 | T3: ='Scenarios definition'!T3 -> 0 | U3: =MAIN!Z2 -> 15.74991049 | V3: =MAIN!AA2 -> 0 | Y3: =CONVERT(MAIN!C2,"m2","ft2") -> 2182.921033 | Z3: =B3 -> 127 | AA3: =U3*0.284345 -> 4.478408299 | AB3: =V3*0.284345 -> 0 | AC3: ='Scenarios definition'!AC3 -> 13.5 | AD3: ='Scenarios definition'!AD3 -> 240 | AE3: =Financial!H6 -> 1500 | AF3: =Financial!I6 -> 1200 | AG3: =Financial!J6 -> 1.5 | AH3: =Financial!K6 -> 5000 | AI3: =Financial!L6 -> 5000 | AJ3: =Financial!M6 -> 5000 | AK3: =Financial!N6 -> 2500 | AL3: =Financial!O6 -> 4000 | AM3: =Financial!P6 -> 2200 | AN3: =Financial!Q6 -> 2000 | AO3: =Financial!R6 -> 800 | AP3: =Financial!S6 -> 200 | AQ3: =Financial!T6 -> 1 | AR3: =Financial!U6 -> 0 | AS3: =Financial!V6 -> 30.3030303 | AT3: =Financial!W6 -> 280 | AU3: =Financial!X6 -> 0.005925925926 | AW3: =((AE3+MAX(AA3,AB3)*AF3+AG3*Y3+AH3))*MAX(0,G3-'Scenarios definition'!$G43) -> 0 | AX3: =(AI3+IF(I3=0,MAX(AA3,AB3),I3)*AJ3+AG3*Y3+AH3)*MAX(0,H3-'Scenarios definition'!$H43) -> 0 | AY3: =AK3*MAX(0,K3-'Scenarios definition'!$K43) -> 0 | AZ3: =AN3*L3+(M3*AM3)*L3 -> 0 | BA3: =AO3*AC3*N3 -> 0 | BB3: =AP3*AD3*O3 -> 0 | BC3: =AQ3*Y3*B3*P3*100 -> 0 | BD3: =AR3*Y3*B3*Q3*100 -> 0 | BE3: =AS3*B3*R3*100 -> 0 | BF3: =AT3*B3*T3*100 -> 0 | BG3: =AU3*B3*S3*Y3 -> 0 | BH3: =SUM(AW3:BG3)-MIN(BC3:BD3) -> 0
A4: ='Scenarios definition'!A4 -> 1946-1977 Large , Single Detached | B4: ='Scenarios definition'!B4 -> 57 | C4: ='Scenarios definition'!C4 -> 32 | D4: ='Scenarios definition'!D4 -> 12 | E4: ='Scenarios definition'!E4 -> 0.81 | F4: ='Scenarios definition'!F4 -> 12 | G4: ='Scenarios definition'!G4 -> 1 | H4: ='Scenarios definition'!H4 -> 0 | I4: ='Scenarios definition'!I4 -> 24.1785 | J4: ='Scenarios definition'!J4 -> Fossil fuel | K4: ='Scenarios definition'!K4 -> 0 | L4: ='Scenarios definition'!L4 -> 0 | M4: ='Scenarios definition'!M4 -> 0 | N4: ='Scenarios definition'!N4 -> 0 | O4: ='Scenarios definition'!O4 -> 0 | P4: ='Scenarios definition'!P4 -> 0 | Q4: ='Scenarios definition'!Q4 -> 0 | R4: ='Scenarios definition'!R4 -> 0 | S4: ='Scenarios definition'!S4 -> 0 | T4: ='Scenarios definition'!T4 -> 0 | U4: =MAIN!Z3 -> 20.80270392 | V4: =MAIN!AA3 -> 3.76510019 | Y4: =CONVERT(MAIN!C3,"m2","ft2") -> 6110.671944 | Z4: 57 | AA4: 5.915144846 | AB4: =V4*0.284345 -> 1.070587413 | AC4: ='Scenarios definition'!AC4 -> 13.5 | AD4: ='Scenarios definition'!AD4 -> 240 | AE4: =Financial!H7 -> 1500 | AF4: =Financial!I7 -> 1200 | AG4: =Financial!J7 -> 1 | AH4: =Financial!K7 -> 3000 | AI4: =Financial!L7 -> 5000 | AJ4: =Financial!M7 -> 5000 | AK4: =Financial!N7 -> 2500 | AL4: =Financial!O7 -> 4000 | AM4: =Financial!P7 -> 2200 | AN4: =Financial!Q7 -> 2000 | AO4: =Financial!R7 -> 800 | AP4: =Financial!S7 -> 100 | AQ4: =Financial!T7 -> 1 | AR4: =Financial!U7 -> 0 | AS4: =Financial!V7 -> 30.3030303 | AT4: =Financial!W7 -> 280 | AU4: =Financial!X7 -> 0.005925925926 | AW4: =((AE4+MAX(AA4,AB4)*AF4+AG4*Y4+AH4))*MAX(0,G4-'Scenarios definition'!$G44) -> 0 | AX4: =(AI4+IF(I4=0,MAX(AA4,AB4),I4)*AJ4+AG4*Y4+AH4)*MAX(0,H4-'Scenarios definition'!$H44) -> 0 | AY4: =AK4*MAX(0,K4-'Scenarios definition'!$K44) -> 0 | AZ4: =AN4*L4+(M4*AM4)*L4 -> 0 | BA4: =AO4*AC4*N4 -> 0 | BB4: =AP4*AD4*O4 -> 0 | BC4: =AQ4*Y4*B4*P4*100 -> 0 | BD4: =AR4*Y4*B4*Q4*100 -> 0 | BE4: =AS4*B4*R4*100 -> 0 | BF4: =AT4*B4*T4*100 -> 0 | BG4: =AU4*B4*S4*Y4 -> 0 | BH4: =SUM(AW4:BG4)-MIN(BC4:BD4) -> 0
A5: ='Scenarios definition'!A5 -> 1946-1977 , Single Detached, Single Detached, Apart., Mob. H. | B5: ='Scenarios definition'!B5 -> 140 | C5: ='Scenarios definition'!C5 -> 80 | D5: ='Scenarios definition'!D5 -> 4 | E5: ='Scenarios definition'!E5 -> 0.81 | F5: ='Scenarios definition'!F5 -> 31 | G5: ='Scenarios definition'!G5 -> 25 | H5: ='Scenarios definition'!H5 -> 0 | I5: ='Scenarios definition'!I5 -> 15.7799 | J5: ='Scenarios definition'!J5 -> Fossil fuel | K5: ='Scenarios definition'!K5 -> 0 | L5: ='Scenarios definition'!L5 -> 0 | M5: ='Scenarios definition'!M5 -> 0 | N5: ='Scenarios definition'!N5 -> 0 | O5: ='Scenarios definition'!O5 -> 0 | P5: ='Scenarios definition'!P5 -> 0 | Q5: ='Scenarios definition'!Q5 -> 0.25 | R5: ='Scenarios definition'!R5 -> 0 | S5: ='Scenarios definition'!S5 -> 0 | T5: ='Scenarios definition'!T5 -> 0 | U5: =MAIN!Z4 -> 14.62903382 | V5: =MAIN!AA4 -> 0 | Y5: =CONVERT(MAIN!C4,"m2","ft2") -> 2045.142979 | Z5: 140 | AA5: 4.159692622 | AB5: =V5*0.284345 -> 0 | AC5: ='Scenarios definition'!AC5 -> 13.5 | AD5: ='Scenarios definition'!AD5 -> 240 | AE5: =Financial!H8 -> 1500 | AF5: =Financial!I8 -> 1200 | AG5: =Financial!J8 -> 0.5 | AH5: =Financial!K8 -> 3000 | AI5: =Financial!L8 -> 5000 | AJ5: =Financial!M8 -> 5000 | AK5: =Financial!N8 -> 2500 | AL5: =Financial!O8 -> 4000 | AM5: =Financial!P8 -> 2200 | AN5: =Financial!Q8 -> 2000 | AO5: =Financial!R8 -> 800 | AP5: =Financial!S8 -> 100 | AQ5: =Financial!T8 -> 1 | AR5: =Financial!U8 -> 0 | AS5: =Financial!V8 -> 30.3030303 | AT5: =Financial!W8 -> 280 | AU5: =Financial!X8 -> 0.005925925926 | AW5: =((AE5+MAX(AA5,AB5)*AF5+AG5*Y5+AH5))*MAX(0,G5-'Scenarios definition'!$G45) -> 0 | AX5: =(AI5+IF(I5=0,MAX(AA5,AB5),I5)*AJ5+AG5*Y5+AH5)*MAX(0,H5-'Scenarios definition'!$H45) -> 0 | AY5: =AK5*MAX(0,K5-'Scenarios definition'!$K45) -> 0 | AZ5: 0 | BA5: 0 | BB5: 0 | BC5: 0 | BD5: 0 | BE5: 0 | BF5: 0 | BG5: 0 | BH5: 0
A6: ='Scenarios definition'!A6 -> 1978-1995 Small , Apart., Mob. H. | B6: ='Scenarios definition'!B6 -> 87 | C6: ='Scenarios definition'!C6 -> 50 | D6: ='Scenarios definition'!D6 -> 3 | E6: ='Scenarios definition'!E6 -> 0.81 | F6: ='Scenarios definition'!F6 -> 19 | G6: ='Scenarios definition'!G6 -> 15 | H6: ='Scenarios definition'!H6 -> 0 | I6: ='Scenarios definition'!I6 -> 9.0708 | J6: ='Scenarios definition'!J6 -> Fossil fuel | K6: ='Scenarios definition'!K6 -> 0 | L6: ='Scenarios definition'!L6 -> 0 | M6: ='Scenarios definition'!M6 -> 0 | N6: ='Scenarios definition'!N6 -> 0 | O6: ='Scenarios definition'!O6 -> 0 | P6: ='Scenarios definition'!P6 -> 0 | Q6: ='Scenarios definition'!Q6 -> 0.25 | R6: ='Scenarios definition'!R6 -> 0 | S6: ='Scenarios definition'!S6 -> 0 | T6: ='Scenarios definition'!T6 -> 0 | U6: =MAIN!Z5 -> 7.881289911 | V6: =MAIN!AA5 -> 0 | Y6: =CONVERT(MAIN!C5,"m2","ft2") -> 581.2511625 | Z6: 87 | AA6: 2.24100538 | AB6: 0 | AC6: ='Scenarios definition'!AC6 -> 13.5 | AD6: ='Scenarios definition'!AD6 -> 240 | AE6: =Financial!H9 -> 1500 | AF6: =Financial!I9 -> 1200 | AG6: =Financial!J9 -> 2 | AH6: =Financial!K9 -> 3000 | AI6: =Financial!L9 -> 5000 | AJ6: =Financial!M9 -> 5000 | AK6: =Financial!N9 -> 3500 | AL6: =Financial!O9 -> 4000 | AM6: =Financial!P9 -> 2200 | AN6: =Financial!Q9 -> 2000 | AO6: =Financial!R9 -> 800 | AP6: =Financial!S9 -> 100 | AQ6: =Financial!T9 -> 0.8 | AR6: =Financial!U9 -> 0 | AS6: =Financial!V9 -> 30.3030303 | AT6: =Financial!W9 -> 280 | AU6: =Financial!X9 -> 0.005925925926 | AW6: =((AE6+MAX(AA6,AB6)*AF6+AG6*Y6+AH6))*MAX(0,G6-'Scenarios definition'!$G46) -> 0 | AX6: =(AI6+IF(I6=0,MAX(AA6,AB6),I6)*AJ6+AG6*Y6+AH6)*MAX(0,H6-'Scenarios definition'!$H46) -> 0 | AY6: =AK6*MAX(0,K6-'Scenarios definition'!$K46) -> 0 | AZ6: 0 | BA6: 0 | BB6: 0 | BC6: 0 | BD6: 0 | BE6: 0 | BF6: 0 | BG6: 0 | BH6: 0
A7: ='Scenarios definition'!A7 -> 1978-1995 Large , Single Detached | B7: ='Scenarios definition'!B7 -> 39 | C7: ='Scenarios definition'!C7 -> 22 | D7: ='Scenarios definition'!D7 -> 8 | E7: ='Scenarios definition'!E7 -> 0.81 | F7: ='Scenarios definition'!F7 -> 8 | G7: ='Scenarios definition'!G7 -> 1 | H7: ='Scenarios definition'!H7 -> 0 | I7: ='Scenarios definition'!I7 -> 20.3664 | J7: ='Scenarios definition'!J7 -> Fossil fuel | K7: ='Scenarios definition'!K7 -> 0 | L7: ='Scenarios definition'!L7 -> 0 | M7: ='Scenarios definition'!M7 -> 0 | N7: ='Scenarios definition'!N7 -> 0 | O7: ='Scenarios definition'!O7 -> 0 | P7: ='Scenarios definition'!P7 -> 0 | Q7: ='Scenarios definition'!Q7 -> 0 | R7: ='Scenarios definition'!R7 -> 0 | S7: ='Scenarios definition'!S7 -> 0 | T7: ='Scenarios definition'!T7 -> 0 | U7: =MAIN!Z6 -> 23.15179933 | V7: =MAIN!AA6 -> 3.016131617 | Y7: =CONVERT(MAIN!C6,"m2","ft2") -> 4515.46042 | Z7: 39 | AA7: 6.58309838 | AB7: 0.8576219447 | AC7: ='Scenarios definition'!AC7 -> 13.5 | AD7: ='Scenarios definition'!AD7 -> 240 | AE7: =Financial!H10 -> 1500 | AF7: =Financial!I10 -> 1200 | AG7: =Financial!J10 -> 1.5 | AH7: =Financial!K10 -> 3000 | AI7: =Financial!L10 -> 5000 | AJ7: =Financial!M10 -> 5000 | AK7: =Financial!N10 -> 3500 | AL7: =Financial!O10 -> 4000 | AM7: =Financial!P10 -> 2200 | AN7: =Financial!Q10 -> 2000 | AO7: =Financial!R10 -> 800 | AP7: =Financial!S10 -> 100 | AQ7: =Financial!T10 -> 0.8 | AR7: =Financial!U10 -> 0 | AS7: =Financial!V10 -> 30.3030303 | AT7: =Financial!W10 -> 280 | AU7: =Financial!X10 -> 0.005925925926 | AW7: =((AE7+MAX(AA7,AB7)*AF7+AG7*Y7+AH7))*MAX(0,G7-'Scenarios definition'!$G47) -> 0 | AX7: =(AI7+IF(I7=0,MAX(AA7,AB7),I7)*AJ7+AG7*Y7+AH7)*MAX(0,H7-'Scenarios definition'!$H47) -> 0 | AY7: =AK7*MAX(0,K7-'Scenarios definition'!$K47) -> 0 | AZ7: 0 | BA7: 0 | BB7: 0 | BC7: 0 | BD7: 0 | BE7: 0 | BF7: 0 | BG7: 0 | BH7: 0
A8: ='Scenarios definition'!A8 -> 1978-1995 , Single Detached, Single Attached, Apart. | B8: ='Scenarios definition'!B8 -> 200 | C8: ='Scenarios definition'!C8 -> 115 | D8: ='Scenarios definition'!D8 -> 37 | E8: ='Scenarios definition'!E8 -> 0.81 | F8: ='Scenarios definition'!F8 -> 44 | G8: ='Scenarios definition'!G8 -> 4 | H8: ='Scenarios definition'!H8 -> 0 | I8: ='Scenarios definition'!I8 -> 14.9618 | J8: ='Scenarios definition'!J8 -> Fossil fuel | K8: ='Scenarios definition'!K8 -> 0 | L8: ='Scenarios definition'!L8 -> 100 | M8: ='Scenarios definition'!M8 -> 4 | N8: ='Scenarios definition'!N8 -> 0 | O8: ='Scenarios definition'!O8 -> 0 | P8: ='Scenarios definition'!P8 -> 0 | Q8: ='Scenarios definition'!Q8 -> 0 | R8: ='Scenarios definition'!R8 -> 0 | S8: ='Scenarios definition'!S8 -> 0 | T8: ='Scenarios definition'!T8 -> 0 | U8: =MAIN!Z7 -> 13.62730151 | V8: =MAIN!AA7 -> 3.058436462 | Y8: =CONVERT(MAIN!C7,"m2","ft2") -> 947.2241167 | Z8: 200 | AA8: 3.874855047 | AB8: 0.8696511158 | AC8: ='Scenarios definition'!AC8 -> 13.5 | AD8: ='Scenarios definition'!AD8 -> 240 | AE8: =Financial!H11 -> 1500 | AF8: =Financial!I11 -> 1200 | AG8: =Financial!J11 -> 1 | AH8: =Financial!K11 -> 2000 | AI8: =Financial!L11 -> 5000 | AJ8: =Financial!M11 -> 5000 | AK8: =Financial!N11 -> 3500 | AL8: =Financial!O11 -> 4000 | AM8: =Financial!P11 -> 2200 | AN8: =Financial!Q11 -> 2000 | AO8: =Financial!R11 -> 800 | AP8: =Financial!S11 -> 100 | AQ8: =Financial!T11 -> 0.8 | AR8: =Financial!U11 -> 0 | AS8: =Financial!V11 -> 30.3030303 | AT8: =Financial!W11 -> 280 | AU8: =Financial!X11 -> 0.005925925926 | AW8: =((AE8+MAX(AA8,AB8)*AF8+AG8*Y8+AH8))*MAX(0,G8-'Scenarios definition'!$G48) -> 0 | AX8: =(AI8+IF(I8=0,MAX(AA8,AB8),I8)*AJ8+AG8*Y8+AH8)*MAX(0,H8-'Scenarios definition'!$H48) -> 0 | AY8: =AK8*MAX(0,K8-'Scenarios definition'!$K48) -> 0 | AZ8: 1080000 | BA8: 0 | BB8: 0 | BC8: 0 | BD8: 0 | BE8: 0 | BF8: 0 | BG8: 0 | BH8: 1080000
A9: ='Scenarios definition'!A9 -> 1996-2010 Two Storey , Single Detached | B9: ='Scenarios definition'!B9 -> 138 | C9: ='Scenarios definition'!C9 -> 79 | D9: ='Scenarios definition'!D9 -> 27 | E9: ='Scenarios definition'!E9 -> 0.81 | F9: ='Scenarios definition'!F9 -> 30 | G9: ='Scenarios definition'!G9 -> 2 | H9: ='Scenarios definition'!H9 -> 0 | I9: ='Scenarios definition'!I9 -> 17.6279 | J9: ='Scenarios definition'!J9 -> Fossil fuel | K9: ='Scenarios definition'!K9 -> 0 | L9: ='Scenarios definition'!L9 -> 65 | M9: ='Scenarios definition'!M9 -> 5 | N9: ='Scenarios definition'!N9 -> 0 | O9: ='Scenarios definition'!O9 -> 0 | P9: ='Scenarios definition'!P9 -> 0 | Q9: ='Scenarios definition'!Q9 -> 0 | R9: ='Scenarios definition'!R9 -> 0 | S9: ='Scenarios definition'!S9 -> 0 | T9: ='Scenarios definition'!T9 -> 0 | U9: =MAIN!Z8 -> 13.84802304 | V9: =MAIN!AA8 -> 2.6868244 | Y9: =CONVERT(MAIN!C8,"m2","ft2") -> 2162.469603 | Z9: 138 | AA9: 3.937616113 | AB9: 0.763985084 | AC9: ='Scenarios definition'!AC9 -> 13.5 | AD9: ='Scenarios definition'!AD9 -> 240 | AE9: =Financial!H12 -> 1500 | AF9: =Financial!I12 -> 1200 | AG9: =Financial!J12 -> 1.5 | AH9: =Financial!K12 -> 2000 | AI9: =Financial!L12 -> 5000 | AJ9: =Financial!M12 -> 5000 | AK9: =Financial!N12 -> 3000 | AL9: =Financial!O12 -> 4000 | AM9: =Financial!P12 -> 2200 | AN9: =Financial!Q12 -> 2000 | AO9: =Financial!R12 -> 800 | AP9: =Financial!S12 -> 100 | AQ9: =Financial!T12 -> 0.7 | AR9: =Financial!U12 -> 0 | AS9: =Financial!V12 -> 30.3030303 | AT9: =Financial!W12 -> 280 | AU9: =Financial!X12 -> 0.005925925926 | AW9: =((AE9+MAX(AA9,AB9)*AF9+AG9*Y9+AH9))*MAX(0,G9-'Scenarios definition'!$G49) -> 0 | AX9: =(AI9+IF(I9=0,MAX(AA9,AB9),I9)*AJ9+AG9*Y9+AH9)*MAX(0,H9-'Scenarios definition'!$H49) -> 0 | AY9: =AK9*MAX(0,K9-'Scenarios definition'!$K49) -> 0 | AZ9: 845000 | BA9: 0 | BB9: 0 | BC9: 0 | BD9: 0 | BE9: 0 | BF9: 0 | BG9: 0 | BH9: 845000
A10: ='Scenarios definition'!A10 -> 1996-2010 Small , Single Attached, Single Attached, Apart., Mob. H. | B10: ='Scenarios definition'!B10 -> 104 | C10: ='Scenarios definition'!C10 -> 60 | D10: ='Scenarios definition'!D10 -> 19 | E10: ='Scenarios definition'!E10 -> 0.81 | F10: ='Scenarios definition'!F10 -> 23 | G10: ='Scenarios definition'!G10 -> 2 | H10: ='Scenarios definition'!H10 -> 0 | I10: ='Scenarios definition'!I10 -> 13.7496 | J10: ='Scenarios definition'!J10 -> Fossil fuel | K10: ='Scenarios definition'!K10 -> 0 | L10: ='Scenarios definition'!L10 -> 0 | M10: ='Scenarios definition'!M10 -> 0 | N10: ='Scenarios definition'!N10 -> 0 | O10: ='Scenarios definition'!O10 -> 0 | P10: ='Scenarios definition'!P10 -> 0 | Q10: ='Scenarios definition'!Q10 -> 0 | R10: ='Scenarios definition'!R10 -> 0 | S10: ='Scenarios definition'!S10 -> 0 | T10: ='Scenarios definition'!T10 -> 0 | U10: =MAIN!Z9 -> 12.87528856 | V10: =MAIN!AA9 -> 3.344380178 | Y10: =CONVERT(MAIN!C9,"m2","ft2") -> 1280.90534 | Z10: 104 | AA10: 3.661023926 | AB10: 0.9509577816 | AC10: ='Scenarios definition'!AC10 -> 13.5 | AD10: ='Scenarios definition'!AD10 -> 240 | AE10: =Financial!H13 -> 2500 | AF10: =Financial!I13 -> 1200 | AG10: =Financial!J13 -> 2 | AH10: =Financial!K13 -> 2000 | AI10: =Financial!L13 -> 5000 | AJ10: =Financial!M13 -> 5000 | AK10: =Financial!N13 -> 2500 | AL10: =Financial!O13 -> 4000 | AM10: =Financial!P13 -> 2200 | AN10: =Financial!Q13 -> 2000 | AO10: =Financial!R13 -> 800 | AP10: =Financial!S13 -> 100 | AQ10: =Financial!T13 -> 0.7 | AR10: =Financial!U13 -> 0 | AS10: =Financial!V13 -> 30.3030303 | AT10: =Financial!W13 -> 280 | AU10: =Financial!X13 -> 0.005925925926 | AW10: =((AE10+MAX(AA10,AB10)*AF10+AG10*Y10+AH10))*MAX(0,G10-'Scenarios definition'!$G50) -> 0 | AX10: =(AI10+IF(I10=0,MAX(AA10,AB10),I10)*AJ10+AG10*Y10+AH10)*MAX(0,H10-'Scenarios definition'!$H50) -> 0 | AY10: =AK10*MAX(0,K10-'Scenarios definition'!$K50) -> 0 | AZ10: 0 | BA10: 0 | BB10: 0 | BC10: 0 | BD10: 0 | BE10: 0 | BF10: 0 | BG10: 0 | BH10: 0
A11: ='Scenarios definition'!A11 -> 1996-2010 , Single Detached, Single Attached, Apart. | B11: ='Scenarios definition'!B11 -> 104 | C11: ='Scenarios definition'!C11 -> 60 | D11: ='Scenarios definition'!D11 -> 19 | E11: ='Scenarios definition'!E11 -> 0.81 | F11: ='Scenarios definition'!F11 -> 23 | G11: ='Scenarios definition'!G11 -> 2 | H11: ='Scenarios definition'!H11 -> 0 | I11: ='Scenarios definition'!I11 -> 14.3357 | J11: ='Scenarios definition'!J11 -> Fossil fuel | K11: ='Scenarios definition'!K11 -> 0 | L11: ='Scenarios definition'!L11 -> 0 | M11: ='Scenarios definition'!M11 -> 0 | N11: ='Scenarios definition'!N11 -> 0 | O11: ='Scenarios definition'!O11 -> 0 | P11: ='Scenarios definition'!P11 -> 0 | Q11: ='Scenarios definition'!Q11 -> 0 | R11: ='Scenarios definition'!R11 -> 0 | S11: ='Scenarios definition'!S11 -> 0 | T11: ='Scenarios definition'!T11 -> 0 | U11: =MAIN!Z10 -> 18.99710188 | V11: =MAIN!AA10 -> 0 | Y11: =CONVERT(MAIN!C10,"m2","ft2") -> 2038.684633 | Z11: 104 | AA11: 5.401730934 | AB11: 0 | AC11: ='Scenarios definition'!AC11 -> 13.5 | AD11: ='Scenarios definition'!AD11 -> 240 | AE11: =Financial!H14 -> 2500 | AF11: =Financial!I14 -> 1200 | AG11: =Financial!J14 -> 2 | AH11: =Financial!K14 -> 2000 | AI11: =Financial!L14 -> 5000 | AJ11: =Financial!M14 -> 5000 | AK11: =Financial!N14 -> 2500 | AL11: =Financial!O14 -> 4000 | AM11: =Financial!P14 -> 2200 | AN11: =Financial!Q14 -> 2000 | AO11: =Financial!R14 -> 800 | AP11: =Financial!S14 -> 100 | AQ11: =Financial!T14 -> 0.7 | AR11: =Financial!U14 -> 0 | AS11: =Financial!V14 -> 30.3030303 | AT11: =Financial!W14 -> 280 | AU11: =Financial!X14 -> 0.005925925926 | AW11: =((AE11+MAX(AA11,AB11)*AF11+AG11*Y11+AH11))*MAX(0,G11-'Scenarios definition'!$G51) -> 0 | AX11: =(AI11+IF(I11=0,MAX(AA11,AB11),I11)*AJ11+AG11*Y11+AH11)*MAX(0,H11-'Scenarios definition'!$H51) -> 0 | AY11: =AK11*MAX(0,K11-'Scenarios definition'!$K51) -> 0 | AZ11: 0 | BA11: 0 | BB11: 0 | BC11: 0 | BD11: 0 | BE11: 0 | BF11: 0 | BG11: 0 | BH11: 0
A12: ='Scenarios definition'!A12 -> 2011-2020 Small , Single Detached, Single Attached, Apart., Mob. H. | B12: ='Scenarios definition'!B12 -> 131 | C12: ='Scenarios definition'!C12 -> 46 | D12: ='Scenarios definition'!D12 -> 16 | E12: ='Scenarios definition'!E12 -> 0.81 | F12: ='Scenarios definition'!F12 -> 18 | G12: ='Scenarios definition'!G12 -> 51 | H12: ='Scenarios definition'!H12 -> 0 | I12: ='Scenarios definition'!I12 -> 8.1215 | J12: ='Scenarios definition'!J12 -> Fossil fuel | K12: ='Scenarios definition'!K12 -> 0 | L12: ='Scenarios definition'!L12 -> 0 | M12: ='Scenarios definition'!M12 -> 0 | N12: ='Scenarios definition'!N12 -> 0 | O12: ='Scenarios definition'!O12 -> 0 | P12: ='Scenarios definition'!P12 -> 0 | Q12: ='Scenarios definition'!Q12 -> 0 | R12: ='Scenarios definition'!R12 -> 0 | S12: ='Scenarios definition'!S12 -> 0 | T12: ='Scenarios definition'!T12 -> 0 | U12: =MAIN!Z11 -> 7.86878774 | V12: =MAIN!AA11 -> 0 | Y12: =CONVERT(MAIN!C11,"m2","ft2") -> 818.0571917 | Z12: 131 | AA12: 2.23745045 | AB12: 0 | AC12: ='Scenarios definition'!AC12 -> 13.5 | AD12: ='Scenarios definition'!AD12 -> 240 | AE12: =Financial!H15 -> 2500 | AF12: =Financial!I15 -> 1000 | AG12: =Financial!J15 -> 1 | AH12: =Financial!K15 -> 2000 | AI12: =Financial!L15 -> 5000 | AJ12: =Financial!M15 -> 5000 | AK12: =Financial!N15 -> 2500 | AL12: =Financial!O15 -> 4000 | AM12: =Financial!P15 -> 2200 | AN12: =Financial!Q15 -> 2000 | AO12: =Financial!R15 -> 800 | AP12: =Financial!S15 -> 100 | AQ12: =Financial!T15 -> 0.7 | AR12: =Financial!U15 -> 0 | AS12: =Financial!V15 -> 30.3030303 | AT12: =Financial!W15 -> 280 | AU12: =Financial!X15 -> 0.005925925926 | AW12: =((AE12+MAX(AA12,AB12)*AF12+AG12*Y12+AH12))*MAX(0,G12-'Scenarios definition'!$G52) -> 0 | AX12: =(AI12+IF(I12=0,MAX(AA12,AB12),I12)*AJ12+AG12*Y12+AH12)*MAX(0,H12-'Scenarios definition'!$H52) -> 0 | AY12: =AK12*MAX(0,K12-'Scenarios definition'!$K52) -> 0 | AZ12: 0 | BA12: 0 | BB12: 0 | BC12: 0 | BD12: 0 | BE12: 0 | BF12: 0 | BG12: 0 | BH12: 0
A13: ='Scenarios definition'!A13 -> 2011-2020 , Single Detached, Single Attached, Apart. | B13: ='Scenarios definition'!B13 -> 164 | C13: ='Scenarios definition'!C13 -> 65 | D13: ='Scenarios definition'!D13 -> 22 | E13: ='Scenarios definition'!E13 -> 0.81 | F13: ='Scenarios definition'!F13 -> 25 | G13: ='Scenarios definition'!G13 -> 52 | H13: ='Scenarios definition'!H13 -> 0 | I13: ='Scenarios definition'!I13 -> 7.8538 | J13: ='Scenarios definition'!J13 -> Fossil fuel | K13: ='Scenarios definition'!K13 -> 0 | L13: ='Scenarios definition'!L13 -> 0 | M13: ='Scenarios definition'!M13 -> 0 | N13: ='Scenarios definition'!N13 -> 0 | O13: ='Scenarios definition'!O13 -> 0 | P13: ='Scenarios definition'!P13 -> 0 | Q13: ='Scenarios definition'!Q13 -> 0 | R13: ='Scenarios definition'!R13 -> 0 | S13: ='Scenarios definition'!S13 -> 0 | T13: ='Scenarios definition'!T13 -> 0 | U13: =MAIN!Z12 -> 8.325743891 | V13: =MAIN!AA12 -> 0 | Y13: =CONVERT(MAIN!C12,"m2","ft2") -> 2129.10148 | Z13: 164 | AA13: 2.367383647 | AB13: 0 | AC13: ='Scenarios definition'!AC13 -> 13.5 | AD13: ='Scenarios definition'!AD13 -> 240 | AE13: =Financial!H16 -> 2500 | AF13: =Financial!I16 -> 1000 | AG13: =Financial!J16 -> 4 | AH13: =Financial!K16 -> 2000 | AI13: =Financial!L16 -> 5000 | AJ13: =Financial!M16 -> 5000 | AK13: =Financial!N16 -> 2000 | AL13: =Financial!O16 -> 4000 | AM13: =Financial!P16 -> 2200 | AN13: =Financial!Q16 -> 2000 | AO13: =Financial!R16 -> 800 | AP13: =Financial!S16 -> 100 | AQ13: =Financial!T16 -> 0.7 | AR13: =Financial!U16 -> 0 | AS13: =Financial!V16 -> 30.3030303 | AT13: =Financial!W16 -> 280 | AU13: =Financial!X16 -> 0.005925925926 | AW13: =((AE13+MAX(AA13,AB13)*AF13+AG13*Y13+AH13))*MAX(0,G13-'Scenarios definition'!$G53) -> 0 | AX13: =(AI13+IF(I13=0,MAX(AA13,AB13),I13)*AJ13+AG13*Y13+AH13)*MAX(0,H13-'Scenarios definition'!$H53) -> 0 | AY13: =AK13*MAX(0,K13-'Scenarios definition'!$K53) -> 0 | AZ13: 0 | BA13: 0 | BB13: 0 | BC13: 0 | BD13: 0 | BE13: 0 | BF13: 0 | BG13: 0 | BH13: 0
A14: =IF(lang="english","CTAP","OETC") -> CTAP | B14: =IF(lang="English","Community Technology Assessment Platform","Outil d’évaluation de technologies pour communautés") -> Community Technology Assessment Platform | F14: =LOOKUP(L14,'Emission factors'!E2:AX2,'Emission factors'!E17:AX17)/1000 -> 0.0181 | G14: =IF(lang="English","Combustion heating system efficiencies for current year","Efficacité des systèmes de chauffage à combustion pour année courante") -> Combustion heating system efficiencies for current year | K14: =IF(lang="English","Scenario year =>","Année du scénario =>") -> Scenario year => | L14: ='Scenarios definition'!D1 -> 2030 | O14: English | AZ14: AN3*L3+(M3*AM3)*IF(L3=0,0,1) | BF14: Total | BG14: =SUM(BH3:BH13) -> 1925000
A15: =IF(lang="Français","Coefficient d'émission moyen, elect. (kgCO2e/kWh)","Elec GHG Intensity (kgCO2e/kWh)") -> Elec GHG Intensity (kgCO2e/kWh) | B15: =IF(L14<2005,'Emission factors'!E17/1000,LOOKUP(L14,'Emission factors'!E2:AX2,'Emission factors'!E17:AX17)/1000*(1+Financial!N34)) -> 0.0181 | K15: =IF(lang="English","Select Scenario to run =>","Choisir un scénario =>") -> Select Scenario to run => | L15: 3
A16: =CONCATENATE(IF(lang="English"," GHG Intensity of ","Intensité GES pour "),Financial!M127," (kgCO2e/kWh)") -> GHG Intensity of gas (kgCO2e/kWh) | B16: =IF(I20="gas",Financial!L29*(1+Financial!N33),IF(I20="oil",Financial!L30*(1+Financial!N35),IF(I20="propane",Financial!L31*(1+Financial!N36),0))) -> 0.2159187265 | G16: Gas | I16: =Financial!O108 -> 0.9551500911 | K16: =IF(lang="English","Scenario name =>","Nom du scénario =>") -> Scenario name => | L16: ='Scenarios definition'!A2 -> test data for report | AS16: Example
A17: =CONCATENATE(IF(lang="English"," Wood GHG Intensity","Intensité GES du bois de chauffage")," (kgCO2e/kWh)") -> Wood GHG Intensity (kgCO2e/kWh) | B17: 0.004 | G17: Oil | I17: =Financial!O105 -> 0.81 | AS17: 75000 | AT17: DER cost
A18: =IF(lang="English","Electricl Rate Plan (Time of use TOU or fixed)","Plan tarifaire électricité (taux horaires (TOU) ou fixe") -> Electricl Rate Plan (Time of use TOU or fixed) | B18: TOU | G18: Propane | I18: =Financial!O113 -> 0.81 | K18: Quebec | L18: Ontario Ajax | M18: Ontario Ajax | N18: =IF(lang="English","<= Select your city","<= Choisir votre ville") -> <= Select your city | AS18: 0.5 | AT18: Efficiency gain
A19: =IF(lang="English","Fixed Elec. Rate, if applicable. ($/kWh)","Tarif fixe pour l'électricité si applicable ($/kWh)") -> Fixed Elec. Rate, if applicable. ($/kWh) | B19: =IF(B18="Fixed",Financial!E19,"n/a") -> n/a | G19: Biomass (wood) | I19: =Financial!S21 -> 0.65 | K19: Ontario Ajax | L19: Ontario Ajax | M19: Ontario Ajax | AS19: 2000 | AT19: area
A20: =IF(lang="English","Fossil fuel price in $/kWh","Coût du combustible fossile $/kWh") -> Fossil fuel price in $/kWh | B20: =SUMIF(Financial!J18:J23,IF(L14='Scenarios definition'!C17,Financial!M127,Financial!O127),Financial!L18:L23)/277.8 -> 0.02841877913 | G20: Dominant fossil fuel: | I20: =IF(L14='Scenarios definition'!C17,Financial!M127,Financial!O127) -> gas | K20: Ontario Ajax | L20: Ontario Ajax | M20: Ontario Ajax | N20: =IF(lang="english","Climate zone","Zone climatique") -> Climate zone | O20: =Statistics!G2 -> 7A | AS20: =AS17/AS19/AS18/100 -> 0.75 | AT20: $/ft/%
G21: =IF(lang="English","","Principal énergie fossile") ->  | I21: =IF(lang="English","",IF(I20="gas","gas naturel",IF(I20="Oil","Huile a chauffage",IF(I20="propane","gas propane","")))) ->  | N21: =IF(lang="English","CTAP version", "Version de OETC") -> CTAP version | O21: =Cities!J3 -> Quebec
A22: =IF(lang="English","Current Scenario OUTPUTS (Results are on an annual basis)","RÉSULTATS du scénario actuel (les résultats sont sur une base annuelle)") -> Current Scenario OUTPUTS (Results are on an annual basis)
A23: =IF(lang="English","Peak Elec. (kW)","Demande électrique de pointe (kW)") -> Peak Elec. (kW) | B23: =MAIN!C22 -> 12999.05615
A25: =IF(lang="English","PV Production (kWh)","Production photovoltaïque (PV) (kWh)") -> PV Production (kWh) | B25: =MAIN!C24 -> 1009438.779
P26: Thermal Storage | Q26: Stockage thermique
A27: =IF(lang="English","Total Electricity Consumed (kWh)","Électricité totale consommée (kWh)") -> Total Electricity Consumed (kWh) | B27: =INT(MAIN!C26/1000)*1000 -> 33985000 | P27: Electric Storage | Q27: Stockage électrique
A28: =IF(lang="English","Total fossil fuel (kWh)","Combustibles fossiles total (kWh)") -> Total fossil fuel (kWh) | B28: =INT(MAIN!C27/1000)*1000 -> 6480000 | P28: Plug Load | Q28: Charge de prise électrique
A29: =IF(lang="English","Total Wood (kWh)","Total - bois (kWh)") -> Total Wood (kWh) | B29: =INT(MAIN!C28/1000)*1000 -> 9995000 | P29: AHSP cooling | Q29: Refroidissement pompe à chaleur source d'air
A30: =IF(lang="English","Annual Total Energy Purchased (minus PV) (kWh)","Énergie totale annuelle achetée (moins PV) (kWh)") -> Annual Total Energy Purchased (minus PV) (kWh) | B30: =INT(MAIN!C29/1000)*1000 -> 49451000 | P30: GSHP Heating | Q30: Chauffage pompe à chaleur géothermique
A31: =CONCATENATE(IF(lang="English","GHG reduction resulting from the community level RE project (kg/CO2) - ","GES credit du projet ER communautaire (kg/CO2) "),Financial!O41) -> GHG reduction resulting from the community level RE project (kg/CO2) - 2030 | B31: =IF(L14<Financial!O41,0,-Financial!N42*(B15-Financial!N43/1000)*1000) -> 2380 | P31: Electric Heat | Q31: Chauffage électrique
A32: =IF(lang="English","GHG associated to electricity consumption (kg/CO2)","GES associés à la consommation électrique (kg/CO2)") -> GHG associated to electricity consumption (kg/CO2) | B32: =INT(MAIN!C31/1000)*1000 -> 596000 | P32: DHW | Q32: Eau chaude domestique
A33: =IF(lang="English","GHG associated to fossil fuels consumption (kg/CO2)","GES de la consommation d'énergies fossiles (kg/CO2)") -> GHG associated to fossil fuels consumption (kg/CO2) | B33: =INT(MAIN!C32/1000)*1000 -> 1399000 | P33: GSHP Cooling | Q33: Refroidissement Pompe à chaleur géothermique
A34: =IF(lang="English","GHG associated to wood consumption (kg/CO2)","GES de la combustion de bois (kg/CO2)") -> GHG associated to wood consumption (kg/CO2) | B34: =MAIN!C33 -> 39983.58974 | P34: Status Quo Cooling | Q34: Refroidissement statu quo
A35: =IF(lang="English","Total GHG (kg/CO2e)","Total des GES (kg/CO2)") -> Total GHG (kg/CO2e) | B35: =INT(MAIN!C34/1000)*1000+B31 -> 2038380 | P35: ASHP Heat | Q35: Pompe à chaleur source d'air
A36: =IF(lang="English","Rough imlementation cost ($000)","Coût approximatif de mise en œuvre (000 $)") -> Rough imlementation cost ($000) | B36: =INT(BG14/1000) -> 1925 | P36: PV | Q36: Photovoltaïque
A37: =IF(lang="english","Electricity Cost ($)","Coût de l'électricité ($)") -> Electricity Cost ($) | B37: =INT((MAIN!C36-B31*AVERAGE(Financial!D32:G39))/1000)*1000 -> 3414000
A38: =IF(lang="english","Fossil fuel costs ($)","Coûts des combustibles fossiles ($)") -> Fossil fuel costs ($) | B38: =MAIN!C37 -> 184155.7939
A39: =IF(lang="english","Total Costof Energy ($)","Coût énergétique total ($)") -> Total Costof Energy ($) | B39: =INT(MAIN!C38/1000)*1000 -> 3598000
C42: =Scenario -> 3 | D42: =L16 -> test data for report
A43: =IF(lang="English","Note: results are shown with 4 or 5 significant digits since the accuracy of the model can not justify greater number of significant digits.","Remarque : les résultats sont présentés avec 4 ou 5 chiffres significatifs puisque la précision du modèle ne peut justifier un plus grand nombre de chiffres significatifs.") -> Note: results are shown with 4 or 5 significant digits since the accuracy of the model can not justify greater number of significant digits.
I44: =IF(lang="English","To re-use columns or erase scenario results no longuer needed, select cells within a column - example D48:D75 - and delete.","Pour réutiliser des colonnes ou effacer les résultats de scénarios qui ne sont plus nécessaires, sélectionnez les cellules d'une colonne - exemple D48:D75 - et supprimez-les.") -> To re-use columns or erase scenario results no longuer needed, select cells within a column - example D48:D75 - and delete.
A47: =CONCATENATE(IF(lang="english","Saved Scenarios Summary - Comparison Table - for ","Tableau résumant les résultats des scénarios pour "),'User Input Output'!K18,", ",'User Input Output'!L21) -> Saved Scenarios Summary - Comparison Table - for Quebec,
A48: =IF(lang="English","Column #","Numéro de la colonne") -> Column # | B48: 1 | C48: 2 | D48: 3 | E48: 4 | F48: 5 | G48: 6 | H48: 7 | I48: 8 | J48: 9 | K48: 10 | L48: 11 | M48: 12 | N48: 13 | O48: 14 | P48: 15
A49: =IF(lang="English","Scenario name =>","Nom du scénario =>") -> Scenario name =>
A51: =A23 -> Peak Elec. (kW)
A53: =A25 -> PV Production (kWh)
A55: =A27 -> Total Electricity Consumed (kWh)
A56: =A28 -> Total fossil fuel (kWh)
A57: =A29 -> Total Wood (kWh)
A58: =A30 -> Annual Total Energy Purchased (minus PV) (kWh)
A59: =A31 -> GHG reduction resulting from the community level RE project (kg/CO2) - 2030
A60: =A32 -> GHG associated to electricity consumption (kg/CO2)
A61: GHG associated to fossil fuels consumption (kg/CO2)
A62: GHG associated to wood consumption (kg/CO2)
A63: Total GHG (kg/CO2e)
A64: Rough imlementation cost ($000)
A65: Electricity Cost ($)
A66: Fossil fuel costs ($)
A67: Total Costof Energy ($)
A70: =A15 -> Elec GHG Intensity (kgCO2e/kWh)
A71: GHG Intensity of gas (kgCO2e/kWh)
A72: Wood GHG Intensity (kgCO2e/kWh)
A73: Electricl Rate Plan (Time of use TOU or fixed)
A74: Fixed Elec. Rate, if applicable. ($/kWh)
A75: Fossil fuel price in $/kWh
A76: =IF(lang="English","Derived metrics:","Métriques dérivées :") -> Derived metrics: | B76: =IF(COUNTIF($B103:$D103,B49)=1,0,1) -> 1 | C76: =IF(COUNTIF($B103:$D103,C49)=1,0,1) -> 1 | D76: =IF(COUNTIF($B103:$D103,D49)=1,0,1) -> 1 | E76: 1 | F76: 1 | G76: 1 | H76: 1 | I76: 1 | J76: 1 | K76: =IF(COUNTIF($B103:$D103,K49)=1,0,1) -> 1 | L76: 1 | M76: 1 | N76: 1 | O76: 1 | P76: 1
A77: =IF(lang="English","GHG Reduction as % of baseline scenario:","Réduction des GES en % comparé au scénario de référence:") -> GHG Reduction as % of baseline scenario: | C77: =IF(C63=0,0,($B63-C63)/$B63)*C76 -> 0 | D77: =IF(D63=0,0,($B63-D63)/$B63)*D76 -> 0 | E77: =IF(E63=0,0,($B63-E63)/$B63)*E76 -> 0 | F77: =IF(F63=0,0,($B63-F63)/$B63)*F76 -> 0 | G77: 0 | H77: 0 | I77: 0 | J77: 0 | K77: =IF(K63=0,0,($B63-K63)/$B63)*K76 -> 0 | L77: 0 | M77: 0 | N77: 0 | O77: 0 | P77: 0
A78: =IF(lang="English","Tons of CO2 avoided per year:","Réduction annuelle des GES en tonnes:") -> Tons of CO2 avoided per year: | C78: =IF(C63=0,0,($B63-C63)/1000)*C76 -> 0 | D78: =IF(D63=0,0,($B63-D63)/1000)*D76 -> 0 | E78: 0 | F78: 0 | G78: 0 | H78: 0 | I78: 0 | J78: 0 | K78: =IF(K63=0,0,($B63-K63)/1000)*K76 -> 0 | L78: 0 | M78: 0 | N78: 0 | O78: 0 | P78: 0
A79: =IF(lang="English","Approximate Investment $/ton CO2 red. over 50 years:","Investissement approximatif $/tonne de CO2 sur 50 ans :") -> Approximate Investment $/ton CO2 red. over 50 years: | D79: =IF(D78=0,0,D64/(D78-$C78)/40*1000)*D76 -> 0 | E79: =IF(E78=0,0,E64/(E78-$C78)/40*1000)*E76 -> 0 | F79: 0 | G79: 0 | H79: 0 | I79: 0 | J79: 0 | K79: 0 | L79: 0 | M79: 0 | N79: 0 | O79: 0 | P79: 0
A80: =IF(lang="English","Annual energy savings as a percent of approx. investment:","Économies d'énergie annuelles en pourcentage de l'investissement approximatif :") -> Annual energy savings as a percent of approx. investment: | D80: =IF(D76=0,0,IF(D64=0,"",($B67-D67)/D64/1000)) ->  | K80: =IF(K76=0,0,IF(K64=0,"",($B67-K67)/K64/1000)) -> 
A82: =IF(lang="english","Graphical representation of results by scenario","Représentation graphique des résultats par scénario") -> Graphical representation of results by scenario
E100: =MATCH(TRUE,INDEX(B51:P51="",0),0) -> 1
A101: =IF(lang="English","Composite Senarios Table","Tableau des scénarios composites") -> Composite Senarios Table
A102: =IF(lang="English","Table to combine up to three composite scenarios","Tableau permettant de combiner jusqu'à trois scénarios composites") -> Table to combine up to three composite scenarios | B102: =IF(lang="english","Part 1","Partie 1") -> Part 1 | C102: =IF(lang="english","Part 2","Partie 2") -> Part 2 | D102: =IF(lang="english","Part 3","Partie 3") -> Part 3 | E102: Total | G102: Optional approach: if a given scenario is to consider ECMs (energy conservation measures) for only a subset of buildings of a given archetype, for example is only 50% of the buildings of the archetype - Pre-1946 - are to be deep energy retrofited to achieve 50% space heat energy reduction, the following approach must be used: Approche facultative : si un scénario donné doit considérer des MEEs (mesures d'économie d'énergie) pour seulement un sous-ensemble de bâtiments d'un archétype donné, par exemple, si seuls 50 % des bâtiments de l'archétype -Pre-1946 - prevoit de faire l'objet d'une rénovation énergétique approfondie pour atteindre une réduction de 50 % de l'énergie thermique des locaux, l'approche suivante doit être utilisée
A103: =IF(lang="english","Select scenario parts to be added =>","Veuillez choisir les scénarios à combiner =>") -> Select scenario parts to be added => | B103: Partie 1 Scenario 2027A 50% des maison avant 1946 MEE @ 70% et thermopompes | C103: Partie 2 Scenario 2027A reste des batiments sans aucune intervention. | E103: =CONCATENATE(B103," + ",C103," + ",D103) -> Partie 1 Scenario 2027A 50% des maison avant 1946 MEE @ 70% et thermopompes + Partie 2 Scenario 2027A reste des batiments sans aucune intervention. +
G104: 1) In "Scenarios definition" Tab two scenario input tables will need to be used. In the first one, overwrite the building count per archetype to include only the building count to be retrofited, with all other building counts of all other archetypes set to zero. In the second table, overwrite the building count for archetype which contains building to be retrofited with the number of buildings of that archetype that are not being retrofited. The two tables then contain together the totallity of the buildings for all achetypes.
A105: =A51 -> Peak Elec. (kW) | B105: =SUMIF($C$49:$K$49,B$103,$C51:$K51) -> 0 | C105: =SUMIF($C$49:$K$49,C$103,$C51:$K51) -> 0 | D105: =SUMIF($C$49:$K$49,D$103,$C51:$K51) -> 0 | E105: =SUM(B105:D105) -> 0
A107: =A53 -> PV Production (kWh) | B107: =SUMIF($C$49:$K$49,B$103,$C53:$K53) -> 0 | C107: =SUMIF($C$49:$K$49,C$103,$C53:$K53) -> 0 | D107: =SUMIF($C$49:$K$49,D$103,$C53:$K53) -> 0 | E107: =SUM(B107:D107) -> 0
A109: Total Electricity Consumed (kWh) | B109: =SUMIF($C$49:$K$49,B$103,$C55:$K55) -> 0 | C109: 0 | D109: 0 | E109: 0
A110: Total fossil fuel (kWh) | B110: 0 | C110: 0 | D110: 0 | E110: 0 | G110: 1) Dans l'onglet « Définition des scénarios », deux tables d'entrée de scénarios devront être utilisées. Dans le premier, modifier le nombre de bâtiments par archétype pour inclure uniquement le nombre de bâtiments à etre rénover, tous les autres nombres de bâtiments de tous les autres archétypes étant mis à zéro. Dans le deuxième tableau, remplacez le nombre de bâtiments pour l'archétype qui contient un bâtiment à rénover par le nombre de bâtiments de cet archétype qui ne sont pas modernisés. Les deux tableaux contiennent alors ensemble la totalité des bâtiments pour tous les achétypes.
A111: Total Wood (kWh) | B111: 0 | C111: 0 | D111: 0 | E111: 0
A112: Annual Total Energy Purchased (minus PV) (kWh) | B112: 0 | C112: 0 | D112: 0 | E112: 0
A113: GHG reduction resulting from the community level RE project (kg/CO2) - 2030
A114: GHG associated to electricity consumption (kg/CO2) | B114: =SUMIF($C$49:$K$49,B$103,$C60:$K60) -> 0 | C114: 0 | D114: 0 | E114: 0
A115: GHG associated to fossil fuels consumption (kg/CO2) | B115: 0 | C115: 0 | D115: 0 | E115: 0
A116: GHG associated to wood consumption (kg/CO2) | B116: 0 | C116: 0 | D116: 0 | E116: 0 | G116: Example: | K116: Exemple:
A117: Total GHG (kg/CO2e) | B117: 0 | C117: 0 | D117: 0 | E117: 0
A118: Rough imlementation cost ($000) | B118: 0 | C118: 0 | D118: 0 | E118: 0 | G118: Disont que 50% des maisons "Pre-1946" and 25% des maisons "46-70-detached" seront rénovées, alors les deux tableaux seront: | K118: 50% of "Pre-45-1St-wtBsm" and 25% of "46-70-1St-wtBsmt2" buildings to be retrofited, then the two tables would be:
A119: Electricity Cost ($) | B119: 0 | C119: 0 | D119: 0 | E119: 0
A120: Fossil fuel costs ($) | B120: 0 | C120: 0 | D120: 0 | E120: 0
A121: Total Costof Energy ($) | B121: 0 | C121: 0 | D121: 0 | E121: 0
B122: 0 | C122: 0 | D122: 0 | E122: 0
G123: Building stock | K123: Scenario "n" | M123: Part 1 Scenario "n" | O123: Part 2 Scenario "n"
A124: Elec GHG Intensity (kgCO2e/kWh) | B124: =SUMIF($C$49:$K$49,B$103,$C70:$K70) -> 0 | C124: 0 | D124: 0 | E124: =B124 -> 0 | G124: Before 1946 All dwellings , Single Detached, Single Attached, Apart., Mob. H. | K124: 25 (13 + 12) | M124: 13 | O124: 12
A125: GHG Intensity of gas (kgCO2e/kWh) | B125: 0 | C125: 0 | D125: 0 | E125: 0 | G125: 1946-1977 , Single Attached, Apart. | K125: 25 | M125: 25
A126: Wood GHG Intensity (kgCO2e/kWh) | B126: 0 | C126: 0 | D126: 0 | E126: 0 | G126: 1946-1977 Large , Single Detached | K126: 80 | M126: 80
A127: Electricl Rate Plan (Time of use TOU or fixed) | B127: 0 | C127: 0 | D127: 0 | E127: 0 | G127: 1946-1977 , Single Detached, Single Attached, Mob. H., Mob. H. | K127: (60 + 21) | M127: 60 | O127: 21
A128: Fixed Elec. Rate, if applicable. ($/kWh) | B128: 0 | C128: 0 | D128: 0 | E128: 0 | G128: 1978-1995 , Single Detached, Single Attached | K128: 57 | L128: = | M128: 57 | N128: +
A129: Fossil fuel price in $/kWh | B129: 0 | C129: 0 | D129: 0 | E129: 0 | G129: 1978-1995 Small , Single Detached, Single Attached, Apart., Mob. H. | K129: 65 | M129: 65
G130: 1996-2010 Large , Single Detached | K130: 66 | M130: 66
G131: 1996-2010 , Single Attached, Apart. | K131: 32 | M131: 32
G132: 1996-2010 Small , Single Detached, Single Attached, Apart., Mob. H. | K132: 16 | M132: 16
G133: 2011-2020 Large , Single Attached, Single Attached, Apart. | K133: 3 | M133: 3
G134: 2011-2020 , Single Detached, Single Attached, Apart., Mob. H. | K134: 4 | M134: 4
G135: Total | K135: =SUM(K124:K134) -> 348 | M135: =SUM(M124:M134) -> 421 | O135: =SUM(O124:O134) -> 33
G137: 2) then run each of these "scenarios" and save them in the Saved scenarios summary" table. For example the "scenario n" column of that table would end up with the results of "Part 1 scenario n", and the column "Scenario n+1" would end up with the results of "Part 2 Scenario n" 2) puis exécutez chacun de ces "scénarios" et enregistrez-les dans le tableau "Résumé des scénarios enregistrés". Par exemple, la colonne "scénario n" de ce tableau se retrouverait avec les résultats du "Scénario n de la partie 1" et la colonne "Scénario n +1" aboutirait aux résultats de "Partie 2 Scénario n"
G143: 3) The results of those two "parts" can then ne added up in the table "Table to combine up to three scenario parts" . This is done by selecting the scenario Part names in under Part 1, Part 2 and Part 3 in that table. Then copy paste value the result into the "Save Scenarios Summary" Table under Scenario "n". You can also modify the title of that scenario to include all parts and appropriate text. The scenario input table for parts 2 and parts 3 (if applicable) can be reused for new scenario because the combined results of the calculation for the individual parts are now included in the "Save Scenarios Summary" Table. Les résultats de ces deux "parties" peuvent ensuite être additionnés dans le tableau "Tableau pour combiner jusqu'à trois parties de scénario". Cela se fait en sélectionnant les noms des parties du scénario sous Partie 1, Partie 2 et Partie 3 dans ce tableau. Ensuite, copiez et collez la valeur du résultat dans le tableau « Résumé des scénarios d'enregistrement » sous le scénario « n ». Vous pouvez également modifier le titre de ce scénario pour inclure toutes les parties et le texte approprié. Le tableau d'entrée du scénario pour les parties 2 et 3 (le cas échéant) peut être réutilisé pour un nouveau scénario car les résultats combinés du calcul pour les parties individuelles sont désormais inclus dans le tableau « Tableau résumant les résultats des scénarios »
F170: Total avec batteries

Sheet Scenarios definition
A1: Data for the scenario now in use by the software | C1: Year | D1: =IF(Scenario=1,B22,IF(Scenario=2,B42,IF(Scenario=3,B62,IF(Scenario=4,B82,IF(Scenario=5,B102,IF(Scenario=6,B122,IF(Scenario=7,B142,IF(Scenario=8,B162,IF(Scenario=9,B182,IF(Scenario=10,B202,IF(Scenario=11,B222,IF(Scenario=12,B242,IF(Scenario=13,B262,IF(Scenario=14,B282,IF(Scenario=15,B302))))))))))))))) -> 2030 | Y1: Order of magnitude Unit Costs for GHG Reduction Measures | AV1: Order of magnitude costs of measures for entire inventory
A2: =IF(Scenario=1,C22,IF(Scenario=2,C42,IF(Scenario=3,C62,IF(Scenario=4,C82,IF(Scenario=5,C102,IF(Scenario=6,C122,IF(Scenario=7,C142,IF(Scenario=8,C162,IF(Scenario=9,C182,IF(Scenario=10,C202)))))))))) -> test data for report | B2: Total Number (INPUT) | C2: #StatusQuo_ElecHeat (INPUT) | D2: #StatusQuo_OilPropHeat (INPUT) | E2: Combustion Efficiency | F2: Wood | G2: #ASHP_HeatCool (INPUT) | H2: #GSHP_HeatCool (INPUT) | I2: GSHP Size (kW) per dwelling | J2: GSHP Gas or Elec Aux. | K2: SDHW (INPUT) | L2: PV #(INPUT) | M2: PV kWdc/dweling (INPUT) | N2: Total # Battery (INPUT) | O2: # Thermal Storage (INPUT) | P2: Heating Load % Reduction | Q2: Cooling Load % Reduction | R2: DHW % Reduction | S2: % light load reduction | T2: Plug Load % Reduction | U2: INFO: Peak Heat per Dwelling (kW) | V2: INFO: Peak Cool per Dwelling (kW) | Y2: Average area per building (ft²) | Z2: # of Buildings | AA2: Peak heat load post measures (tons/ building) | AB2: Post measures Peak cooling load (tons/ building) | AC2: Battery bank capacity (kWhrs) | AD2: Thermal storage capacity (kWhrs) | AE2: ASHP (intercept equipment) ( $/unit) | AF2: ASHP ($/ton) | AG2: AS/GS HP (ductwork upgrade average allowance) ($/ft2) | AH2: AS/GS HP (electrical service upgrade avg allowance) ($/unit) | AI2: GSHP (intercept equipment) ($/unit) | AJ2: GSHP ($/ton) | AK2: SDHW ($/each) | AL2: DHW HP ($/each) | AM2: PV ($/kWp) | AN2: indirect cost PV installation ($/building) | AO2: Battery ($/kWhr) | AP2: # Thermal Storage ($/kWhr) | AQ2: Heating Load % Reduction ($/ft2/%) | AR2: Cooling Load % Reduction ($/ft2/%) | AS2: DHW % Reduction avg allowance ($/unit) | AT2: Plug Load reduction ($/unit) | AU2: Lighting Load % Reduction ($/ft2) | AW2: ASHP Cost | AX2: GSHP Cost | AY2: SDHW (INPUT) | AZ2: PV #(INPUT) | BA2: Battery Cost | BB2: Thermal Storage | BC2: Heating Load Reduction | BD2: Cooling Load Reduction | BE2: DHW Reduction | BF2: Plug Load reduction | BG2: Lighting Load Reduction
A3: =Financial!A136 -> Before 1946 All dwellings , Single Detached, Single Attached, Apart., Mob. H. | B3: =IF(Scenario=1,B23,IF(Scenario=2,B43,IF(Scenario=3,B63,IF(Scenario=4,B83,IF(Scenario=5,B103,IF(Scenario=6,B123,IF(Scenario=7,B143,IF(Scenario=8,B163,IF(Scenario=9,B183,IF(Scenario=10,B203,IF(Scenario=11,B223,IF(Scenario=12,B243,IF(Scenario=13,B263,IF(Scenario=14,B283,IF(Scenario=15,B303))))))))))))))) -> 127 | C3: =IF(Scenario=1,C23,IF(Scenario=2,C43,IF(Scenario=3,C63,IF(Scenario=4,C83,IF(Scenario=5,C103,IF(Scenario=6,C123,IF(Scenario=7,C143,IF(Scenario=8,C163,IF(Scenario=9,C183,IF(Scenario=10,C203,IF(Scenario=11,C223,IF(Scenario=12,C243,IF(Scenario=13,C263,IF(Scenario=14,C283,IF(Scenario=15,C303))))))))))))))) -> 73 | D3: 24 | E3: 0.81 | F3: 28 | G3: 2 | H3: 0 | I3: 28.9555 | J3: Fossil fuel | K3: 0 | L3: 0 | M3: 0 | N3: 0 | O3: =IF(Scenario=1,P23,IF(Scenario=2,P43,IF(Scenario=3,P63,IF(Scenario=4,P83,IF(Scenario=5,P103,IF(Scenario=6,P123,IF(Scenario=7,P143,IF(Scenario=8,P163,IF(Scenario=9,P183,IF(Scenario=10,P203,IF(Scenario=11,P223,IF(Scenario=12,P243,IF(Scenario=13,P263,IF(Scenario=14,P283,IF(Scenario=15,P303))))))))))))))) -> 0 | P3: =IF(Scenario=1,S23,IF(Scenario=2,S43,IF(Scenario=3,S63,IF(Scenario=4,S83,IF(Scenario=5,S103,IF(Scenario=6,S123,IF(Scenario=7,S143,IF(Scenario=8,S163,IF(Scenario=9,S183,IF(Scenario=10,S203,IF(Scenario=11,S223,IF(Scenario=12,S243,IF(Scenario=13,S263,IF(Scenario=14,S283,IF(Scenario=15,S303))))))))))))))) -> 0 | Q3: =IF(Scenario=1,T23,IF(Scenario=2,T43,IF(Scenario=3,T63,IF(Scenario=4,T83,IF(Scenario=5,T103,IF(Scenario=6,T123,IF(Scenario=7,T143,IF(Scenario=8,T163,IF(Scenario=9,T183,IF(Scenario=10,T203,IF(Scenario=11,T223,IF(Scenario=12,T243,IF(Scenario=13,T263,IF(Scenario=14,T283,IF(Scenario=15,T303))))))))))))))) -> 0 | R3: =IF(Scenario=1,U23,IF(Scenario=2,U43,IF(Scenario=3,U63,IF(Scenario=4,U83,IF(Scenario=5,U103)))))*S3+IF(Scenario=6,U123,IF(Scenario=7,U143,IF(Scenario=8,U163,IF(Scenario=9,U183,IF(Scenario=10,U203)))))*S3 -> 0 | S3: =MAX(S$14,IF(Scenario=1,V23,IF(Scenario=2,V43,IF(Scenario=3,V63,IF(Scenario=4,V83,IF(Scenario=5,V103,IF(Scenario=6,V123,IF(Scenario=7,V143,IF(Scenario=8,V163,IF(Scenario=9,V183,IF(Scenario=10,V203,IF(Scenario=11,V223,IF(Scenario=12,V243,IF(Scenario=13,V263,IF(Scenario=14,V283,IF(Scenario=15,V303)))))))))))))))) -> 0 | T3: =IF(Scenario=1,W23,IF(Scenario=2,W43,IF(Scenario=3,W63,IF(Scenario=4,W83,IF(Scenario=5,W103,IF(Scenario=6,W123,IF(Scenario=7,W143,IF(Scenario=8,W163,IF(Scenario=9,W183,IF(Scenario=10,W203,IF(Scenario=11,W223,IF(Scenario=12,W243,IF(Scenario=13,W263,IF(Scenario=14,W283,IF(Scenario=15,W303))))))))))))))) -> 0 | U3: 11.31215449 | V3: 0 | Y3: 1020.349903 | Z3: 25 | AA3: 3.216554568 | AB3: 0 | AC3: =IF(Scenario=1,O23,IF(Scenario=2,O43,IF(Scenario=3,O63,IF(Scenario=4,O83,IF(Scenario=5,O103,IF(Scenario=6,O123,IF(Scenario=7,O143,IF(Scenario=8,O163,IF(Scenario=9,O183,IF(Scenario=10,O203,IF(Scenario=11,O223,IF(Scenario=12,O243,IF(Scenario=13,O263,IF(Scenario=14,O283,IF(Scenario=15,O303))))))))))))))) -> 13.5 | AD3: =IF(Scenario=1,Q23,IF(Scenario=2,Q43,IF(Scenario=3,Q63,IF(Scenario=4,Q83,IF(Scenario=5,Q103,IF(Scenario=6,Q123,IF(Scenario=7,Q143,IF(Scenario=8,Q163,IF(Scenario=9,Q183,IF(Scenario=10,Q203,IF(Scenario=11,Q223,IF(Scenario=12,Q243,IF(Scenario=13,Q263,IF(Scenario=14,Q283,IF(Scenario=15,Q303))))))))))))))) -> 240 | AE3: 1500 | AF3: 1200 | AG3: 1.5 | AH3: 5000 | AI3: 2500 | AJ3: 2500 | AK3: 2500 | AL3: 4000 | AM3: 2000 | AN3: 2000 | AO3: 200 | AP3: 25 | AQ3: 1 | AR3: 0.75 | AS3: 1000 | AT3: 3000 | AU3: 0.5 | AW3: 0 | AX3: 163140.2258 | AY3: 0 | AZ3: 12000 | BA3: 0 | BB3: 0 | BC3: 0 | BD3: 0 | BE3: 0 | BF3: 0 | BG3: 0
A4: =Financial!A137 -> 1946-1977 Large , Single Detached | B4: =IF(Scenario=1,B24,IF(Scenario=2,B44,IF(Scenario=3,B64,IF(Scenario=4,B84,IF(Scenario=5,B104,IF(Scenario=6,B124,IF(Scenario=7,B144,IF(Scenario=8,B164,IF(Scenario=9,B184,IF(Scenario=10,B204,IF(Scenario=11,B224,IF(Scenario=12,B244,IF(Scenario=13,B264,IF(Scenario=14,B284,IF(Scenario=15,B304))))))))))))))) -> 57 | C4: 32 | D4: 12 | E4: 0.81 | F4: 12 | G4: 1 | H4: 0 | I4: 24.1785 | J4: Fossil fuel | K4: 0 | L4: 0 | M4: 0 | N4: 0 | O4: =IF(Scenario=1,P24,IF(Scenario=2,P44,IF(Scenario=3,P64,IF(Scenario=4,P84,IF(Scenario=5,P104,IF(Scenario=6,P124,IF(Scenario=7,P144,IF(Scenario=8,P164,IF(Scenario=9,P184,IF(Scenario=10,P204,IF(Scenario=11,P224,IF(Scenario=12,P244,IF(Scenario=13,P264,IF(Scenario=14,P284,IF(Scenario=15,P304))))))))))))))) -> 0 | P4: 0 | Q4: 0 | R4: 0 | S4: 0 | T4: 0 | U4: 9.185907689 | V4: 0 | Y4: 771.0199131 | Z4: 25 | AA4: 2.611966922 | AB4: 0 | AC4: 13.5 | AD4: 240 | AE4: 1500 | AF4: 1200 | AG4: 1 | AH4: 5000 | AI4: 2500 | AJ4: 2500 | AK4: 2500 | AL4: 4000 | AM4: 2000 | AN4: 2000 | AO4: 200 | AP4: 25 | AQ4: 1 | AR4: 0.75 | AS4: 1000 | AT4: 3000 | AU4: 0.5 | AW4: 0 | AX4: 144199.7321 | AY4: 0 | AZ4: 0 | BA4: 0 | BB4: 0 | BC4: 0 | BD4: 0 | BE4: 0 | BF4: 0 | BG4: 0
A5: =Financial!A138 -> 1946-1977 , Single Detached, Single Detached, Apart., Mob. H. | B5: =IF(Scenario=1,B25,IF(Scenario=2,B45,IF(Scenario=3,B65,IF(Scenario=4,B85,IF(Scenario=5,B105,IF(Scenario=6,B125,IF(Scenario=7,B145,IF(Scenario=8,B165,IF(Scenario=9,B185,IF(Scenario=10,B205,IF(Scenario=11,B225,IF(Scenario=12,B245,IF(Scenario=13,B265,IF(Scenario=14,B285,IF(Scenario=15,B305))))))))))))))) -> 140 | C5: 80 | D5: 4 | E5: 0.81 | F5: 31 | G5: 25 | H5: 0 | I5: 15.7799 | J5: Fossil fuel | K5: 0 | L5: 0 | M5: 0 | N5: 0 | O5: 0 | P5: 0 | Q5: =IF(Scenario=1,T25,IF(Scenario=2,T45,IF(Scenario=3,T65,IF(Scenario=4,T85,IF(Scenario=5,T105,IF(Scenario=6,T125,IF(Scenario=7,T145,IF(Scenario=8,T165,IF(Scenario=9,T185,IF(Scenario=10,T205,IF(Scenario=11,T225,IF(Scenario=12,T245,IF(Scenario=13,T265,IF(Scenario=14,T285,IF(Scenario=15,T305))))))))))))))) -> 0.25 | R5: 0 | S5: 0 | T5: 0 | U5: 9.535936498 | V5: 5.178118212 | Y5: 905.4734117 | Z5: 80 | AA5: 2.711495863 | AB5: 1.472372023 | AC5: 13.5 | AD5: 240 | AE5: 1500 | AF5: 1200 | AG5: 0.5 | AH5: 5000 | AI5: 2500 | AJ5: 2500 | AK5: 2500 | AL5: 4000 | AM5: 2000 | AN5: 2000 | AO5: 200 | AP5: 25 | AQ5: 1 | AR5: 0.75 | AS5: 1000 | AT5: 3000 | AU5: 0.5 | AW5: 0 | AX5: 453684.2614 | AY5: 0 | AZ5: 0 | BA5: 0 | BB5: 0 | BC5: 0 | BD5: 0 | BE5: 0 | BF5: 0 | BG5: 0
A6: =Financial!A139 -> 1978-1995 Small , Apart., Mob. H. | B6: =IF(Scenario=1,B26,IF(Scenario=2,B46,IF(Scenario=3,B66,IF(Scenario=4,B86,IF(Scenario=5,B106,IF(Scenario=6,B126,IF(Scenario=7,B146,IF(Scenario=8,B166,IF(Scenario=9,B186,IF(Scenario=10,B206,IF(Scenario=11,B226,IF(Scenario=12,B246,IF(Scenario=13,B266,IF(Scenario=14,B286,IF(Scenario=15,B306))))))))))))))) -> 87 | C6: 50 | D6: 3 | E6: 0.81 | F6: 19 | G6: 15 | H6: 0 | I6: 9.0708 | J6: Fossil fuel | K6: 0 | L6: 0 | M6: 0 | N6: 0 | O6: 0 | P6: 0 | Q6: =IF(Scenario=1,T26,IF(Scenario=2,T46,IF(Scenario=3,T66,IF(Scenario=4,T86,IF(Scenario=5,T106,IF(Scenario=6,T126,IF(Scenario=7,T146,IF(Scenario=8,T166,IF(Scenario=9,T186,IF(Scenario=10,T206,IF(Scenario=11,T226,IF(Scenario=12,T246,IF(Scenario=13,T266,IF(Scenario=14,T286,IF(Scenario=15,T306))))))))))))))) -> 0.25 | R6: 0 | S6: 0 | T6: 0 | U6: 11.29933916 | V6: 3.64553975 | Y6: 905.4734117 | Z6: 81 | AA6: 3.212910594 | AB6: 1.036591 | AC6: 13.5 | AD6: 240 | AE6: 1500 | AF6: 1200 | AG6: 2 | AH6: 5000 | AI6: 2500 | AJ6: 2500 | AK6: 3500 | AL6: 4000 | AM6: 2000 | AN6: 1000 | AO6: 200 | AP6: 25 | AQ6: 1 | AR6: 0.75 | AS6: 1000 | AT6: 5000 | AU6: 0.25 | AW6: 0 | AX6: 539746.9452 | AY6: 0 | AZ6: 0 | BA6: 0 | BB6: 0 | BC6: 0 | BD6: 0 | BE6: 0 | BF6: 0 | BG6: 0
A7: =Financial!A140 -> 1978-1995 Large , Single Detached | B7: =IF(Scenario=1,B27,IF(Scenario=2,B47,IF(Scenario=3,B67,IF(Scenario=4,B87,IF(Scenario=5,B107,IF(Scenario=6,B127,IF(Scenario=7,B147,IF(Scenario=8,B167,IF(Scenario=9,B187,IF(Scenario=10,B207,IF(Scenario=11,B227,IF(Scenario=12,B247,IF(Scenario=13,B267,IF(Scenario=14,B287,IF(Scenario=15,B307))))))))))))))) -> 39 | C7: 22 | D7: 8 | E7: 0.81 | F7: 8 | G7: 1 | H7: 0 | I7: 20.3664 | J7: Fossil fuel | K7: 0 | L7: 0 | M7: 0 | N7: 0 | O7: 0 | P7: 0 | Q7: 0 | R7: 0 | S7: 0 | T7: 0 | U7: 10.2615339 | V7: 0 | Y7: 1153.986744 | Z7: 57 | AA7: 2.917815855 | AB7: 0 | AC7: 13.5 | AD7: 240 | AE7: 1500 | AF7: 1200 | AG7: 1.5 | AH7: 5000 | AI7: 2500 | AJ7: 2500 | AK7: 3500 | AL7: 4000 | AM7: 2000 | AN7: 1000 | AO7: 200 | AP7: 25 | AQ7: 1 | AR7: 0.75 | AS7: 1000 | AT7: 5000 | AU7: 0.25 | AW7: 0 | AX7: 367030.1232 | AY7: 0 | AZ7: 0 | BA7: 0 | BB7: 0 | BC7: 0 | BD7: 0 | BE7: 0 | BF7: 0 | BG7: 0
A8: =Financial!A141 -> 1978-1995 , Single Detached, Single Attached, Apart. | B8: =IF(Scenario=1,B28,IF(Scenario=2,B48,IF(Scenario=3,B68,IF(Scenario=4,B88,IF(Scenario=5,B108,IF(Scenario=6,B128,IF(Scenario=7,B148,IF(Scenario=8,B168,IF(Scenario=9,B188,IF(Scenario=10,B208,IF(Scenario=11,B228,IF(Scenario=12,B248,IF(Scenario=13,B268,IF(Scenario=14,B288,IF(Scenario=15,B308))))))))))))))) -> 200 | C8: 115 | D8: 37 | E8: 0.81 | F8: 44 | G8: 4 | H8: 0 | I8: 14.9618 | J8: Fossil fuel | K8: 0 | L8: 100 | M8: 4 | N8: 0 | O8: 0 | P8: 0 | Q8: 0 | R8: 0 | S8: 0 | T8: 0 | U8: 12.73195985 | V8: 0 | Y8: 1192.915543 | Z8: 65 | AA8: 3.620269122 | AB8: 0 | AC8: 13.5 | AD8: 240 | AE8: 1500 | AF8: 1200 | AG8: 1 | AH8: 5000 | AI8: 2500 | AJ8: 2500 | AK8: 3500 | AL8: 4000 | AM8: 2000 | AN8: 1000 | AO8: 200 | AP8: 25 | AQ8: 1 | AR8: 0.75 | AS8: 1000 | AT8: 5000 | AU8: 0.25 | AW8: 0 | AX8: 429593.1882 | AY8: 0 | AZ8: 0 | BA8: 0 | BB8: 0 | BC8: 0 | BD8: 0 | BE8: 0 | BF8: 0 | BG8: 0
A9: =Financial!A142 -> 1996-2010 Two Storey , Single Detached | B9: =IF(Scenario=1,B29,IF(Scenario=2,B49,IF(Scenario=3,B69,IF(Scenario=4,B89,IF(Scenario=5,B109,IF(Scenario=6,B129,IF(Scenario=7,B149,IF(Scenario=8,B169,IF(Scenario=9,B189,IF(Scenario=10,B209,IF(Scenario=11,B229,IF(Scenario=12,B249,IF(Scenario=13,B269,IF(Scenario=14,B289,IF(Scenario=15,B309))))))))))))))) -> 138 | C9: 79 | D9: 27 | E9: 0.81 | F9: 30 | G9: 2 | H9: 0 | I9: 17.6279 | J9: Fossil fuel | K9: 0 | L9: 65 | M9: 5 | N9: 0 | O9: 0 | P9: 0 | Q9: 0 | R9: 0 | S9: 0 | T9: 0 | U9: 11.61947365 | V9: 3.962618226 | Y9: 1192.915543 | Z9: 66 | AA9: 3.303939236 | AB9: 1.126750679 | AC9: 13.5 | AD9: 240 | AE9: 1500 | AF9: 1200 | AG9: 1.5 | AH9: 5000 | AI9: 2500 | AJ9: 2500 | AK9: 3000 | AL9: 4000 | AM9: 2000 | AN9: 1000 | AO9: 200 | AP9: 25 | AQ9: 1 | AR9: 0.75 | AS9: 1000 | AT9: 4000 | AU9: 0.25 | AW9: 0 | AX9: 442836.8129 | AY9: 0 | AZ9: 0 | BA9: 0 | BB9: 0 | BC9: 0 | BD9: 0 | BE9: 0 | BF9: 0 | BG9: 0
A10: =Financial!A143 -> 1996-2010 Small , Single Attached, Single Attached, Apart., Mob. H. | B10: =IF(Scenario=1,B30,IF(Scenario=2,B50,IF(Scenario=3,B70,IF(Scenario=4,B90,IF(Scenario=5,B110,IF(Scenario=6,B130,IF(Scenario=7,B150,IF(Scenario=8,B170,IF(Scenario=9,B190,IF(Scenario=10,B210,IF(Scenario=11,B230,IF(Scenario=12,B250,IF(Scenario=13,B270,IF(Scenario=14,B290,IF(Scenario=15,B310))))))))))))))) -> 104 | C10: 60 | D10: 19 | E10: 0.81 | F10: 23 | G10: 2 | H10: 0 | I10: 13.7496 | J10: Fossil fuel | K10: 0 | L10: 0 | M10: 0 | N10: 0 | O10: 0 | P10: 0 | Q10: 0 | R10: 0 | S10: 0 | T10: 0 | U10: 18.33921279 | V10: 3.546906053 | Y10: 1622.077966 | Z10: 32 | AA10: 5.21466346 | AB10: 1.008545002 | AC10: 13.5 | AD10: 240 | AE10: 2500 | AF10: 1200 | AG10: 2 | AH10: 5000 | AI10: 2500 | AJ10: 2500 | AK10: 2500 | AL10: 4000 | AM10: 2000 | AN10: 1000 | AO10: 200 | AP10: 25 | AQ10: 1 | AR10: 0.75 | AS10: 1000 | AT10: 2000 | AU10: 0.25 | AW10: 0 | AX10: 276199.7641 | AY10: 0 | AZ10: 0 | BA10: 0 | BB10: 0 | BC10: 0 | BD10: 0 | BE10: 0 | BF10: 0 | BG10: 0
A11: =Financial!A144 -> 1996-2010 , Single Detached, Single Attached, Apart. | B11: =IF(Scenario=1,B31,IF(Scenario=2,B51,IF(Scenario=3,B71,IF(Scenario=4,B91,IF(Scenario=5,B111,IF(Scenario=6,B131,IF(Scenario=7,B151,IF(Scenario=8,B171,IF(Scenario=9,B191,IF(Scenario=10,B211,IF(Scenario=11,B231,IF(Scenario=12,B251,IF(Scenario=13,B271,IF(Scenario=14,B291,IF(Scenario=15,B311))))))))))))))) -> 104 | C11: 60 | D11: 19 | E11: 0.81 | F11: 23 | G11: 2 | H11: 0 | I11: 14.3357 | J11: Fossil fuel | K11: 0 | L11: 0 | M11: 0 | N11: 0 | O11: 0 | P11: 0 | Q11: 0 | R11: 0 | S11: 0 | T11: 0 | U11: 10.5991273 | V11: 0 | Y11: 1347.827825 | Z11: 16 | AA11: 3.013808853 | AB11: 0 | AC11: 13.5 | AD11: 240 | AE11: 2500 | AF11: 1200 | AG11: 2 | AH11: 7000 | AI11: 2500 | AJ11: 2000 | AK11: 2500 | AL11: 4000 | AM11: 2000 | AN11: 5000 | AO11: 200 | AP11: 20 | AQ11: 1 | AR11: 0.75 | AS11: 1000 | AT11: 2000 | AU11: 0.25 | AW11: 0 | AX11: 121675.716 | AY11: 0 | AZ11: 0 | BA11: 0 | BB11: 0 | BC11: 0 | BD11: 0 | BE11: 0 | BF11: 0 | BG11: 0
A12: =Financial!A145 -> 2011-2020 Small , Single Detached, Single Attached, Apart., Mob. H. | B12: =IF(Scenario=1,B32,IF(Scenario=2,B52,IF(Scenario=3,B72,IF(Scenario=4,B92,IF(Scenario=5,B112,IF(Scenario=6,B132,IF(Scenario=7,B152,IF(Scenario=8,B172,IF(Scenario=9,B192,IF(Scenario=10,B212,IF(Scenario=11,B232,IF(Scenario=12,B252,IF(Scenario=13,B272,IF(Scenario=14,B292,IF(Scenario=15,B312))))))))))))))) -> 131 | C12: 46 | D12: 16 | E12: 0.81 | F12: 18 | G12: 51 | H12: 0 | I12: 8.1215 | J12: Fossil fuel | K12: 0 | L12: 0 | M12: 0 | N12: 0 | O12: 0 | P12: 0 | Q12: 0 | R12: 0 | S12: 0 | T12: 0 | U12: 15.09915264 | V12: 7.447999835 | Y12: 1681.285712 | Z12: 3 | AA12: 4.293368558 | AB12: 2.117801513 | AC12: 13.5 | AD12: 240 | AE12: 10000 | AF12: 1000 | AG12: 1 | AH12: 7000 | AI12: 2500 | AJ12: 2000 | AK12: 2500 | AL12: 4000 | AM12: 2000 | AN12: 5000 | AO12: 200 | AP12: 20 | AQ12: 1 | AR12: 0.75 | AS12: 1000 | AT12: 5000 | AU12: 0.25 | AW12: 0 | AX12: 23211.9814 | AY12: 0 | AZ12: 0 | BA12: 0 | BB12: 0 | BC12: 0 | BD12: 0 | BE12: 0 | BF12: 0 | BG12: 0
A13: =Financial!A146 -> 2011-2020 , Single Detached, Single Attached, Apart. | B13: =IF(Scenario=1,B33,IF(Scenario=2,B53,IF(Scenario=3,B73,IF(Scenario=4,B93,IF(Scenario=5,B113,IF(Scenario=6,B133,IF(Scenario=7,B153,IF(Scenario=8,B173,IF(Scenario=9,B193,IF(Scenario=10,B213,IF(Scenario=11,B233,IF(Scenario=12,B253,IF(Scenario=13,B273,IF(Scenario=14,B293,IF(Scenario=15,B313))))))))))))))) -> 164 | C13: 65 | D13: 22 | E13: 0.81 | F13: 25 | G13: 52 | H13: 0 | I13: 7.8538 | J13: Fossil fuel | K13: 0 | L13: 0 | M13: 0 | N13: 0 | O13: 0 | P13: 0 | Q13: 0 | R13: 0 | S13: 0 | T13: 0 | U13: 12.31589645 | V13: 5.019131403 | Y13: 1681.285712 | Z13: 4 | AA13: 3.501963575 | AB13: 1.427164919 | AC13: 13.5 | AD13: 240 | AE13: 15000 | AF13: 1000 | AG13: 4 | AH13: 20000 | AI13: 5000 | AJ13: 2000 | AK13: 20000 | AL13: 20000 | AM13: 2000 | AN13: 10000 | AO13: 200 | AP13: 20 | AQ13: 3 | AR13: 1.5 | AS13: 20000 | AT13: 10000 | AU13: 0.25 | AW13: 0 | AX13: 70454.21284 | AY13: 0 | AZ13: 0 | BA13: 0 | BB13: 0 | BC13: 0 | BD13: 0 | BE13: 0 | BF13: 0 | BG13: 0
E14: Source: Statistics Canada. Table 98-10-0002-02 Population and dwelling counts: Canada, provinces and territories, and census subdivisions (municipalities)
A15: ='User Input Output'!K18 -> Quebec | E15: Default number of buildings in 2016 | J15: =SUMIF(Cities!B13:B1991,'User Input Output'!$K18,Cities!D13:D1991) -> 3858943 | K15: and in 2021 | M15: =SUMIF(Cities!B13:B1991,'User Input Output'!$K18,Cities!C13:C1991) -> 4050164 | N15: growth / yr | P15: =(M15/J15-1)/5 -> 0.009910537678 | Q15: For current year | T15: 2023 | U15: suggested no. of bldgs: | W15: =IF(P15<0,M15,INT(M15*(1+P15)^(T15-2021))) -> 4130840 | BQ15: Les augmentations ou diminutions d'un paramètre par rapport au scénario précédent sont mises en évidence comme telles:
K16: =IF(lang="English","Legend:","Légende:") -> Legend: | L16: =IF(lang="English","input","entrée de données") -> input | M16: =IF(lang="English","input","données par défaut") -> input | N16: =IF(lang="English","calculated result","résultat calculé") -> calculated result | O16: =IF(lang="English","calculated default","défaut calculé") -> calculated default | R16: =IF(Scenario=1,R23,IF(Scenario=2,R43,IF(Scenario=3,R63,IF(Scenario=4,R83,IF(Scenario=5,R103,IF(Scenario=6,R123,IF(Scenario=7,R143,IF(Scenario=8,R163,IF(Scenario=9,R183,IF(Scenario=10,R203,IF(Scenario=11,R223,IF(Scenario=12,R243,IF(Scenario=13,R263,IF(Scenario=14,R283,IF(Scenario=15,R303))))))))))))))) -> 0 | S16: Most recent archetype(s) count increased by | W16: =W15-M15 -> 80676
A17: Année de référence/baseline year: | C17: 2020 | E17: Date: | F17: =TODAY() -> 2024-11-07 | Q17: =IF(lang="English","Press F9 after entering data.","Appuyez sur F9 après avoir entrée les données") -> Press F9 after entering data.
A18: =IF(lang="English","Estimated number of buildings at that time:","Numéro approximatif d'unités en cette année") -> Estimated number of buildings at that time: | C18: =IF(P15<0,M15,INT(M15*(1+P15)^(C17-2021))) -> 4010418 | Q18: =IF(lang="English","Scroll down to define additional scenarios","Faites défiler vers le bas pour définir des scénarios supplémentaires") -> Scroll down to define additional scenarios | BQ18: Augmentation | BS18: Diminution
D19: =IF(lang="English"," Select space heating method"," Sélectionnez la méthode de chauffage des locaux") -> Select space heating method | K19: =IF(lang="English"," Additional low carbon energy technology options","Options supplémentaires de systèmes énergétiques à faible émission de carbone (SEFEC)") -> Additional low carbon energy technology options | S19: =IF(lang="English","Energy conservation measures (ECMs)","Mesures d'économie d'énergie (MEE)") -> Energy conservation measures (ECMs)
C20: =IF(lang="English","Electricity","Électricité") -> Electricity | D20: Combustion | G20: =IF(lang="English","Heat pump","Thermopompe") -> Heat pump | I20: =IF(lang="English","Hybrid","Hybride") -> Hybrid | K20: =IF(lang="English"," Enter number of buildings to be upgraded and capacities"," Entrez le nombre de bâtiments à moderniser et les capacités des systèmes") -> Enter number of buildings to be upgraded and capacities | S20: =IF(lang="English","( energy retrofit and appliances ugrades)","(rénovation énergétique et mise à niveau des électroménagers)") -> ( energy retrofit and appliances ugrades) | BO20: Translations"
A21: =IF(lang="English","Archetype","Archétype") -> Archetype | B21: Total number of buildings Nombre total d'unites (ea.) | C21: Baseboard or electric furnace Plinthe ou fournaise électrique (ea.) | D21: =Financial!M127 -> gas | E21: Efficiency Efficacité (%) | F21: Wood Bois de chaufage (ea.) | G21: Air source heat pump thermo- pompe source air (ASHP) (ea.) | H21: Ground source heat pump Thermopompe source sol (GSHP) (ea.) | I21: Capacity of heap pump. Capacité de la thermopompe (HP) (kW) | J21: Heat Pump/ Hybrid Thermopompe /hybride option (select below) | K21: Solar domestic water heater Chauffe-eau solaire (SDHW) (ea.) | L21: Photo- voltaic array Panneaux solaires (PV) (ea.) | M21: Capacity of PV array per building Capacité des panneaux solaires par unité (kWp) | N21: Battery electricity storage Stockage d’électricité par batterie (BES) (ea.) | O21: Battery electricity storage capacity Capacité de stockage d’électricité de la batterie (kWhr) | P21: Thermal energy storage (TES) Stockage d'énergie thermique (ea.) | Q21: Thermal energy storage capacity Capacité de stockage d’énergie thermique (kWh) | R21: Number of buildings retrofited (ea.) | S21: Heating Load Reduction Réduction de la charge de chauffage (%) | T21: Cooling Load Reduction Réduction de la charge de refroi- dissement (%) | U21: Domestic Hot Water Reduction Réduction d'énergie pour l'eau chaude (%) | V21: Lighting Load Reduction Réduction de la charge d'éclairage (%) | W21: Plug Load Reduction Réduction de charge des prises électriques (%) | AA21: Average area per building (ft²) | AB21: # of Buildings | AC21: Peak heat load post measures (tons/ building) | AD21: Post measures Peak cooling load (tons/ building) | AE21: Battery bank capacity (kWhrs) | AF21: Thermal storage capacity (kWhrs) | AG21: ASHP (intercept equipment) ( $/unit) | AH21: ASHP ($/ton) | AI21: AS/GS HP (ductwork upgrade average allowance) ($/ft2) | AJ21: AS/GS HP (electrical service upgrade avg allowance) ($/unit) | AK21: GSHP (intercept equipment) ($/unit) | AL21: GSHP ($/ton) | AM21: SDHW ($/each) | AN21: DHW HP ($/each) | AO21: PV ($/kWp) | AP21: indirect cost PV installation ($/building) | AQ21: Battery ($/kWhr) | AR21: # Thermal Storage ($/kWhr) | AS21: Heating Load % Reduction ($/ft2/%) | AT21: Cooling Load % Reduction ($/ft2/%) | AU21: DHW % Reduction avg allowance ($/unit) | AV21: Plug Load reduction ($/unit) | AW21: Lighting Load % Reduction ($/ft2) | AY21: ASHP Cost | AZ21: GSHP Cost | BA21: =K21 -> Solar domestic water heater Chauffe-eau solaire (SDHW) (ea.) | BB21: =L21 -> Photo- voltaic array Panneaux solaires (PV) (ea.) | BC21: Battery Cost | BD21: Thermal Storage | BE21: Heating Load Reduction | BF21: Cooling Load Reduction | BG21: DHW Reduction | BH21: Plug Load reduction | BI21: Lighting Load Reduction | BO21: Note: For the reference year, adjust count of most recent archetypes and their space heating methods to reflect the smaller building stock of the reference year. This can be done by consulting the vintage field in the property tax database, for example. Example, adjust numbers in Cells B30 to B33 to get to the estimated number of buildings as of the end of reference year chosen. See manual section on selecting reference year. Adjust number of heating system in Cells C30 to C33 and F30 to H33. By defining estimated number of electric furnace or baseboard, wood and heat pump, the number of fossil fuel heating system is automatically calculated to complete the count.
A22: =IF(lang="English","Scenario number 1 year:","Scénario no. 1 année:") -> Scenario number 1 year: | B22: =C17 -> 2020 | C22: =IF(lang="English",CONCATENATE("Baseline scenario ",C17),CONCATENATE("Scénario de référence ",C17)) -> Baseline scenario 2020 | H22: =IF(B34=H35,"","Building number does not match number of heating system entered") ->  | BO22: Remarque : Pour l'année de référence, ajustez le nombre d'archétypes les plus récents et leurs méthodes de chauffage des locaux pour refléter le parc immobilier plus petit de l'année de référence. Cela peut se faire en consultant par exemple le champ "année de construction" dans la base de données de la taxe foncière. Par exemple, ajustez les nombres dans les cellules B30 à B33 pour obtenir le nombre estimé de bâtiments à la fin de l'année de référence choisie. Voir le manuel pour « sélection de l'année de référence ». Ajustez le nombre de systèmes de chauffage dans les cellules C30 à C33 et F30 à H33. En définissant le nombre estimé de fournaises électriques ou de systèmes de plinthes electriques, de chauffage au bois et de pompe à chaleur, le nombre de systèmes de chauffage à combustibles fossiles est automatiquement calculé pour compléter le décompte.
A23: =A3 -> Before 1946 All dwellings , Single Detached, Single Attached, Apart., Mob. H. | B23: =B43 -> 543304 | C23: =INT($B23*Financial!M$126) -> 337146 | D23: =B23-(C23+F23+G23+H23) -> 87896 | E23: =Financial!M$129 -> 0.9536405551 | F23: =INT(B23*Financial!M$130) -> 93898 | G23: =INT(B23*Financial!M$131+0.5) -> 24364 | I23: =Statistics!R$54/1000*(1-S23) -> 28.9555 | J23: Fossil fuel | O23: 13.5 | Q23: 240 | X23: =IF(B23=C23+D23+F23+G23+H23,"","error") ->  | AA23: =CONVERT(MAIN!C2,"m2","ft2") -> 2182.921033 | AB23: =B23 -> 543304 | AC23: =I23*0.284345 -> 8.233351648 | AD23: =Y23*0.284345 -> 0 | AE23: =13.5*N23 -> 0 | AF23: =MAIN!Y2 -> 240 | AG23: 1500 | AH23: 1200 | AI23: 1.5 | AJ23: 5000 | AK23: 2500 | AL23: 2500 | AM23: 2500 | AN23: 4000 | AO23: 2000 | AP23: 2000 | AQ23: 200 | AR23: 25 | AS23: 1 | AT23: 0.75 | AU23: 1000 | AV23: 3000 | AW23: 0.5 | AY23: =(AG23+MAX(AC23,AD23)*AH23+AI23*AA23+AJ23)*G23 -> 478859887.5 | AZ23: =(AK23+I23*0.284345*AL23+AI23*AA23+AJ23)*H23 -> 0 | BA23: =AM23*K23 -> 0 | BB23: =AP23*L23+(M23*AO23)*IF(L23=0,0,1) -> 0 | BC23: =AQ23*AE23*N23 -> 0 | BD23: =AR23*AF23*P23 -> 0 | BE23: =AS23*AA23*B23*S23 -> 0 | BF23: =AT23*AA23*B23*T23 -> 0 | BG23: =AU23*B23*IF(U23=0,0,1) -> 0 | BH23: =AV23*B23*IF(W23=0,0,1) -> 0 | BI23: =AW23*B23*IF(W23=0,0,1) -> 0
A24: =A4 -> 1946-1977 Large , Single Detached | B24: =B44 -> 247881 | C24: =INT($B24*Financial!M$126) -> 153822 | D24: =B24-(C24+F24+G24+H24) -> 40103 | E24: =Financial!M$129 -> 0.9536405551 | F24: =INT(B24*Financial!M$130) -> 42840 | G24: =INT(B24*Financial!M$131+0.5) -> 11116 | I24: =Statistics!R$55/1000*(1-S24) -> 24.1785 | J24: Fossil fuel | O24: 13.5 | Q24: 240 | X24: =IF(B24=C24+D24+F24+G24+H24,"","error") ->  | AA24: =CONVERT(MAIN!C3,"m2","ft2") -> 6110.671944 | AB24: 247881 | AC24: =I24*0.284345 -> 6.875035583 | AD24: 0 | AE24: 0 | AF24: =MAIN!Y3 -> 240 | AG24: =AG23 -> 1500 | AH24: 1200 | AI24: 1 | AJ24: =AJ23 -> 5000 | AK24: 2500 | AL24: 2500 | AM24: 2500 | AN24: =AN23 -> 4000 | AO24: =AO23 -> 2000 | AP24: 2000 | AQ24: =AQ23 -> 200 | AR24: =AR23 -> 25 | AS24: =AS23 -> 1 | AT24: 0.75 | AU24: 1000 | AV24: =AV23 -> 3000 | AW24: =AW23 -> 0.5 | AY24: =(AG24+MAX(AC24,AD24)*AH24+AI24*AA24+AJ24)*G24 -> 231887704 | AZ24: 0 | BA24: 0 | BB24: 0 | BC24: 0 | BD24: 0 | BE24: 0 | BF24: 0 | BG24: 0 | BH24: 0 | BI24: 0 | BO24: Note: For current status year, perform an approximate validation of the archetypes mix and heating methods. Adjust accordingly should there be significant discrepancies from the provincial averages used by CTAP. See "Statistics" Tab for assumptions. Total number of buildings in Cell B54 must be equal to Cell W15.
A25: 1946-1977 , Single Detached, Single Detached, Apart., Mob. H. | B25: 768095 | C25: =INT($B25*Financial!M$126) -> 476639 | D25: 124263 | E25: =Financial!M$129 -> 0.9536405551 | F25: =INT(B25*Financial!M$130) -> 132748 | G25: =INT(B25*Financial!M$131+0.5) -> 34445 | I25: =Statistics!R$56/1000*(1-S25) -> 15.7799 | J25: Fossil fuel | O25: 13.5 | Q25: 240 | AA25: =CONVERT(MAIN!C4,"m2","ft2") -> 2045.142979 | AB25: 768095 | AC25: 4.486935665 | AD25: 0 | AE25: 0 | AF25: =MAIN!Y4 -> 240 | AG25: 1500 | AH25: 1200 | AI25: 0.5 | AJ25: =AJ24 -> 5000 | AK25: 2500 | AL25: 2500 | AM25: 2500 | AN25: =AN24 -> 4000 | AO25: 2000 | AP25: 2000 | AQ25: =AQ24 -> 200 | AR25: =AR24 -> 25 | AS25: 1 | AT25: 0.75 | AU25: 1000 | AV25: =AV24 -> 3000 | AW25: =AW24 -> 0.5 | AY25: 444577973.8 | AZ25: 0 | BA25: 0 | BB25: 0 | BC25: 0 | BD25: 0 | BE25: 0 | BF25: 0 | BG25: 0 | BH25: 0 | BI25: 0 | BO25: Remarque : Pour l'année en cours, effectuez une validation approximative du mélange d'archétypes et des méthodes de chauffage. Ajuster en conséquence s'il y a des écarts importants par rapport aux moyennes provinciales utilisées par le CTAP. Voir l'onglet « Statistics » pour les hypothèses. Le nombre total de bâtiments dans la cellule B54 doit être égal à la cellule W15.
A26: 1978-1995 Small , Apart., Mob. H. | B26: 289882 | C26: =INT($B26*Financial!M$126) -> 179885 | D26: 46898 | E26: =Financial!M$129 -> 0.9536405551 | F26: =INT(B26*Financial!M$130) -> 50099 | G26: =INT(B26*Financial!M$131+0.5) -> 13000 | I26: =Statistics!R$57/1000*(1-S26) -> 9.0708 | J26: Fossil fuel | O26: 13.5 | Q26: 240 | AA26: =CONVERT(MAIN!C5,"m2","ft2") -> 581.2511625 | AB26: 289882 | AC26: 2.579236626 | AD26: 0 | AE26: 0 | AF26: =MAIN!Y5 -> 240 | AG26: 1500 | AH26: 1200 | AI26: 2 | AJ26: 5000 | AK26: 2500 | AL26: 2500 | AM26: 3500 | AN26: 4000 | AO26: 2000 | AP26: 1000 | AQ26: =AQ25 -> 200 | AR26: 25 | AS26: 1 | AT26: 0.75 | AU26: 1000 | AV26: 5000 | AW26: 0.25 | AY26: 139848621.6 | AZ26: 0 | BA26: 0 | BB26: 0 | BC26: 0 | BD26: 0 | BE26: 0 | BF26: 0 | BG26: 0 | BH26: 0 | BI26: 0
A27: 1978-1995 Large , Single Detached | B27: 263856 | C27: =INT($B27*Financial!M$126) -> 163735 | D27: 42687 | E27: =Financial!M$129 -> 0.9536405551 | F27: =INT(B27*Financial!M$130) -> 45601 | G27: =INT(B27*Financial!M$131+0.5) -> 11833 | I27: =Statistics!R$58/1000*(1-S27) -> 20.3664 | J27: Fossil fuel | O27: 13.5 | Q27: 240 | AA27: =CONVERT(MAIN!C6,"m2","ft2") -> 4515.46042 | AB27: 263856 | AC27: 5.791084008 | AD27: 0 | AE27: 0 | AF27: =MAIN!Y6 -> 240 | AG27: 1500 | AH27: 1200 | AI27: 1.5 | AJ27: 5000 | AK27: 2500 | AL27: 2500 | AM27: 3500 | AN27: 4000 | AO27: 2000 | AP27: 1000 | AQ27: 200 | AR27: 25 | AS27: 1 | AT27: 0.75 | AU27: 1000 | AV27: =AV26 -> 5000 | AW27: 0.25 | AY27: 239292741.2 | AZ27: 0 | BA27: 0 | BB27: 0 | BC27: 0 | BD27: 0 | BE27: 0 | BF27: 0 | BG27: 0 | BH27: 0 | BI27: 0 | BO27: Scenario 1 and Scenario 2 are reserved for "Reference Year" and "Current Status" respectively. Scenarios 3 to 15 are to be used to develop future scenarios. In doing so, make sure that the number of dwellings is adjusted upwards by increasing the count of the most recent archetype to reflect antecipated growth. When adding dwellings with improved energy performance compared to the most recent archetype, this improved efficiency can be captured by the reduction in energy demand as per the improved design in Columns S to W.
A28: 1978-1995 , Single Detached, Single Attached, Apart. | B28: 597434 | C28: =INT($B28*Financial!M$126) -> 370736 | D28: 96653 | E28: =Financial!M$129 -> 0.9536405551 | F28: =INT(B28*Financial!M$130) -> 103253 | G28: =INT(B28*Financial!M$131+0.5) -> 26792 | I28: =Statistics!R$59/1000*(1-S28) -> 14.9618 | J28: Fossil fuel | O28: 13.5 | Q28: 240 | AA28: =CONVERT(MAIN!C7,"m2","ft2") -> 947.2241167 | AB28: 597434 | AC28: 4.254313021 | AD28: 0 | AE28: 0 | AF28: =MAIN!Y7 -> 240 | AG28: 1500 | AH28: 1200 | AI28: 1 | AJ28: 5000 | AK28: 2500 | AL28: 2500 | AM28: 3500 | AN28: 4000 | AO28: 2000 | AP28: 1000 | AQ28: 200 | AR28: 25 | AS28: 1 | AT28: 0.75 | AU28: 1000 | AV28: =AV27 -> 5000 | AW28: 0.25 | AY28: 336303893.9 | AZ28: 0 | BA28: 0 | BB28: 0 | BC28: 0 | BD28: 0 | BE28: 0 | BF28: 0 | BG28: 0 | BH28: 0 | BI28: 0 | BO28: Le scénario 1 et le scénario 2 sont réservés respectivement à « Année de référence » et « Statut actuel ». Les scénarios 3 à 15 doivent être utilisés pour élaborer des scénarios futurs. Ce faisant, assurez-vous que le nombre de logements est ajusté à la hausse en augmentant le nombre de l'archétype le plus récent pour refléter la croissance prévue. Lors de l'ajout de logements présentant une performance énergétique améliorée par rapport à l'archétype le plus récent, cette efficacité améliorée peut être reflétée par la réduction de la demande énergétique conformément à la conception améliorée dans les colonnes S à W.
A29: 1996-2010 Two Storey , Single Detached | B29: 181270 | C29: =INT($B29*Financial!M$126) -> 112486 | D29: 29327 | E29: =Financial!M$129 -> 0.9536405551 | F29: =INT(B29*Financial!M$130) -> 31328 | G29: =INT(B29*Financial!M$131+0.5) -> 8129 | I29: =Statistics!R$60/1000*(1-S29) -> 17.6279 | J29: Fossil fuel | O29: 13.5 | Q29: 240 | AA29: =CONVERT(MAIN!C8,"m2","ft2") -> 2162.469603 | AB29: 181270 | AC29: 5.012405226 | AD29: 0 | AE29: 0 | AF29: =MAIN!Y8 -> 240 | AG29: 1500 | AH29: 1200 | AI29: 1.5 | AJ29: 5000 | AK29: 2500 | AL29: 2500 | AM29: 3000 | AN29: 4000 | AO29: 2000 | AP29: 1000 | AQ29: 200 | AR29: 25 | AS29: 1 | AT29: 0.75 | AU29: 1000 | AV29: 4000 | AW29: 0.25 | AY29: 128101583.6 | AZ29: 0 | BA29: 0 | BB29: 0 | BC29: 0 | BD29: 0 | BE29: 0 | BF29: 0 | BG29: 0 | BH29: 0 | BI29: 0
A30: 1996-2010 Small , Single Attached, Single Attached, Apart., Mob. H. | B30: 268693 | C30: =INT($B30*Financial!M$126) -> 166736 | D30: 43470 | E30: =Financial!M$129 -> 0.9536405551 | F30: =INT(B30*Financial!M$130) -> 46437 | G30: =INT(B30*Financial!M$131+0.5) -> 12050 | I30: =Statistics!R$61/1000*(1-S30) -> 13.7496 | J30: Fossil fuel | O30: 13.5 | Q30: 240 | AA30: =CONVERT(MAIN!C9,"m2","ft2") -> 1280.90534 | AB30: 268693 | AC30: 3.909630012 | AD30: 0 | AE30: 0 | AF30: =MAIN!Y9 -> 240 | AG30: 2500 | AH30: 1200 | AI30: 2 | AJ30: 5000 | AK30: 2500 | AL30: 2500 | AM30: 2500 | AN30: 4000 | AO30: 2000 | AP30: 1000 | AQ30: 200 | AR30: 25 | AS30: 1 | AT30: 0.75 | AU30: 1000 | AV30: 2000 | AW30: 0.25 | AY30: =(AG30+MAX(AC30,AD30)*AH30+AI30*AA30+AJ30)*G30 -> 177778068.7 | AZ30: 0 | BA30: 0 | BB30: 0 | BC30: 0 | BD30: 0 | BE30: 0 | BF30: 0 | BG30: 0 | BH30: 0 | BI30: 0 | BO30: When defining a future scenario, the interventions it contain can be cummulative to the ones included in the previous scenario. Alternatively, a scenario could be a totally new trial, starting from the current status scenario. To speed up the selections of interventions, the user can use the buttoms on the right to (1) copy the data defining the previous scenario into the one being worked on (the upper, blue button) or copy the data defining the current situation, when the scenario being worked on is a new approach all together (the lower, orange button). - This will take a few seconds - When changing data from the previous scenario, the cells are high-lighted for ease of refernce of the changes made.
A31: 1996-2010 , Single Detached, Single Attached, Apart. | B31: 410438 | C31: =INT($B31*Financial!M$126) -> 254696 | D31: 66401 | E31: =Financial!M$129 -> 0.9536405551 | F31: =INT(B31*Financial!M$130) -> 70935 | G31: =INT(B31*Financial!M$131+0.5) -> 18406 | I31: =Statistics!R$62/1000*(1-S31) -> 14.3357 | J31: Fossil fuel | O31: 13.5 | Q31: 240 | AA31: =CONVERT(MAIN!C10,"m2","ft2") -> 2038.684633 | AB31: 410438 | AC31: 4.076284617 | AD31: 0 | AE31: 0 | AF31: =MAIN!Y10 -> 240 | AG31: 2500 | AH31: 1200 | AI31: 2 | AJ31: 7000 | AK31: 2500 | AL31: 2000 | AM31: 2500 | AN31: 4000 | AO31: 2000 | AP31: 5000 | AQ31: 200 | AR31: 20 | AS31: 1 | AT31: 0.75 | AU31: 1000 | AV31: 2000 | AW31: =AW30 -> 0.25 | AY31: 339938772.3 | AZ31: 0 | BA31: 0 | BB31: 0 | BC31: 0 | BD31: 0 | BE31: 0 | BF31: 0 | BG31: 0 | BH31: 0 | BI31: 0 | BO31: Lors de la définition d'un scénario futur, les interventions qu'il contient peuvent être cumulatives avec celles incluses dans le scénario précédent. Alternativement, un scénario pourrait être un essai totalement nouveau, à partir du scénario de statut actuel. Pour accélérer les sélections d'interventions, l'utilisateur peut utiliser les boutons de droite pour (1) copier les données définissant le scénario précédent dans celui en cours de travail (le bouton supérieur bleu) ou copier les données définissant la situation actuelle, lorsque le scénario sur lequel on travaille est une nouvelle approche dans son ensemble (le bouton orange du bas). - Cela prendra quelques secondes - Lors de la modification des données du scénario précédent, les cellules sont mises en surbrillance pour faciliter la référence des modifications apportées.
A32: 2011-2020 Small , Single Detached, Single Attached, Apart., Mob. H. | B32: 281603 | C32: =INT($B32*Financial!M$126) -> 174748 | D32: 45559 | E32: =Financial!M$129 -> 0.9536405551 | F32: =INT(B32*Financial!M$130) -> 48668 | G32: =INT(B32*Financial!M$131+0.5) -> 12628 | I32: =Statistics!R$63/1000*(1-S32) -> 8.1215 | J32: Fossil fuel | O32: 13.5 | Q32: 240 | AA32: =CONVERT(MAIN!C11,"m2","ft2") -> 818.0571917 | AB32: 281603 | AC32: 2.309307917 | AD32: 0 | AE32: 0 | AF32: =MAIN!Y11 -> 240 | AG32: 10000 | AH32: 1000 | AI32: 1 | AJ32: 7000 | AK32: 2500 | AL32: 2000 | AM32: 2500 | AN32: 4000 | AO32: 2000 | AP32: 5000 | AQ32: 200 | AR32: 20 | AS32: 1 | AT32: 0.75 | AU32: 1000 | AV32: 5000 | AW32: =AW31 -> 0.25 | AY32: 254168366.6 | AZ32: 0 | BA32: 0 | BB32: 0 | BC32: 0 | BD32: 0 | BE32: 0 | BF32: 0 | BG32: 0 | BH32: 0 | BI32: 0
A33: 2011-2020 , Single Detached, Single Attached, Apart. | B33: =B53-5 -> 278379 | C33: =INT($B33*Financial!M$126) -> 172747 | D33: 45037 | E33: =Financial!M$129 -> 0.9536405551 | F33: =INT(B33*Financial!M$130) -> 48111 | G33: =INT(B33*Financial!M$131+0.5) -> 12484 | I33: =Statistics!R$64/1000*(1-S33) -> 7.8538 | J33: Fossil fuel | O33: 13.5 | Q33: 240 | AA33: =CONVERT(MAIN!C12,"m2","ft2") -> 2129.10148 | AB33: 278379 | AC33: 2.233188761 | AD33: 0 | AE33: 0 | AF33: =MAIN!Y12 -> 240 | AG33: 15000 | AH33: 1000 | AI33: 4 | AJ33: 20000 | AK33: 5000 | AL33: 2000 | AM33: 20000 | AN33: 20000 | AO33: =AO32 -> 2000 | AP33: 10000 | AQ33: =AQ32 -> 200 | AR33: 20 | AS33: =3*AS32 -> 3 | AT33: 1.5 | AU33: 20000 | AV33: 10000 | AW33: =AW32 -> 0.25 | AY33: 571137940 | AZ33: 0 | BA33: 0 | BB33: 0 | BC33: 0 | BD33: 0 | BE33: 0 | BF33: 0 | BG33: 0 | BH33: 0 | BI33: 0 | BO33: See user manual if a composite scenario is required. That would be the case if only a subset of the buildings included in a given archetype is to be subjected to ECMs as opposed to the entire set of building included in one archetype.
A34: =CONCATENATE(IF(lang="English","Total (must matche value in Cell C18) ","Total (doit egaler valeur dans cellule C18 "),"Difference =",B34-C18) -> Total (must matche value in Cell C18) Difference =120417 | B34: =SUM(B23:B33) -> 4130835 | C34: =SUM(C23:C33) -> 2563376 | D34: =SUM(D23:D33) -> 668294 | F34: =SUM(F23:F33) -> 713918 | G34: =SUM(G23:G33) -> 185247 | H34: =SUM(H23:H33) -> 0 | J34: =IF(lang="English",BO21,BO22) -> Note: For the reference year, adjust count of most recent archetypes and their space heating methods to reflect the smaller building stock of the reference year. This can be done by consulting the vintage field in the property tax database, for example. Example, adjust numbers in Cells B30 to B33 to get to the estimated number of buildings as of the end of reference year chosen. See manual section on selecting reference year. Adjust number of heating system in Cells C30 to C33 and F30 to H33. By defining estimated number of electric furnace or baseboard, wood and heat pump, the number of fossil fuel heating system is automatically calculated to complete the count. | BO34: Voir le manuel d'utilisation si un scénario composite est requis. Ce serait le cas si seul un sous-ensemble des bâtiments inclus dans un archétype donné devait être soumis aux Mesures de Conservation d'Energie, par opposition à si l'ensemble des bâtiments inclus dans un archétype donné le serait.
A35: =IF(B34=C18,"OK",IF(lang="English","Error! See note in Cell J34","Erreur voir note dans cellule J34")) -> Error! See note in Cell J34 | C35: =C34/$B34 -> 0.6205466933 | D35: =D34/$B34 -> 0.1617818189 | F35: =F34/$B34 -> 0.1728265593 | G35: =G34/$B34 -> 0.04484492845 | H35: =SUM(C34:H34) -> 4130835
A42: =IF(lang="English","Scenario number 2 year:","Scénario no. 2 année:") -> Scenario number 2 year: | B42: =T15 -> 2023 | C42: =CONCATENATE("Current year status ",T15) -> Current year status 2023 | H42: =IF(SUM(C43:D53)+SUM(F43:H53)=SUM(B43:B53),"","Building number does not match number of heating system entered") ->  | BP42: Les nom des archétypes sont en anglais et font partie intégrante des codes. Voici une légende pour interprète en français :
A43: =A$23 -> Before 1946 All dwellings , Single Detached, Single Attached, Apart., Mob. H. | B43: =INT(W$15*Statistics!AR54) -> 543304 | C43: =INT($B43*Financial!O$126) -> 361486 | D43: =B43-(C43+F43+G43+H43) -> 65141 | E43: =Financial!O$129 -> 0.9551500911 | F43: =INT(B43*Financial!O$130) -> 89202 | G43: =INT(B43*Financial!O$131+0.5) -> 27475 | I43: =Statistics!R$54/1000*(1-S43) -> 28.9555 | J43: Fossil fuel | O43: =O23 -> 13.5 | Q43: =Q23 -> 240 | X43: =IF(B43=C43+D43+F43+G43+H43,"","error") ->  | BP43: All before 1946 | BQ43: Touts les batiments avant 1946
A44: =A$24 -> 1946-1977 Large , Single Detached | B44: =INT(W$15*Statistics!AR55) -> 247881 | C44: =INT($B44*Financial!O$126) -> 164927 | D44: =B44-(C44+F44+G44+H44) -> 29721 | E44: =Financial!O$129 -> 0.9551500911 | F44: =INT(B44*Financial!O$130) -> 40698 | G44: =INT(B44*Financial!O$131+0.5) -> 12535 | I44: =Statistics!R$55/1000*(1-S44) -> 24.1785 | J44: Fossil fuel | O44: =O24 -> 13.5 | Q44: =Q24 -> 240 | R44: 6 | X44: =IF(B44=C44+D44+F44+G44+H44,"","error") ->  | BP44: Small | BQ44: petit
A45: =A$25 -> 1946-1977 , Single Detached, Single Detached, Apart., Mob. H. | B45: =INT(W$15*Statistics!AR56) -> 768095 | C45: =INT($B45*Financial!O$126) -> 511050 | D45: 92092 | E45: =Financial!O$129 -> 0.9551500911 | F45: =INT(B45*Financial!O$130) -> 126110 | G45: =INT(B45*Financial!O$131+0.5) -> 38843 | I45: =Statistics!R$56/1000*(1-S45) -> 15.7799 | J45: Fossil fuel | O45: 13.5 | Q45: 240 | BP45: Medium | BQ45: moyen
A46: =A$26 -> 1978-1995 Small , Apart., Mob. H. | B46: =INT(W$15*Statistics!AR57) -> 289882 | C46: =INT($B46*Financial!O$126) -> 192872 | D46: 34757 | E46: =Financial!O$129 -> 0.9551500911 | F46: =INT(B46*Financial!O$130) -> 47594 | G46: =INT(B46*Financial!O$131+0.5) -> 14659 | I46: =Statistics!R$57/1000*(1-S46) -> 9.0708 | J46: Fossil fuel | O46: 13.5 | Q46: 240 | BP46: Large | BQ46: grand
A47: =A$27 -> 1978-1995 Large , Single Detached | B47: =INT(W$15*Statistics!AR58) -> 263856 | C47: =INT($B47*Financial!O$126) -> 175556 | D47: 31636 | E47: =Financial!O$129 -> 0.9551500911 | F47: =INT(B47*Financial!O$130) -> 43321 | G47: =INT(B47*Financial!O$131+0.5) -> 13343 | I47: =Statistics!R$58/1000*(1-S47) -> 20.3664 | J47: Fossil fuel | O47: 13.5 | Q47: 240 | BP47: Mob. | BQ47: maison mobile
A48: =A$28 -> 1978-1995 , Single Detached, Single Attached, Apart. | B48: =INT(W$15*Statistics!AR59) -> 597434 | C48: =INT($B48*Financial!O$126) -> 397501 | D48: 71631 | E48: =Financial!O$129 -> 0.9551500911 | F48: =INT(B48*Financial!O$130) -> 98090 | G48: =INT(B48*Financial!O$131+0.5) -> 30212 | I48: =Statistics!R$59/1000*(1-S48) -> 14.9618 | J48: Fossil fuel | O48: 13.5 | Q48: 240 | BP48: Single detached | BQ48: Unifamilial detache
A49: =A$29 -> 1996-2010 Two Storey , Single Detached | B49: =INT(W$15*Statistics!AR60) -> 181270 | C49: =INT($B49*Financial!O$126) -> 120607 | D49: 21734 | E49: =Financial!O$129 -> 0.9551500911 | F49: =INT(B49*Financial!O$130) -> 29762 | G49: =INT(B49*Financial!O$131+0.5) -> 9167 | I49: =Statistics!R$60/1000*(1-S49) -> 17.6279 | J49: Fossil fuel | O49: 13.5 | Q49: 240 | BP49: Single attached | BQ49: duplex, quadruplex, maisons de ville
A50: =A$30 -> 1996-2010 Small , Single Attached, Single Attached, Apart., Mob. H. | B50: =INT(W$15*Statistics!AR61) -> 268693 | C50: =INT($B50*Financial!O$126) -> 178774 | D50: 32216 | E50: =Financial!O$129 -> 0.9551500911 | F50: =INT(B50*Financial!O$130) -> 44115 | G50: =INT(B50*Financial!O$131+0.5) -> 13588 | I50: =Statistics!R$61/1000*(1-S50) -> 13.7496 | J50: Fossil fuel | O50: 13.5 | Q50: 240
A51: =A$31 -> 1996-2010 , Single Detached, Single Attached, Apart. | B51: =INT(W$15*Statistics!AR62) -> 410438 | C51: =INT($B51*Financial!O$126) -> 273084 | D51: 49210 | E51: =Financial!O$129 -> 0.9551500911 | F51: =INT(B51*Financial!O$130) -> 67388 | G51: =INT(B51*Financial!O$131+0.5) -> 20756 | I51: =Statistics!R$62/1000*(1-S51) -> 14.3357 | J51: Fossil fuel | O51: 13.5 | Q51: 240
A52: =A$32 -> 2011-2020 Small , Single Detached, Single Attached, Apart., Mob. H. | B52: =INT(W$15*Statistics!AR63) -> 281603 | C52: =INT($B52*Financial!O$126) -> 187364 | D52: 33763 | E52: =Financial!O$129 -> 0.9551500911 | F52: =INT(B52*Financial!O$130) -> 46235 | G52: =INT(B52*Financial!O$131+0.5) -> 14241 | I52: =Statistics!R$63/1000*(1-S52) -> 8.1215 | J52: Fossil fuel | O52: 13.5 | Q52: 240
A53: =A$33 -> 2011-2020 , Single Detached, Single Attached, Apart. | B53: =W$15-SUM(B43:B52) -> 278384 | C53: =INT($B53*Financial!O$126) -> 185222 | D53: 33378 | E53: =Financial!O$129 -> 0.9551500911 | F53: =INT(B53*Financial!O$130) -> 45706 | G53: =INT(B53*Financial!O$131+0.5) -> 14078 | I53: =Statistics!R$64/1000*(1-S53) -> 7.8538 | J53: Fossil fuel | O53: 13.5 | Q53: 240
B54: =SUM(B43:B53) -> 4130840 | C54: =SUM(C43:C53) -> 2748443 | D54: =SUM(D43:D53) -> 495279 | F54: =SUM(F43:F53) -> 678221 | G54: =SUM(G43:G53) -> 208897 | H54: =SUM(H43:H53) -> 0 | J54: =IF(lang="English",BO24,BO25) -> Note: For current status year, perform an approximate validation of the archetypes mix and heating methods. Adjust accordingly should there be significant discrepancies from the provincial averages used by CTAP. See "Statistics" Tab for assumptions. Total number of buildings in Cell B54 must be equal to Cell W15.
A55: =IF(B54=W15,"OK","Error! See note in Cell J54") -> OK | C55: =C54/$B54 -> 0.6653472417 | D55: =D54/$B54 -> 0.11989789 | F55: =F54/$B54 -> 0.1641847663 | G55: =G54/$B54 -> 0.05057010196 | H55: =SUM(C54:H54) -> 4130840
A62: =IF(lang="English","Scenario number 3 year:","Scénario no. 3 année:") -> Scenario number 3 year: | B62: 2030 | C62: test data for report | H62: =IF(SUM(C63:D73)+SUM(F63:H73)=SUM(B63:B73),"","Building number does not match number of heating system entered") -> 
A63: =A$23 -> Before 1946 All dwellings , Single Detached, Single Attached, Apart., Mob. H. | B63: 127 | C63: 73 | D63: =B63-(C63+F63+G63+H63) -> 24 | E63: 0.81 | F63: 28 | G63: 2 | I63: =Statistics!R$54/1000*(1-S63) -> 28.9555 | J63: Fossil fuel | O63: 13.5 | Q63: 240 | X63: =IF(B63=C63+D63+F63+G63+H63,"","error") -> 
A64: =A$24 -> 1946-1977 Large , Single Detached | B64: 57 | C64: 32 | D64: 12 | E64: 0.81 | F64: 12 | G64: 1 | I64: =Statistics!R$55/1000*(1-S64) -> 24.1785 | J64: Fossil fuel | O64: 13.5 | Q64: 240 | R64: 6 | X64: =IF(B64=C64+D64+F64+G64+H64,"","error") -> 
A65: =A$25 -> 1946-1977 , Single Detached, Single Detached, Apart., Mob. H. | B65: 140 | C65: 80 | D65: 4 | E65: 0.81 | F65: 31 | G65: 25 | I65: =Statistics!R$56/1000*(1-S65) -> 15.7799 | J65: Fossil fuel | O65: 13.5 | Q65: 240 | T65: 0.25
A66: =A$26 -> 1978-1995 Small , Apart., Mob. H. | B66: 87 | C66: 50 | D66: 3 | E66: 0.81 | F66: 19 | G66: 15 | I66: =Statistics!R$57/1000*(1-S66) -> 9.0708 | J66: Fossil fuel | O66: 13.5 | Q66: 240 | T66: 0.25
A67: =A$27 -> 1978-1995 Large , Single Detached | B67: 39 | C67: 22 | D67: 8 | E67: 0.81 | F67: 8 | G67: 1 | I67: =Statistics!R$58/1000*(1-S67) -> 20.3664 | J67: Fossil fuel | O67: 13.5 | Q67: 240
A68: =A$28 -> 1978-1995 , Single Detached, Single Attached, Apart. | B68: 200 | C68: 115 | D68: 37 | E68: 0.81 | F68: 44 | G68: 4 | I68: =Statistics!R$59/1000*(1-S68) -> 14.9618 | J68: Fossil fuel | L68: 100 | M68: 4 | O68: 13.5 | Q68: 240
A69: =A$29 -> 1996-2010 Two Storey , Single Detached | B69: 138 | C69: 79 | D69: 27 | E69: 0.81 | F69: 30 | G69: 2 | I69: =Statistics!R$60/1000*(1-S69) -> 17.6279 | J69: Fossil fuel | L69: 65 | M69: 5 | O69: 13.5 | Q69: 240
A70: =A$30 -> 1996-2010 Small , Single Attached, Single Attached, Apart., Mob. H. | B70: 104 | C70: 60 | D70: 19 | E70: 0.81 | F70: 23 | G70: 2 | I70: =Statistics!R$61/1000*(1-S70) -> 13.7496 | J70: Fossil fuel | O70: 13.5 | Q70: 240
A71: =A$31 -> 1996-2010 , Single Detached, Single Attached, Apart. | B71: 104 | C71: 60 | D71: 19 | E71: 0.81 | F71: 23 | G71: 2 | I71: =Statistics!R$62/1000*(1-S71) -> 14.3357 | J71: Fossil fuel | O71: 13.5 | Q71: 240
A72: =A$32 -> 2011-2020 Small , Single Detached, Single Attached, Apart., Mob. H. | B72: =81+50 -> 131 | C72: 46 | D72: =B72-(C72+F72+G72+H72) -> 16 | E72: 0.81 | F72: 18 | G72: =51 -> 51 | I72: =Statistics!R$63/1000*(1-S72) -> 8.1215 | J72: Fossil fuel | O72: 13.5 | Q72: 240
A73: =A$33 -> 2011-2020 , Single Detached, Single Attached, Apart. | B73: =114+50 -> 164 | C73: 65 | D73: =B73-(C73+F73+G73+H73) -> 22 | E73: 0.81 | F73: 25 | G73: 52 | I73: =Statistics!R$64/1000*(1-S73) -> 7.8538 | J73: Fossil fuel | O73: 13.5 | Q73: 240
A74: For future scenarios, adjust number of most recent archetypes to reflect antecipated growth. (Cell W15) | B74: =SUM(B63:B73) -> 1291 | C74: =SUM(C63:C73) -> 682 | D74: =SUM(D63:D73) -> 191 | F74: =SUM(F63:F73) -> 261 | G74: =SUM(G63:G73) -> 157 | H74: =SUM(H63:H73) -> 0 | J74: =IF(lang="English",BO27,BO28) -> Scenario 1 and Scenario 2 are reserved for "Reference Year" and "Current Status" respectively. Scenarios 3 to 15 are to be used to develop future scenarios. In doing so, make sure that the number of dwellings is adjusted upwards by increasing the count of the most recent archetype to reflect antecipated growth. When adding dwellings with improved energy performance compared to the most recent archetype, this improved efficiency can be captured by the reduction in energy demand as per the improved design in Columns S to W.
C75: =C74/$B74 -> 0.5282726569 | D75: =D74/$B74 -> 0.1479473277 | F75: =F74/$B74 -> 0.2021688613 | G75: =G74/$B74 -> 0.1216111541 | H75: =SUM(C74:H74) -> 1291
A82: =IF(lang="English","Scenario number 4 year:","Scénario no. 4 année:") -> Scenario number 4 year: | H82: =IF(SUM(C83:D93)+SUM(F83:H93)=SUM(B83:B93),"","Building number does not match number of heating system entered") -> 
A83: =A$23 -> Before 1946 All dwellings , Single Detached, Single Attached, Apart., Mob. H. | B83: 0 | D83: =B83-(C83+F83+G83+H83) -> 0 | I83: =Statistics!R$54/1000*(1-S83) -> 28.9555 | J83: Fossil fuel | O83: 13.5 | Q83: 240 | X83: =IF(B83=C83+D83+F83+G83+H83,"","error") -> 
A84: =A$24 -> 1946-1977 Large , Single Detached | B84: 0 | D84: =B84-(C84+F84+G84+H84) -> 0 | I84: =Statistics!R$55/1000*(1-S84) -> 24.1785 | J84: Fossil fuel | O84: 13.5 | Q84: 240 | R84: 6 | X84: =IF(B84=C84+D84+F84+G84+H84,"","error") -> 
A85: =A$25 -> 1946-1977 , Single Detached, Single Detached, Apart., Mob. H. | B85: 0 | D85: 0 | I85: =Statistics!R$56/1000*(1-S85) -> 15.7799 | J85: Fossil fuel | O85: 13.5 | Q85: 240
A86: =A$26 -> 1978-1995 Small , Apart., Mob. H. | B86: 0 | D86: 0 | I86: =Statistics!R$57/1000*(1-S86) -> 9.0708 | J86: Fossil fuel | O86: 13.5 | Q86: 240
A87: =A$27 -> 1978-1995 Large , Single Detached | B87: 0 | D87: 0 | I87: =Statistics!R$58/1000*(1-S87) -> 20.3664 | J87: Fossil fuel | O87: 13.5 | Q87: 240
A88: =A$28 -> 1978-1995 , Single Detached, Single Attached, Apart. | B88: 0 | D88: 0 | I88: =Statistics!R$59/1000*(1-S88) -> 14.9618 | J88: Fossil fuel | O88: 13.5 | Q88: 240
A89: =A$29 -> 1996-2010 Two Storey , Single Detached | B89: 0 | D89: 0 | I89: =Statistics!R$60/1000*(1-S89) -> 17.6279 | J89: Fossil fuel | O89: 13.5 | Q89: 240
A90: =A$30 -> 1996-2010 Small , Single Attached, Single Attached, Apart., Mob. H. | B90: 0 | D90: 0 | I90: =Statistics!R$61/1000*(1-S90) -> 13.7496 | J90: Fossil fuel | O90: 13.5 | Q90: 240
A91: =A$31 -> 1996-2010 , Single Detached, Single Attached, Apart. | B91: 0 | D91: 0 | I91: =Statistics!R$62/1000*(1-S91) -> 14.3357 | J91: Fossil fuel | O91: 13.5 | Q91: 240
A92: =A$32 -> 2011-2020 Small , Single Detached, Single Attached, Apart., Mob. H. | B92: 0 | D92: 0 | I92: =Statistics!R$63/1000*(1-S92) -> 8.1215 | J92: Fossil fuel | O92: 13.5 | Q92: 240
A93: =A$33 -> 2011-2020 , Single Detached, Single Attached, Apart. | B93: 0 | D93: 0 | I93: =Statistics!R$64/1000*(1-S93) -> 7.8538 | J93: Fossil fuel | O93: 13.5 | Q93: 240
B94: =SUM(B83:B93) -> 0 | C94: =SUM(C83:C93) -> 0 | D94: =SUM(D83:D93) -> 0 | F94: =SUM(F83:F93) -> 0 | G94: =SUM(G83:G93) -> 0 | H94: =SUM(H83:H93) -> 0 | J94: =IF(lang="English",BO30,BO31) -> When defining a future scenario, the interventions it contain can be cummulative to the ones included in the previous scenario. Alternatively, a scenario could be a totally new trial, starting from the current status scenario. To speed up the selections of interventions, the user can use the buttoms on the right to (1) copy the data defining the previous scenario into the one being worked on (the upper, blue button) or copy the data defining the current situation, when the scenario being worked on is a new approach all together (the lower, orange button). - This will take a few seconds - When changing data from the previous scenario, the cells are high-lighted for ease of refernce of the changes made.
C95: =C94/$B94 ->  | D95: =D94/$B94 ->  | F95: =F94/$B94 ->  | G95: =G94/$B94 ->  | H95: =SUM(C94:H94) -> 0
A102: =IF(lang="English","Scenario number 5 year:","Scénario no. 5 année:") -> Scenario number 5 year: | H102: =IF(SUM(C103:D113)+SUM(F103:H113)=SUM(B103:B113),"","Building number does not match number of heating system entered") -> 
A103: =A$23 -> Before 1946 All dwellings , Single Detached, Single Attached, Apart., Mob. H. | B103: 0 | D103: =B103-C103-G103-H103-F103 -> 0 | I103: =Statistics!R$54/1000*(1-S103) -> 28.9555 | J103: Fossil fuel | O103: 13.5 | Q103: 240 | X103: =IF(B103=C103+D103+F103+G103+H103,"","error") -> 
A104: =A$24 -> 1946-1977 Large , Single Detached | B104: 0 | D104: =B104-C104-G104-H104-F104 -> 0 | I104: =Statistics!R$55/1000*(1-S104) -> 24.1785 | J104: Fossil fuel | O104: 13.5 | Q104: 240 | R104: 6 | X104: =IF(B104=C104+D104+F104+G104+H104,"","error") -> 
A105: =A$25 -> 1946-1977 , Single Detached, Single Detached, Apart., Mob. H. | B105: 0 | D105: 0 | I105: =Statistics!R$56/1000*(1-S105) -> 15.7799 | J105: Fossil fuel | O105: 13.5 | Q105: 240
A106: =A$26 -> 1978-1995 Small , Apart., Mob. H. | B106: 0 | D106: 0 | I106: =Statistics!R$57/1000*(1-S106) -> 9.0708 | J106: Fossil fuel | O106: 13.5 | Q106: 240
A107: =A$27 -> 1978-1995 Large , Single Detached | B107: 0 | D107: 0 | I107: =Statistics!R$58/1000*(1-S107) -> 20.3664 | J107: Fossil fuel | O107: 13.5 | Q107: 240
A108: =A$28 -> 1978-1995 , Single Detached, Single Attached, Apart. | B108: 0 | D108: 0 | I108: =Statistics!R$59/1000*(1-S108) -> 14.9618 | J108: Fossil fuel | O108: 13.5 | Q108: 240
A109: =A$29 -> 1996-2010 Two Storey , Single Detached | B109: 0 | D109: 0 | I109: =Statistics!R$60/1000*(1-S109) -> 17.6279 | J109: Fossil fuel | O109: 13.5 | Q109: 240
A110: =A$30 -> 1996-2010 Small , Single Attached, Single Attached, Apart., Mob. H. | B110: 0 | D110: 0 | I110: =Statistics!R$61/1000*(1-S110) -> 13.7496 | J110: Fossil fuel | O110: 13.5 | Q110: 240
A111: =A$31 -> 1996-2010 , Single Detached, Single Attached, Apart. | B111: 0 | D111: 0 | I111: =Statistics!R$62/1000*(1-S111) -> 14.3357 | J111: Fossil fuel | O111: 13.5 | Q111: 240
A112: =A$32 -> 2011-2020 Small , Single Detached, Single Attached, Apart., Mob. H. | B112: 0 | D112: 0 | I112: =Statistics!R$63/1000*(1-S112) -> 8.1215 | J112: Fossil fuel | O112: 13.5 | Q112: 240
A113: =A$33 -> 2011-2020 , Single Detached, Single Attached, Apart. | B113: 0 | D113: 0 | I113: =Statistics!R$64/1000*(1-S113) -> 7.8538 | J113: Fossil fuel | O113: 13.5 | Q113: 240
B114: =SUM(B103:B113) -> 0 | C114: =SUM(C103:C113) -> 0 | D114: =SUM(D103:D113) -> 0 | F114: =SUM(F103:F113) -> 0 | G114: =SUM(G103:G113) -> 0 | H114: =SUM(H103:H113) -> 0 | J114: =IF(lang="English",BO33,BO34) -> See user manual if a composite scenario is required. That would be the case if only a subset of the buildings included in a given archetype is to be subjected to ECMs as opposed to the entire set of building included in one archetype.
C115: =C114/$B114 ->  | D115: =D114/$B114 ->  | F115: =F114/$B114 ->  | G115: =G114/$B114 ->  | H115: =SUM(C114:H114) -> 0
A122: =IF(lang="English","Scenario number 6 year:","Scénario no. 6 année:") -> Scenario number 6 year: | H122: =IF(SUM(C123:D133)+SUM(F123:H133)=SUM(B123:B133),"","Building number does not match number of heating system entered") -> 
A123: =A$23 -> Before 1946 All dwellings , Single Detached, Single Attached, Apart., Mob. H. | B123: 0 | D123: =B123-C123-G123-H123-F123 -> 0 | I123: =Statistics!R$54/1000*(1-S123) -> 28.9555 | J123: Fossil fuel | O123: 13.5 | Q123: 240 | X123: =IF(B123=C123+D123+F123+G123+H123,"","error") -> 
A124: =A$24 -> 1946-1977 Large , Single Detached | B124: 0 | D124: =B124-C124-G124-H124-F124 -> 0 | I124: =Statistics!R$55/1000*(1-S124) -> 24.1785 | J124: Fossil fuel | O124: 13.5 | Q124: 240 | R124: 6 | X124: =IF(B124=C124+D124+F124+G124+H124,"","error") -> 
A125: =A$25 -> 1946-1977 , Single Detached, Single Detached, Apart., Mob. H. | B125: 0 | D125: 0 | I125: =Statistics!R$56/1000*(1-S125) -> 15.7799 | J125: Fossil fuel | O125: 13.5 | Q125: 240
A126: =A$26 -> 1978-1995 Small , Apart., Mob. H. | B126: 0 | D126: 0 | I126: =Statistics!R$57/1000*(1-S126) -> 9.0708 | J126: Fossil fuel | O126: 13.5 | Q126: 240
A127: =A$27 -> 1978-1995 Large , Single Detached | B127: 0 | D127: 0 | I127: =Statistics!R$58/1000*(1-S127) -> 20.3664 | J127: Fossil fuel | O127: 13.5 | Q127: 240
A128: =A$28 -> 1978-1995 , Single Detached, Single Attached, Apart. | B128: 0 | D128: 0 | I128: =Statistics!R$59/1000*(1-S128) -> 14.9618 | J128: Fossil fuel | O128: 13.5 | Q128: 240
A129: =A$29 -> 1996-2010 Two Storey , Single Detached | B129: 0 | D129: 0 | I129: =Statistics!R$60/1000*(1-S129) -> 17.6279 | J129: Fossil fuel | O129: 13.5 | Q129: 240
A130: =A$30 -> 1996-2010 Small , Single Attached, Single Attached, Apart., Mob. H. | B130: 0 | D130: 0 | I130: =Statistics!R$61/1000*(1-S130) -> 13.7496 | J130: Fossil fuel | O130: 13.5 | Q130: 240
A131: =A$31 -> 1996-2010 , Single Detached, Single Attached, Apart. | B131: 0 | D131: 0 | I131: =Statistics!R$62/1000*(1-S131) -> 14.3357 | J131: Fossil fuel | O131: 13.5 | Q131: 240
A132: =A$32 -> 2011-2020 Small , Single Detached, Single Attached, Apart., Mob. H. | B132: 0 | D132: 0 | I132: =Statistics!R$63/1000*(1-S132) -> 8.1215 | J132: Fossil fuel | O132: 13.5 | Q132: 240
A133: =A$33 -> 2011-2020 , Single Detached, Single Attached, Apart. | B133: 0 | D133: 0 | I133: =Statistics!R$64/1000*(1-S133) -> 7.8538 | J133: Fossil fuel | O133: 13.5 | Q133: 240
B134: =SUM(B123:B133) -> 0 | C134: =SUM(C123:C133) -> 0 | D134: =SUM(D123:D133) -> 0 | F134: =SUM(F123:F133) -> 0 | G134: =SUM(G123:G133) -> 0 | H134: =SUM(H123:H133) -> 0
C135: =C134/$B134 ->  | D135: =D134/$B134 ->  | F135: =F134/$B134 ->  | G135: =G134/$B134 ->  | H135: =SUM(C134:H134) -> 0
A142: =IF(lang="English","Scenario number 7 year:","Scénario no. 7 année:") -> Scenario number 7 year: | H142: =IF(SUM(C143:D153)+SUM(F143:H153)=SUM(B143:B153),"","Building number does not match number of heating system entered") -> 
A143: =A$23 -> Before 1946 All dwellings , Single Detached, Single Attached, Apart., Mob. H. | B143: 0 | D143: =B143-C143-G143-H143-F143 -> 0 | I143: =Statistics!R$54/1000*(1-S143) -> 28.9555 | J143: Fossil fuel | O143: 13.5 | Q143: 240 | X143: =IF(B143=C143+D143+F143+G143+H143,"","error") -> 
A144: =A$24 -> 1946-1977 Large , Single Detached | B144: 0 | D144: =B144-C144-G144-H144-F144 -> 0 | I144: =Statistics!R$55/1000*(1-S144) -> 24.1785 | J144: Fossil fuel | O144: 13.5 | Q144: 240 | R144: 6 | X144: =IF(B144=C144+D144+F144+G144+H144,"","error") -> 
A145: =A$25 -> 1946-1977 , Single Detached, Single Detached, Apart., Mob. H. | B145: 0 | D145: 0 | I145: =Statistics!R$56/1000*(1-S145) -> 15.7799 | J145: Fossil fuel | O145: 13.5 | Q145: 240
A146: =A$26 -> 1978-1995 Small , Apart., Mob. H. | B146: 0 | D146: 0 | I146: =Statistics!R$57/1000*(1-S146) -> 9.0708 | J146: Fossil fuel | O146: 13.5 | Q146: 240
A147: =A$27 -> 1978-1995 Large , Single Detached | B147: 0 | D147: 0 | I147: =Statistics!R$58/1000*(1-S147) -> 20.3664 | J147: Fossil fuel | O147: 13.5 | Q147: 240
A148: =A$28 -> 1978-1995 , Single Detached, Single Attached, Apart. | B148: 0 | D148: 0 | I148: =Statistics!R$59/1000*(1-S148) -> 14.9618 | J148: Fossil fuel | O148: 13.5 | Q148: 240
A149: =A$29 -> 1996-2010 Two Storey , Single Detached | B149: 0 | D149: 0 | I149: =Statistics!R$60/1000*(1-S149) -> 17.6279 | J149: Fossil fuel | O149: 13.5 | Q149: 240
A150: =A$30 -> 1996-2010 Small , Single Attached, Single Attached, Apart., Mob. H. | B150: 0 | D150: 0 | I150: =Statistics!R$61/1000*(1-S150) -> 13.7496 | J150: Fossil fuel | O150: 13.5 | Q150: 240
A151: =A$31 -> 1996-2010 , Single Detached, Single Attached, Apart. | B151: 0 | D151: 0 | I151: =Statistics!R$62/1000*(1-S151) -> 14.3357 | J151: Fossil fuel | O151: 13.5 | Q151: 240
A152: =A$32 -> 2011-2020 Small , Single Detached, Single Attached, Apart., Mob. H. | B152: 0 | D152: 0 | I152: =Statistics!R$63/1000*(1-S152) -> 8.1215 | J152: Fossil fuel | O152: 13.5 | Q152: 240
A153: =A$33 -> 2011-2020 , Single Detached, Single Attached, Apart. | B153: 0 | D153: 0 | I153: =Statistics!R$64/1000*(1-S153) -> 7.8538 | J153: Fossil fuel | O153: 13.5 | Q153: 240
B154: =SUM(B143:B153) -> 0 | C154: =SUM(C143:C153) -> 0 | D154: =SUM(D143:D153) -> 0 | F154: =SUM(F143:F153) -> 0 | G154: =SUM(G143:G153) -> 0 | H154: =SUM(H143:H153) -> 0
C155: =C154/$B154 ->  | D155: =D154/$B154 ->  | F155: =F154/$B154 ->  | G155: =G154/$B154 ->  | H155: =SUM(C154:H154) -> 0
A162: =IF(lang="English","Scenario number 8 year:","Scénario no. 8 année:") -> Scenario number 8 year: | H162: =IF(SUM(C163:D173)+SUM(F163:H173)=SUM(B163:B173),"","Building number does not match number of heating system entered") -> 
A163: =A$23 -> Before 1946 All dwellings , Single Detached, Single Attached, Apart., Mob. H. | B163: 0 | D163: =B163-C163-G163-H163-F163 -> 0 | I163: =Statistics!R$54/1000*(1-S163) -> 28.9555 | J163: Fossil fuel | O163: 13.5 | Q163: 240 | X163: =IF(B163=C163+D163+F163+G163+H163,"","error") -> 
A164: =A$24 -> 1946-1977 Large , Single Detached | B164: 0 | D164: =B164-C164-G164-H164-F164 -> 0 | I164: =Statistics!R$55/1000*(1-S164) -> 24.1785 | J164: Fossil fuel | O164: 13.5 | Q164: 240 | R164: 6 | X164: =IF(B164=C164+D164+F164+G164+H164,"","error") -> 
A165: =A$25 -> 1946-1977 , Single Detached, Single Detached, Apart., Mob. H. | B165: 0 | D165: 0 | I165: =Statistics!R$56/1000*(1-S165) -> 15.7799 | J165: Fossil fuel | O165: 13.5 | Q165: 240
A166: =A$26 -> 1978-1995 Small , Apart., Mob. H. | B166: 0 | D166: 0 | I166: =Statistics!R$57/1000*(1-S166) -> 9.0708 | J166: Fossil fuel | O166: 13.5 | Q166: 240
A167: =A$27 -> 1978-1995 Large , Single Detached | B167: 0 | D167: 0 | I167: =Statistics!R$58/1000*(1-S167) -> 20.3664 | J167: Fossil fuel | O167: 13.5 | Q167: 240
A168: =A$28 -> 1978-1995 , Single Detached, Single Attached, Apart. | B168: 0 | D168: 0 | I168: =Statistics!R$59/1000*(1-S168) -> 14.9618 | J168: Fossil fuel | O168: 13.5 | Q168: 240
A169: =A$29 -> 1996-2010 Two Storey , Single Detached | B169: 0 | D169: 0 | I169: =Statistics!R$60/1000*(1-S169) -> 17.6279 | J169: Fossil fuel | O169: 13.5 | Q169: 240
A170: =A$30 -> 1996-2010 Small , Single Attached, Single Attached, Apart., Mob. H. | B170: 0 | D170: 0 | I170: =Statistics!R$61/1000*(1-S170) -> 13.7496 | J170: Fossil fuel | O170: 13.5 | Q170: 240
A171: =A$31 -> 1996-2010 , Single Detached, Single Attached, Apart. | B171: 0 | D171: 0 | I171: =Statistics!R$62/1000*(1-S171) -> 14.3357 | J171: Fossil fuel | O171: 13.5 | Q171: 240
A172: =A$32 -> 2011-2020 Small , Single Detached, Single Attached, Apart., Mob. H. | B172: 0 | D172: 0 | I172: =Statistics!R$63/1000*(1-S172) -> 8.1215 | J172: Fossil fuel | O172: 13.5 | Q172: 240
A173: =A$33 -> 2011-2020 , Single Detached, Single Attached, Apart. | B173: 0 | D173: 0 | I173: =Statistics!R$64/1000*(1-S173) -> 7.8538 | J173: Fossil fuel | O173: 13.5 | Q173: 240
B174: =SUM(B163:B173) -> 0 | C174: =SUM(C163:C173) -> 0 | D174: =SUM(D163:D173) -> 0 | F174: =SUM(F163:F173) -> 0 | G174: =SUM(G163:G173) -> 0 | H174: =SUM(H163:H173) -> 0
C175: =C174/$B174 ->  | D175: =D174/$B174 ->  | F175: =F174/$B174 ->  | G175: =G174/$B174 ->  | H175: =SUM(C174:H174) -> 0
A182: =IF(lang="English","Scenario number 9 year:","Scénario no. 9 année:") -> Scenario number 9 year: | H182: =IF(SUM(C183:D193)+SUM(F183:H193)=SUM(B183:B193),"","Building number does not match number of heating system entered") -> 
A183: =A$23 -> Before 1946 All dwellings , Single Detached, Single Attached, Apart., Mob. H. | B183: 0 | D183: =B183-C183-G183-H183-F183 -> 0 | I183: =Statistics!R$54/1000*(1-S183) -> 28.9555 | J183: Fossil fuel | O183: 13.5 | Q183: 240 | X183: =IF(B183=C183+D183+F183+G183+H183,"","error") -> 
A184: =A$24 -> 1946-1977 Large , Single Detached | B184: 0 | D184: =B184-C184-G184-H184-F184 -> 0 | I184: =Statistics!R$55/1000*(1-S184) -> 24.1785 | J184: Fossil fuel | O184: 13.5 | Q184: 240 | R184: 6 | X184: =IF(B184=C184+D184+F184+G184+H184,"","error") -> 
A185: =A$25 -> 1946-1977 , Single Detached, Single Detached, Apart., Mob. H. | B185: 0 | D185: 0 | I185: =Statistics!R$56/1000*(1-S185) -> 15.7799 | J185: Fossil fuel | O185: 13.5 | Q185: 240
A186: =A$26 -> 1978-1995 Small , Apart., Mob. H. | B186: 0 | D186: 0 | I186: =Statistics!R$57/1000*(1-S186) -> 9.0708 | J186: Fossil fuel | O186: 13.5 | Q186: 240
A187: =A$27 -> 1978-1995 Large , Single Detached | B187: 0 | D187: 0 | I187: =Statistics!R$58/1000*(1-S187) -> 20.3664 | J187: Fossil fuel | O187: 13.5 | Q187: 240
A188: =A$28 -> 1978-1995 , Single Detached, Single Attached, Apart. | B188: 0 | D188: 0 | I188: =Statistics!R$59/1000*(1-S188) -> 14.9618 | J188: Fossil fuel | O188: 13.5 | Q188: 240
A189: =A$29 -> 1996-2010 Two Storey , Single Detached | B189: 0 | D189: 0 | I189: =Statistics!R$60/1000*(1-S189) -> 17.6279 | J189: Fossil fuel | O189: 13.5 | Q189: 240
A190: =A$30 -> 1996-2010 Small , Single Attached, Single Attached, Apart., Mob. H. | B190: 0 | D190: 0 | I190: =Statistics!R$61/1000*(1-S190) -> 13.7496 | J190: Fossil fuel | O190: 13.5 | Q190: 240
A191: =A$31 -> 1996-2010 , Single Detached, Single Attached, Apart. | B191: 0 | D191: 0 | I191: =Statistics!R$62/1000*(1-S191) -> 14.3357 | J191: Fossil fuel | O191: 13.5 | Q191: 240
A192: =A$32 -> 2011-2020 Small , Single Detached, Single Attached, Apart., Mob. H. | B192: 0 | D192: 0 | I192: =Statistics!R$63/1000*(1-S192) -> 8.1215 | J192: Fossil fuel | O192: 13.5 | Q192: 240
A193: =A$33 -> 2011-2020 , Single Detached, Single Attached, Apart. | B193: 0 | D193: 0 | I193: =Statistics!R$64/1000*(1-S193) -> 7.8538 | J193: Fossil fuel | O193: 13.5 | Q193: 240
B194: =SUM(B183:B193) -> 0 | C194: =SUM(C183:C193) -> 0 | D194: =SUM(D183:D193) -> 0 | F194: =SUM(F183:F193) -> 0 | G194: =SUM(G183:G193) -> 0 | H194: =SUM(H183:H193) -> 0
C195: =C194/$B194 ->  | D195: =D194/$B194 ->  | F195: =F194/$B194 ->  | G195: =G194/$B194 ->  | H195: =SUM(C194:H194) -> 0
A202: =IF(lang="English","Scenario number 10 year:","Scénario no. 10 année:") -> Scenario number 10 year: | H202: =IF(SUM(C203:D213)+SUM(F203:H213)=SUM(B203:B213),"","Building number does not match number of heating system entered") -> 
A203: =A$23 -> Before 1946 All dwellings , Single Detached, Single Attached, Apart., Mob. H. | B203: 0 | D203: =B203-C203-G203-H203-F203 -> 0 | I203: =Statistics!R$54/1000*(1-S203) -> 28.9555 | J203: Fossil fuel | O203: 13.5 | Q203: 240 | X203: =IF(B203=C203+D203+F203+G203+H203,"","error") -> 
A204: =A$24 -> 1946-1977 Large , Single Detached | B204: 0 | D204: =B204-C204-G204-H204-F204 -> 0 | I204: =Statistics!R$55/1000*(1-S204) -> 24.1785 | J204: Fossil fuel | O204: 13.5 | Q204: 240 | R204: 6 | X204: =IF(B204=C204+D204+F204+G204+H204,"","error") -> 
A205: =A$25 -> 1946-1977 , Single Detached, Single Detached, Apart., Mob. H. | B205: 0 | D205: 0 | I205: =Statistics!R$56/1000*(1-S205) -> 15.7799 | J205: Fossil fuel | O205: 13.5 | Q205: 240
A206: =A$26 -> 1978-1995 Small , Apart., Mob. H. | B206: 0 | D206: 0 | I206: =Statistics!R$57/1000*(1-S206) -> 9.0708 | J206: Fossil fuel | O206: 13.5 | Q206: 240
A207: =A$27 -> 1978-1995 Large , Single Detached | B207: 0 | D207: 0 | I207: =Statistics!R$58/1000*(1-S207) -> 20.3664 | J207: Fossil fuel | O207: 13.5 | Q207: 240
A208: =A$28 -> 1978-1995 , Single Detached, Single Attached, Apart. | B208: 0 | D208: 0 | I208: =Statistics!R$59/1000*(1-S208) -> 14.9618 | J208: Fossil fuel | O208: 13.5 | Q208: 240
A209: =A$29 -> 1996-2010 Two Storey , Single Detached | B209: 0 | D209: 0 | I209: =Statistics!R$60/1000*(1-S209) -> 17.6279 | J209: Fossil fuel | O209: 13.5 | Q209: 240
A210: =A$30 -> 1996-2010 Small , Single Attached, Single Attached, Apart., Mob. H. | B210: 0 | D210: 0 | I210: =Statistics!R$61/1000*(1-S210) -> 13.7496 | J210: Fossil fuel | O210: 13.5 | Q210: 240
A211: =A$31 -> 1996-2010 , Single Detached, Single Attached, Apart. | B211: 0 | D211: 0 | I211: =Statistics!R$62/1000*(1-S211) -> 14.3357 | J211: Fossil fuel | O211: 13.5 | Q211: 240
A212: =A$32 -> 2011-2020 Small , Single Detached, Single Attached, Apart., Mob. H. | B212: 0 | D212: 0 | I212: =Statistics!R$63/1000*(1-S212) -> 8.1215 | J212: Fossil fuel | O212: 13.5 | Q212: 240
A213: =A$33 -> 2011-2020 , Single Detached, Single Attached, Apart. | B213: 0 | D213: 0 | I213: =Statistics!R$64/1000*(1-S213) -> 7.8538 | J213: Fossil fuel | O213: 13.5 | Q213: 240
B214: =SUM(B203:B213) -> 0 | C214: =SUM(C203:C213) -> 0 | D214: =SUM(D203:D213) -> 0 | F214: =SUM(F203:F213) -> 0 | G214: =SUM(G203:G213) -> 0 | H214: =SUM(H203:H213) -> 0
C215: =C214/$B214 ->  | D215: =D214/$B214 ->  | F215: =F214/$B214 ->  | G215: =G214/$B214 ->  | H215: =SUM(C214:H214) -> 0
A222: =IF(lang="English","Scenario number 11 year:","Scénario no. 11 année:") -> Scenario number 11 year: | H222: =IF(SUM(C223:D233)+SUM(F223:H233)=SUM(B223:B233),"","Building number does not match number of heating system entered") -> 
A223: =A$23 -> Before 1946 All dwellings , Single Detached, Single Attached, Apart., Mob. H. | B223: 0 | D223: =B223-C223-G223-H223-F223 -> 0 | I223: =Statistics!R$54/1000*(1-S223) -> 28.9555 | J223: Fossil fuel | O223: 13.5 | Q223: 240 | X223: =IF(B223=C223+D223+F223+G223+H223,"","error") -> 
A224: =A$24 -> 1946-1977 Large , Single Detached | B224: 0 | D224: =B224-C224-G224-H224-F224 -> 0 | I224: =Statistics!R$55/1000*(1-S224) -> 24.1785 | J224: Fossil fuel | O224: 13.5 | Q224: 240 | R224: 6 | X224: =IF(B224=C224+D224+F224+G224+H224,"","error") -> 
A225: =A$25 -> 1946-1977 , Single Detached, Single Detached, Apart., Mob. H. | B225: 0 | D225: 0 | I225: =Statistics!R$56/1000*(1-S225) -> 15.7799 | J225: Fossil fuel | O225: 13.5 | Q225: 240
A226: =A$26 -> 1978-1995 Small , Apart., Mob. H. | B226: 0 | D226: 0 | I226: =Statistics!R$57/1000*(1-S226) -> 9.0708 | J226: Fossil fuel | O226: 13.5 | Q226: 240
A227: =A$27 -> 1978-1995 Large , Single Detached | B227: 0 | D227: 0 | I227: =Statistics!R$58/1000*(1-S227) -> 20.3664 | J227: Fossil fuel | O227: 13.5 | Q227: 240
A228: =A$28 -> 1978-1995 , Single Detached, Single Attached, Apart. | B228: 0 | D228: 0 | I228: =Statistics!R$59/1000*(1-S228) -> 14.9618 | J228: Fossil fuel | O228: 13.5 | Q228: 240
A229: =A$29 -> 1996-2010 Two Storey , Single Detached | B229: 0 | D229: 0 | I229: =Statistics!R$60/1000*(1-S229) -> 17.6279 | J229: Fossil fuel | O229: 13.5 | Q229: 240
A230: =A$30 -> 1996-2010 Small , Single Attached, Single Attached, Apart., Mob. H. | B230: 0 | D230: 0 | I230: =Statistics!R$61/1000*(1-S230) -> 13.7496 | J230: Fossil fuel | O230: 13.5 | Q230: 240
A231: =A$31 -> 1996-2010 , Single Detached, Single Attached, Apart. | B231: 0 | D231: 0 | I231: =Statistics!R$62/1000*(1-S231) -> 14.3357 | J231: Fossil fuel | O231: 13.5 | Q231: 240
A232: =A$32 -> 2011-2020 Small , Single Detached, Single Attached, Apart., Mob. H. | B232: 0 | D232: 0 | I232: =Statistics!R$63/1000*(1-S232) -> 8.1215 | J232: Fossil fuel | O232: 13.5 | Q232: 240
A233: =A$33 -> 2011-2020 , Single Detached, Single Attached, Apart. | B233: 0 | D233: 0 | I233: =Statistics!R$64/1000*(1-S233) -> 7.8538 | J233: Fossil fuel | O233: 13.5 | Q233: 240
B234: =SUM(B223:B233) -> 0 | C234: =SUM(C223:C233) -> 0 | D234: =SUM(D223:D233) -> 0 | F234: =SUM(F223:F233) -> 0 | G234: =SUM(G223:G233) -> 0 | H234: =SUM(H223:H233) -> 0
C235: =C234/$B234 ->  | D235: =D234/$B234 ->  | F235: =F234/$B234 ->  | G235: =G234/$B234 ->  | H235: =SUM(C234:H234) -> 0
A242: =IF(lang="English","Scenario number 12 year:","Scénario no. 12 année:") -> Scenario number 12 year: | H242: =IF(SUM(C243:D253)+SUM(F243:H253)=SUM(B243:B253),"","Building number does not match number of heating system entered") -> 
A243: =A$23 -> Before 1946 All dwellings , Single Detached, Single Attached, Apart., Mob. H. | B243: 0 | D243: =B243-C243-G243-H243-F243 -> 0 | I243: =Statistics!R$54/1000*(1-S243) -> 28.9555 | J243: Fossil fuel | O243: 13.5 | Q243: 240 | X243: =IF(B243=C243+D243+F243+G243+H243,"","error") -> 
A244: =A$24 -> 1946-1977 Large , Single Detached | B244: 0 | D244: =B244-C244-G244-H244-F244 -> 0 | I244: =Statistics!R$55/1000*(1-S244) -> 24.1785 | J244: Fossil fuel | O244: 13.5 | Q244: 240 | R244: 6 | X244: =IF(B244=C244+D244+F244+G244+H244,"","error") -> 
A245: =A$25 -> 1946-1977 , Single Detached, Single Detached, Apart., Mob. H. | B245: 0 | D245: 0 | I245: =Statistics!R$56/1000*(1-S245) -> 15.7799 | J245: Fossil fuel | O245: 13.5 | Q245: 240
A246: =A$26 -> 1978-1995 Small , Apart., Mob. H. | B246: 0 | D246: 0 | I246: =Statistics!R$57/1000*(1-S246) -> 9.0708 | J246: Fossil fuel | O246: 13.5 | Q246: 240
A247: =A$27 -> 1978-1995 Large , Single Detached | B247: 0 | D247: 0 | I247: =Statistics!R$58/1000*(1-S247) -> 20.3664 | J247: Fossil fuel | O247: 13.5 | Q247: 240
A248: =A$28 -> 1978-1995 , Single Detached, Single Attached, Apart. | B248: 0 | D248: 0 | I248: =Statistics!R$59/1000*(1-S248) -> 14.9618 | J248: Fossil fuel | O248: 13.5 | Q248: 240
A249: =A$29 -> 1996-2010 Two Storey , Single Detached | B249: 0 | D249: 0 | I249: =Statistics!R$60/1000*(1-S249) -> 17.6279 | J249: Fossil fuel | O249: 13.5 | Q249: 240
A250: =A$30 -> 1996-2010 Small , Single Attached, Single Attached, Apart., Mob. H. | B250: 0 | D250: 0 | I250: =Statistics!R$61/1000*(1-S250) -> 13.7496 | J250: Fossil fuel | O250: 13.5 | Q250: 240
A251: =A$31 -> 1996-2010 , Single Detached, Single Attached, Apart. | B251: 0 | D251: 0 | I251: =Statistics!R$62/1000*(1-S251) -> 14.3357 | J251: Fossil fuel | O251: 13.5 | Q251: 240
A252: =A$32 -> 2011-2020 Small , Single Detached, Single Attached, Apart., Mob. H. | B252: 0 | D252: 0 | I252: =Statistics!R$63/1000*(1-S252) -> 8.1215 | J252: Fossil fuel | O252: 13.5 | Q252: 240
A253: =A$33 -> 2011-2020 , Single Detached, Single Attached, Apart. | B253: 0 | D253: 0 | I253: =Statistics!R$64/1000*(1-S253) -> 7.8538 | J253: Fossil fuel | O253: 13.5 | Q253: 240
B254: =SUM(B243:B253) -> 0 | C254: =SUM(C243:C253) -> 0 | D254: =SUM(D243:D253) -> 0 | F254: =SUM(F243:F253) -> 0 | G254: =SUM(G243:G253) -> 0 | H254: =SUM(H243:H253) -> 0
C255: =C254/$B254 ->  | D255: =D254/$B254 ->  | F255: =F254/$B254 ->  | G255: =G254/$B254 ->  | H255: =SUM(C254:H254) -> 0
A262: =IF(lang="English","Scenario number 13 year:","Scénario no. 13 année:") -> Scenario number 13 year: | H262: =IF(SUM(C263:D273)+SUM(F263:H273)=SUM(B263:B273),"","Building number does not match number of heating system entered") -> 
A263: =A$23 -> Before 1946 All dwellings , Single Detached, Single Attached, Apart., Mob. H. | B263: 0 | D263: =B263-C263-G263-H263-F263 -> 0 | I263: =Statistics!R$54/1000*(1-S263) -> 28.9555 | J263: Fossil fuel | O263: 13.5 | Q263: 240 | X263: =IF(B263=C263+D263+F263+G263+H263,"","error") -> 
A264: =A$24 -> 1946-1977 Large , Single Detached | B264: 0 | D264: =B264-C264-G264-H264-F264 -> 0 | I264: =Statistics!R$55/1000*(1-S264) -> 24.1785 | J264: Fossil fuel | O264: 13.5 | Q264: 240 | R264: 6 | X264: =IF(B264=C264+D264+F264+G264+H264,"","error") -> 
A265: =A$25 -> 1946-1977 , Single Detached, Single Detached, Apart., Mob. H. | B265: 0 | D265: 0 | I265: =Statistics!R$56/1000*(1-S265) -> 15.7799 | J265: Fossil fuel | O265: 13.5 | Q265: 240
A266: =A$26 -> 1978-1995 Small , Apart., Mob. H. | B266: 0 | D266: 0 | I266: =Statistics!R$57/1000*(1-S266) -> 9.0708 | J266: Fossil fuel | O266: 13.5 | Q266: 240
A267: =A$27 -> 1978-1995 Large , Single Detached | B267: 0 | D267: 0 | I267: =Statistics!R$58/1000*(1-S267) -> 20.3664 | J267: Fossil fuel | O267: 13.5 | Q267: 240
A268: =A$28 -> 1978-1995 , Single Detached, Single Attached, Apart. | B268: 0 | D268: 0 | I268: =Statistics!R$59/1000*(1-S268) -> 14.9618 | J268: Fossil fuel | O268: 13.5 | Q268: 240
A269: =A$29 -> 1996-2010 Two Storey , Single Detached | B269: 0 | D269: 0 | I269: =Statistics!R$60/1000*(1-S269) -> 17.6279 | J269: Fossil fuel | O269: 13.5 | Q269: 240
A270: =A$30 -> 1996-2010 Small , Single Attached, Single Attached, Apart., Mob. H. | B270: 0 | D270: 0 | I270: =Statistics!R$61/1000*(1-S270) -> 13.7496 | J270: Fossil fuel | O270: 13.5 | Q270: 240
A271: =A$31 -> 1996-2010 , Single Detached, Single Attached, Apart. | B271: 0 | D271: 0 | I271: =Statistics!R$62/1000*(1-S271) -> 14.3357 | J271: Fossil fuel | O271: 13.5 | Q271: 240
A272: =A$32 -> 2011-2020 Small , Single Detached, Single Attached, Apart., Mob. H. | B272: 0 | D272: 0 | I272: =Statistics!R$63/1000*(1-S272) -> 8.1215 | J272: Fossil fuel | O272: 13.5 | Q272: 240
... 44 more rows

Sheet Financial
A1: ='User Input Output'!K18 -> Quebec
G2: =IF(lang="English","Order of magnitude Unit Costs for GHG Reduction Measures","Coût unitaire estimé pour les mesures d’économie d’énergie") -> Order of magnitude Unit Costs for GHG Reduction Measures | S2: =IF(lang="English","See explanations of A B C D and E below","Voir explications pour A B C D et E ci-bas") -> See explanations of A B C D and E below
T3: A | U3: B | V3: C | W3: D | X3: E | Z3: Scenario | AB3: =Scenario -> 3
A4: Archétype | B4: Superficie moyenne du batiment | C4: nombre de batiments | D4: charge thermique de pointe (tonnes/bâtiment) apres MEEs | E4: Charge de refroidissement maximale (tonnes/bâtiment) apres MEEs | F4: Capacité du jeu de batteries (kWh) | G4: Capacité de stockage thermique (kWh) | H4: Pompe a chaleur source air coût fixe de base ($/unité) | I4: Pompe a chaleur source air coût variable ($/tonnes) | J4: Pompe a chaleur: (allocation moyenne pour la mise à jour / ajustement des conduits) ($/pi2) | K4: (allocation moyenne de mise à niveau du service électrique) ($/unité) | L4: Pompe a chaleur source sol prix de base ($/unite) | M4: Pompe a chaleur source sol coût de base ($/unite) | N4: Système à eau chaude solaire installé ($/unité) | O4: Pompe à chaleur pour eau chaude coût par unité | P4: Système panneaux solair coût par kWp | Q4: coût indirect pour system electricity solaire par building | R4: coût des batteries ($/kWh) | S4: coût du stockage thermique ($/kWh) | T4: reduction de la charge thermique (%) | U4: Reduction de la charge de refroidissement (%) | V4: Reduction de l'energie pour eau chaude (%) | W4: Reduction des charge selectriques en general | X4: Reduction des charge de lumiere (%) | Z4: Order of magnitude costs of measures for entire inventory
A5: ='User Input Output'!A2 -> Archetype | B5: Average area per building (ft²) | C5: # of Buildings | D5: Peak heat load post measures (tons/ building) | E5: Post measures Peak cooling load (tons/ building) | F5: Battery bank capacity (kWhrs) | G5: Thermal storage capacity (kWhrs) | H5: ASHP (intercept equipment) ( $/unit) | I5: ASHP ($/ton) | J5: AS/GS HP (ductwork upgrade average allowance) ($/ft2) | K5: AS/GS HP (electrical service upgrade avg allowance) ($/unit) | L5: GSHP (intercept equipment) ($/unit) | M5: GSHP ($/ton) | N5: SDHW ($/each) | O5: DHW HP ($/each) | P5: PV ($/kWp) | Q5: indirect cost PV installation ($/building) | R5: Battery ($/kWhr) | S5: # Thermal Storage ($/kWhr) | T5: Heating Load % Reduction ($/ft2/%) | U5: Cooling Load % Reduction ($/ft2/%) | V5: DHW % Reduction avg allowance ($/dwelling/%) | W5: Plug Load reduction ($/dwelling/%) | X5: Lighting Load % Reduction ($/ft2/%) | Z5: ='User Input Output'!AW2 -> ASHP Cost | AA5: ='User Input Output'!AX2 -> GSHP Cost | AB5: ='User Input Output'!AY2 -> SDHW (INPUT) | AC5: ='User Input Output'!AZ2 -> PV #(INPUT) | AD5: ='User Input Output'!BA2 -> Battery Cost | AE5: ='User Input Output'!BB2 -> Thermal Storage | AF5: ='User Input Output'!BC2 -> Heating Load Reduction | AG5: ='User Input Output'!BD2 -> Cooling Load Reduction | AH5: ='User Input Output'!BE2 -> DHW Reduction | AI5: ='User Input Output'!BF2 -> Plug Load reduction | AJ5: ='User Input Output'!BG2 -> Lighting Load Reduction | AK5: total
A6: ='User Input Output'!A3 -> Before 1946 All dwellings , Single Detached, Single Attached, Apart., Mob. H. | B6: ='User Input Output'!Y3 -> 2182.921033 | C6: ='User Input Output'!Z3 -> 127 | D6: ='User Input Output'!AA3 -> 4.478408299 | E6: ='User Input Output'!AB3 -> 0 | F6: ='User Input Output'!AC3 -> 13.5 | G6: ='User Input Output'!AD3 -> 240 | H6: 1500 | I6: 1200 | J6: 1.5 | K6: 5000 | L6: 5000 | M6: 5000 | N6: 2500 | O6: 4000 | P6: 2200 | Q6: 2000 | R6: 800 | S6: 200 | T6: 1 | U6: 0 | V6: =1000/33 -> 30.3030303 | W6: =14000/50 -> 280 | X6: =10*80/75/1800 -> 0.005925925926 | Z6: ='User Input Output'!AW3 -> 0 | AA6: ='User Input Output'!AX3 -> 0 | AB6: ='User Input Output'!AY3 -> 0 | AC6: ='User Input Output'!AZ3 -> 0 | AD6: ='User Input Output'!BA3 -> 0 | AE6: ='User Input Output'!BB3 -> 0 | AF6: ='User Input Output'!BC3 -> 0 | AG6: ='User Input Output'!BD3 -> 0 | AH6: ='User Input Output'!BE3 -> 0 | AI6: ='User Input Output'!BF3 -> 0 | AJ6: ='User Input Output'!BG3 -> 0 | AK6: =SUM(Z6:AJ6)-MIN(AF6:AG6) -> 0
A7: ='User Input Output'!A4 -> 1946-1977 Large , Single Detached | B7: ='User Input Output'!Y4 -> 6110.671944 | C7: ='User Input Output'!Z4 -> 57 | D7: ='User Input Output'!AA4 -> 5.915144846 | E7: ='User Input Output'!AB4 -> 1.070587413 | F7: ='User Input Output'!AC4 -> 13.5 | G7: ='User Input Output'!AD4 -> 240 | H7: =H6 -> 1500 | I7: 1200 | J7: 1 | K7: 3000 | L7: 5000 | M7: 5000 | N7: 2500 | O7: =O6 -> 4000 | P7: 2200 | Q7: 2000 | R7: =R6 -> 800 | S7: 100 | T7: 1 | U7: 0 | V7: =V6 -> 30.3030303 | W7: 280 | X7: 0.005925925926 | Z7: ='User Input Output'!AW4 -> 0 | AA7: ='User Input Output'!AX4 -> 0 | AB7: ='User Input Output'!AY4 -> 0 | AC7: ='User Input Output'!AZ4 -> 0 | AD7: ='User Input Output'!BA4 -> 0 | AE7: ='User Input Output'!BB4 -> 0 | AF7: ='User Input Output'!BC4 -> 0 | AG7: ='User Input Output'!BD4 -> 0 | AH7: ='User Input Output'!BE4 -> 0 | AI7: ='User Input Output'!BF4 -> 0 | AJ7: ='User Input Output'!BG4 -> 0 | AK7: 0
A8: ='User Input Output'!A5 -> 1946-1977 , Single Detached, Single Detached, Apart., Mob. H. | B8: ='User Input Output'!Y5 -> 2045.142979 | C8: ='User Input Output'!Z5 -> 140 | D8: ='User Input Output'!AA5 -> 4.159692622 | E8: ='User Input Output'!AB5 -> 0 | F8: ='User Input Output'!AC5 -> 13.5 | G8: ='User Input Output'!AD5 -> 240 | H8: 1500 | I8: 1200 | J8: 0.5 | K8: 3000 | L8: 5000 | M8: 5000 | N8: 2500 | O8: 4000 | P8: 2200 | Q8: 2000 | R8: 800 | S8: =S7 -> 100 | T8: 1 | U8: 0 | V8: 30.3030303 | W8: 280 | X8: 0.005925925926 | Z8: ='User Input Output'!AW5 -> 0 | AA8: ='User Input Output'!AX5 -> 0 | AB8: ='User Input Output'!AY5 -> 0 | AC8: ='User Input Output'!AZ5 -> 0 | AD8: ='User Input Output'!BA5 -> 0 | AE8: ='User Input Output'!BB5 -> 0 | AF8: ='User Input Output'!BC5 -> 0 | AG8: ='User Input Output'!BD5 -> 0 | AH8: ='User Input Output'!BE5 -> 0 | AI8: ='User Input Output'!BF5 -> 0 | AJ8: ='User Input Output'!BG5 -> 0 | AK8: 0
A9: ='User Input Output'!A6 -> 1978-1995 Small , Apart., Mob. H. | B9: ='User Input Output'!Y6 -> 581.2511625 | C9: ='User Input Output'!Z6 -> 87 | D9: ='User Input Output'!AA6 -> 2.24100538 | E9: ='User Input Output'!AB6 -> 0 | F9: ='User Input Output'!AC6 -> 13.5 | G9: ='User Input Output'!AD6 -> 240 | H9: 1500 | I9: 1200 | J9: 2 | K9: 3000 | L9: 5000 | M9: 5000 | N9: 3500 | O9: 4000 | P9: 2200 | Q9: 2000 | R9: 800 | S9: 100 | T9: 0.8 | U9: 0 | V9: 30.3030303 | W9: 280 | X9: 0.005925925926 | Z9: ='User Input Output'!AW6 -> 0 | AA9: ='User Input Output'!AX6 -> 0 | AB9: ='User Input Output'!AY6 -> 0 | AC9: ='User Input Output'!AZ6 -> 0 | AD9: ='User Input Output'!BA6 -> 0 | AE9: ='User Input Output'!BB6 -> 0 | AF9: ='User Input Output'!BC6 -> 0 | AG9: ='User Input Output'!BD6 -> 0 | AH9: ='User Input Output'!BE6 -> 0 | AI9: ='User Input Output'!BF6 -> 0 | AJ9: ='User Input Output'!BG6 -> 0 | AK9: 0
A10: ='User Input Output'!A7 -> 1978-1995 Large , Single Detached | B10: ='User Input Output'!Y7 -> 4515.46042 | C10: ='User Input Output'!Z7 -> 39 | D10: ='User Input Output'!AA7 -> 6.58309838 | E10: ='User Input Output'!AB7 -> 0.8576219447 | F10: ='User Input Output'!AC7 -> 13.5 | G10: ='User Input Output'!AD7 -> 240 | H10: 1500 | I10: 1200 | J10: 1.5 | K10: 3000 | L10: 5000 | M10: 5000 | N10: 3500 | O10: 4000 | P10: 2200 | Q10: 2000 | R10: 800 | S10: 100 | T10: =T9 -> 0.8 | U10: 0 | V10: 30.3030303 | W10: 280 | X10: 0.005925925926 | Z10: ='User Input Output'!AW7 -> 0 | AA10: ='User Input Output'!AX7 -> 0 | AB10: ='User Input Output'!AY7 -> 0 | AC10: ='User Input Output'!AZ7 -> 0 | AD10: ='User Input Output'!BA7 -> 0 | AE10: ='User Input Output'!BB7 -> 0 | AF10: ='User Input Output'!BC7 -> 0 | AG10: ='User Input Output'!BD7 -> 0 | AH10: ='User Input Output'!BE7 -> 0 | AI10: ='User Input Output'!BF7 -> 0 | AJ10: ='User Input Output'!BG7 -> 0 | AK10: 0
A11: ='User Input Output'!A8 -> 1978-1995 , Single Detached, Single Attached, Apart. | B11: ='User Input Output'!Y8 -> 947.2241167 | C11: ='User Input Output'!Z8 -> 200 | D11: ='User Input Output'!AA8 -> 3.874855047 | E11: ='User Input Output'!AB8 -> 0.8696511158 | F11: ='User Input Output'!AC8 -> 13.5 | G11: ='User Input Output'!AD8 -> 240 | H11: 1500 | I11: 1200 | J11: 1 | K11: 2000 | L11: 5000 | M11: 5000 | N11: 3500 | O11: 4000 | P11: 2200 | Q11: 2000 | R11: 800 | S11: 100 | T11: =T10 -> 0.8 | U11: 0 | V11: 30.3030303 | W11: 280 | X11: 0.005925925926 | Z11: ='User Input Output'!AW8 -> 0 | AA11: ='User Input Output'!AX8 -> 0 | AB11: ='User Input Output'!AY8 -> 0 | AC11: ='User Input Output'!AZ8 -> 1080000 | AD11: ='User Input Output'!BA8 -> 0 | AE11: ='User Input Output'!BB8 -> 0 | AF11: ='User Input Output'!BC8 -> 0 | AG11: ='User Input Output'!BD8 -> 0 | AH11: ='User Input Output'!BE8 -> 0 | AI11: ='User Input Output'!BF8 -> 0 | AJ11: ='User Input Output'!BG8 -> 0 | AK11: 1080000
A12: ='User Input Output'!A9 -> 1996-2010 Two Storey , Single Detached | B12: ='User Input Output'!Y9 -> 2162.469603 | C12: ='User Input Output'!Z9 -> 138 | D12: ='User Input Output'!AA9 -> 3.937616113 | E12: ='User Input Output'!AB9 -> 0.763985084 | F12: ='User Input Output'!AC9 -> 13.5 | G12: ='User Input Output'!AD9 -> 240 | H12: 1500 | I12: 1200 | J12: 1.5 | K12: 2000 | L12: 5000 | M12: 5000 | N12: 3000 | O12: 4000 | P12: 2200 | Q12: 2000 | R12: 800 | S12: 100 | T12: 0.7 | U12: 0 | V12: 30.3030303 | W12: 280 | X12: 0.005925925926 | Z12: ='User Input Output'!AW9 -> 0 | AA12: ='User Input Output'!AX9 -> 0 | AB12: ='User Input Output'!AY9 -> 0 | AC12: ='User Input Output'!AZ9 -> 845000 | AD12: ='User Input Output'!BA9 -> 0 | AE12: ='User Input Output'!BB9 -> 0 | AF12: ='User Input Output'!BC9 -> 0 | AG12: ='User Input Output'!BD9 -> 0 | AH12: ='User Input Output'!BE9 -> 0 | AI12: ='User Input Output'!BF9 -> 0 | AJ12: ='User Input Output'!BG9 -> 0 | AK12: 845000
A13: ='User Input Output'!A10 -> 1996-2010 Small , Single Attached, Single Attached, Apart., Mob. H. | B13: ='User Input Output'!Y10 -> 1280.90534 | C13: ='User Input Output'!Z10 -> 104 | D13: ='User Input Output'!AA10 -> 3.661023926 | E13: ='User Input Output'!AB10 -> 0.9509577816 | F13: ='User Input Output'!AC10 -> 13.5 | G13: ='User Input Output'!AD10 -> 240 | H13: 2500 | I13: 1200 | J13: 2 | K13: 2000 | L13: 5000 | M13: 5000 | N13: 2500 | O13: 4000 | P13: 2200 | Q13: 2000 | R13: 800 | S13: 100 | T13: =T12 -> 0.7 | U13: 0 | V13: 30.3030303 | W13: 280 | X13: 0.005925925926 | Z13: ='User Input Output'!AW10 -> 0 | AA13: ='User Input Output'!AX10 -> 0 | AB13: ='User Input Output'!AY10 -> 0 | AC13: ='User Input Output'!AZ10 -> 0 | AD13: ='User Input Output'!BA10 -> 0 | AE13: ='User Input Output'!BB10 -> 0 | AF13: ='User Input Output'!BC10 -> 0 | AG13: ='User Input Output'!BD10 -> 0 | AH13: ='User Input Output'!BE10 -> 0 | AI13: ='User Input Output'!BF10 -> 0 | AJ13: ='User Input Output'!BG10 -> 0 | AK13: 0
A14: ='User Input Output'!A11 -> 1996-2010 , Single Detached, Single Attached, Apart. | B14: ='User Input Output'!Y11 -> 2038.684633 | C14: ='User Input Output'!Z11 -> 104 | D14: ='User Input Output'!AA11 -> 5.401730934 | E14: ='User Input Output'!AB11 -> 0 | F14: ='User Input Output'!AC11 -> 13.5 | G14: ='User Input Output'!AD11 -> 240 | H14: 2500 | I14: 1200 | J14: 2 | K14: 2000 | L14: 5000 | M14: 5000 | N14: 2500 | O14: 4000 | P14: 2200 | Q14: 2000 | R14: 800 | S14: 100 | T14: =T13 -> 0.7 | U14: 0 | V14: 30.3030303 | W14: 280 | X14: 0.005925925926 | Z14: ='User Input Output'!AW11 -> 0 | AA14: ='User Input Output'!AX11 -> 0 | AB14: ='User Input Output'!AY11 -> 0 | AC14: ='User Input Output'!AZ11 -> 0 | AD14: ='User Input Output'!BA11 -> 0 | AE14: ='User Input Output'!BB11 -> 0 | AF14: ='User Input Output'!BC11 -> 0 | AG14: ='User Input Output'!BD11 -> 0 | AH14: ='User Input Output'!BE11 -> 0 | AI14: ='User Input Output'!BF11 -> 0 | AJ14: ='User Input Output'!BG11 -> 0 | AK14: 0
A15: ='User Input Output'!A12 -> 2011-2020 Small , Single Detached, Single Attached, Apart., Mob. H. | B15: ='User Input Output'!Y12 -> 818.0571917 | C15: ='User Input Output'!Z12 -> 131 | D15: ='User Input Output'!AA12 -> 2.23745045 | E15: ='User Input Output'!AB12 -> 0 | F15: ='User Input Output'!AC12 -> 13.5 | G15: ='User Input Output'!AD12 -> 240 | H15: 2500 | I15: 1000 | J15: 1 | K15: 2000 | L15: 5000 | M15: 5000 | N15: 2500 | O15: 4000 | P15: 2200 | Q15: 2000 | R15: 800 | S15: 100 | T15: =T14 -> 0.7 | U15: 0 | V15: 30.3030303 | W15: 280 | X15: 0.005925925926 | Z15: ='User Input Output'!AW12 -> 0 | AA15: ='User Input Output'!AX12 -> 0 | AB15: ='User Input Output'!AY12 -> 0 | AC15: ='User Input Output'!AZ12 -> 0 | AD15: ='User Input Output'!BA12 -> 0 | AE15: ='User Input Output'!BB12 -> 0 | AF15: ='User Input Output'!BC12 -> 0 | AG15: ='User Input Output'!BD12 -> 0 | AH15: ='User Input Output'!BE12 -> 0 | AI15: ='User Input Output'!BF12 -> 0 | AJ15: ='User Input Output'!BG12 -> 0 | AK15: 0
A16: ='User Input Output'!A13 -> 2011-2020 , Single Detached, Single Attached, Apart. | B16: ='User Input Output'!Y13 -> 2129.10148 | C16: ='User Input Output'!Z13 -> 164 | D16: ='User Input Output'!AA13 -> 2.367383647 | E16: ='User Input Output'!AB13 -> 0 | F16: ='User Input Output'!AC13 -> 13.5 | G16: ='User Input Output'!AD13 -> 240 | H16: 2500 | I16: 1000 | J16: 4 | K16: 2000 | L16: 5000 | M16: 5000 | N16: 2000 | O16: 4000 | P16: 2200 | Q16: 2000 | R16: 800 | S16: 100 | T16: =T15 -> 0.7 | U16: 0 | V16: 30.3030303 | W16: 280 | X16: 0.005925925926 | Z16: ='User Input Output'!AW13 -> 0 | AA16: ='User Input Output'!AX13 -> 0 | AB16: ='User Input Output'!AY13 -> 0 | AC16: ='User Input Output'!AZ13 -> 0 | AD16: ='User Input Output'!BA13 -> 0 | AE16: ='User Input Output'!BB13 -> 0 | AF16: ='User Input Output'!BC13 -> 0 | AG16: ='User Input Output'!BD13 -> 0 | AH16: ='User Input Output'!BE13 -> 0 | AI16: ='User Input Output'!BF13 -> 0 | AJ16: ='User Input Output'!BG13 -> 0 | AK16: 0
AJ17: Total | AK17: =SUM(AK6:AK16) -> 1925000
C18: =IF(lang="English","Electricity rates input table","Tableau d’entrée des tarifs d’électricité") -> Electricity rates input table | J18: Heating oil price | L18: 1.61 | M18: $/l | N18: $/kWh | Q18: Wood | R18: Bois | S18: 140 | T18: $/cord
C19: =IF(lang="English","Fixed rate","Taux fixe") -> Fixed rate | E19: 0.15 | F19: $/kWh | J19: Oil | L19: =L18/38.68*1000 -> 41.62357808 | M19: $/GJ | N19: =L19/278 -> 0.149725101 | Q19: Wood | R19: Bois | S19: 21 | T19: GJ/cord | W19: Example
C20: =IF(lang="English","Time of Use (TOU) Rates:","Tarifs d'électricité selon l'heure d'utilisation") -> Time of Use (TOU) Rates: | J20: Natural gas price | L20: 0.3 | M20: $/m3 | Q20: Wood | R20: Bois | S20: =S18/S19 -> 6.666666667 | T20: $/GJ | U20: =S20/278 -> 0.02398081535 | W20: 70000 | X20: DER cost
C21: =IF(lang="English","Hours of day starting at:","Heures de la journée à partir de:") -> Hours of day starting at: | D21: =IF(lang="English","Any day","Tous les jours") -> Any day | E21: =IF(lang="English","Summer weekend","Fin de semaine été") -> Summer weekend | F21: =IF(lang="English","Winter week day","Jours de semaine hiver") -> Winter week day | G21: =IF(lang="English","Winter weekend","Fin de semaine hiver") -> Winter weekend | J21: Gas | L21: =L20/0.038 -> 7.894736842 | M21: $/GJ | N21: =L21/278 -> 0.02839833396 | Q21: =IF(lang="English","Wood stove average efficiency","Efficacité moyenne du poêle à bois") -> Wood stove average efficiency | S21: 0.65 | W21: 0.5 | X21: Efficiency gain
C22: 0 | D22: 0.0962 | E22: =D22 -> 0.0962 | F22: =E22 -> 0.0962 | G22: =F22 -> 0.0962 | J22: Propane gas price | L22: 1.28 | M22: $/l | O22: =IF(lang="English",CONCATENATE("Note: provincial statistics suggest that the dominant fossil fuel in this jurisdiction is ",O135,". If this is not the case, select a fossil fuel here to overwrite =>"),CONCATENATE("Remarque : les statistiques provinciales suggèrent que le combustible fossile dominant dans cette juridiction est ",IF(O135="oil","l'huile",IF(O135="gas","le gas naturel","le propane")),". Si ce n'est pas le cas, sélectionnez ici un combustible fossile alternatif =>")) -> Note: provincial statistics suggest that the dominant fossil fuel in this jurisdiction is gas. If this is not the case, select a fossil fuel here to overwrite => | W22: 2000 | X22: ft2 area
C23: 1 | D23: =D22 -> 0.0962 | E23: =E22 -> 0.0962 | F23: =F22 -> 0.0962 | G23: =G22 -> 0.0962 | J23: Propane | L23: =1000*L22/(50*0.493) -> 51.92697769 | M23: $/GJ | N23: =L23/278 -> 0.1867876895 | W23: 0.7 | X23: $/ft/%
C24: 2 | D24: 0.0962 | E24: 0.0962 | F24: 0.0962 | G24: 0.0962
C25: 3 | D25: 0.0962 | E25: 0.0962 | F25: 0.0962 | G25: 0.0962 | I25: =IF(lang="English","The following parameters are used to calculate the GHG emissions from electricity and from gas. Default values provided:","Les paramètres suivants sont utilisés pour calculer les émissions de GES de l'électricité et du gaz. Valeurs par défaut fournies :") -> The following parameters are used to calculate the GHG emissions from electricity and from gas. Default values provided: | P25: =IF(lang="English","Unit costs per ft2 explanation"," Explication des coûts unitaires par pied carré") -> Unit costs per ft2 explanation
C26: 4 | D26: 0.0962 | E26: 0.0962 | F26: 0.0962 | G26: 0.0962 | P26: A | Q26: =IF(lang="English","For each % point of reduction, for each ft2, this unit cost applies. Example: 50% reduction X 2000 ft2 x $0.75/%/ft2 = $75,000","Pour chaque point de % de réduction, pour chaque pi2, ce coût unitaire s'applique. Exemple : réduction de 50 % X 2 000 pi2 x 0,75 $/%/pi2 = 75 000 $.") -> For each % point of reduction, for each ft2, this unit cost applies. Example: 50% reduction X 2000 ft2 x $0.75/%/ft2 = $75,000
C27: 5 | D27: 0.0962 | E27: 0.0962 | F27: 0.0962 | G27: 0.0962
C28: 6 | D28: 0.0962 | E28: 0.0962 | F28: 0.0962 | G28: 0.0962 | I28: Bois | J28: Wood | L28: 0.004 | M28: kgCO2e/kWh
C29: 7 | D29: 0.0962 | E29: 0.0962 | F29: 0.0962 | G29: 0.0962 | I29: GN | J29: NG | L29: =56/277.8 -> 0.2015838733 | M29: kgCO2e/kWh | P29: B | Q29: =IF(lang="English","Same calculation as above. But usually in our cold climate, heat load reduction yield similar cooling load reduction, so carefull not to double count. ","Même calcul que ci-dessus. Mais généralement, dans notre climat froid, la réduction de la charge thermique entraîne une réduction similaire de la charge de refroidissement, alors faites attention à ne pas compter deux fois.") -> Same calculation as above. But usually in our cold climate, heat load reduction yield similar cooling load reduction, so carefull not to double count.
C30: 8 | D30: 0.0962 | E30: 0.0962 | F30: 0.0962 | G30: 0.0962 | I30: Huile | J30: Oil | L30: 0.245 | M30: =M29 -> kgCO2e/kWh
C31: 9 | D31: 0.0962 | E31: 0.0962 | F31: 0.0962 | G31: 0.0962 | I31: Propane | J31: Propane | L31: 0.21 | M31: =M30 -> kgCO2e/kWh
C32: 10 | D32: 0.0962 | E32: 0.0962 | F32: 0.0962 | G32: 0.0962 | J32: =IF(lang="English","Scope 1 carbon allowance for:","Quota carbone de la portée 1 pour :") -> Scope 1 carbon allowance for: | P32: C | Q32: =IF(lang="English","For each % reduction in hot water energy, this unit cost applies. Example, 33% saving at $30/% means investment of $1000 required.","Pour chaque % de réduction d’énergie pour l’eau chaude, ce coût unitaire s’applique. Par exemple, une économie de 33 % à 30 $/% signifie un investissement de 1 000 $ requis.") -> For each % reduction in hot water energy, this unit cost applies. Example, 33% saving at $30/% means investment of $1000 required.
C33: 11 | D33: 0.0962 | E33: 0.0962 | F33: 0.0962 | G33: 0.0962 | I33: GN | J33: Gas | K33: =IF(lang="English","SCope 1 GHG for NG fugitive is assumed to be 0.6% and with GWP100:","GES pour GN fugitif estime avec GWP100 a 0.6%:") -> SCope 1 GHG for NG fugitive is assumed to be 0.6% and with GWP100: | N33: =0.6/2.7*0.32 -> 0.07111111111
C34: 12 | D34: 0.0962 | E34: 0.0962 | F34: 0.0962 | G34: 0.0962 | I34: Electricite | J34: Electricity | K34: =IF(lang="english","Included in AEFs forecast","Inclus dans les prévisions de l'intensité de l'électricité ") -> Included in AEFs forecast | N34: 0
C35: 13 | D35: 0.0962 | E35: 0.0962 | F35: 0.0962 | G35: 0.0962 | I35: Huile | J35: Oil | N35: 0.01 | P35: D | Q35: =IF(lang="English","For each % reduction in plug load energy, this unit cost applies. Example, 40% saving at $250/% means investment of $10,000 required.","Pour chaque % de réduction de l’énergie de charge de prises de courant, ce coût unitaire s’applique. Par exemple, une économie de 40 % à 250 $/% signifie un investissement de 10 000 $ requis.") -> For each % reduction in plug load energy, this unit cost applies. Example, 40% saving at $250/% means investment of $10,000 required.
C36: 14 | D36: 0.0962 | E36: 0.0962 | F36: 0.0962 | G36: 0.0962 | I36: Propane | J36: Propane | N36: 0.03
C37: 15 | D37: 0.0962 | E37: 0.0962 | F37: 0.0962 | G37: 0.0962 | I37: =IF(lang="English","(These are added to the nominal emission factor )","(Ceux-ci s'ajoutent aux facteurs d'émission nominaux)") -> (These are added to the nominal emission factor )
C38: 16 | D38: 0.2406 | E38: =E37 -> 0.0962 | F38: 0.0962 | G38: 0.0962 | I38: =IF(lang="English","If your jurisdiction has its own forecast for the AEF (average emission factor) for the local grid, this can be defined in Line 16 of the Emission factors Tab. If so, select custom AEF forecast in the cell below","Si votre juridiction a ses propres prévisions pour le facteur d’émission moyen pour le réseau électrique local, le définir à la ligne 16 de l’onglet ' 'Emission factors ' '. Et sélectionez ce choix dans la cellule ci-dessous") -> If your jurisdiction has its own forecast for the AEF (average emission factor) for the local grid, this can be defined in Line 16 of the Emission factors Tab. If so, select custom AEF forecast in the cell below | P38: E | Q38: =IF(lang="English","For each % point of reduction for lights, for each ft2, this unit cost applies. Example: 75% reduction X 1800 ft2 x $0.006/%/ft2 = $810.","Pour chaque point de % de réduction pour les luminaires, pour chaque pi2, ce coût unitaire s'applique. Exemple : réduction de 75 % X 1 800 pi2 x 0,006 $/%/pi2 = 810 $.") -> For each % point of reduction for lights, for each ft2, this unit cost applies. Example: 75% reduction X 1800 ft2 x $0.006/%/ft2 = $810.
C39: 17 | D39: =D38 -> 0.2406 | E39: 0.0962 | F39: 0.0962 | G39: 0.0962
C40: 18 | D40: =D39 -> 0.2406 | E40: 0.0962 | F40: 0.0962 | G40: 0.0962 | I40: Use provincial AEF // Utiliser previsions provinciales
C41: 19 | D41: =D40 -> 0.2406 | E41: 0.0962 | F41: 0.0962 | G41: 0.0962 | I41: =IF(lang="english","Community level renewable energy project","Projet d'énergie renouvelable au niveau communautaire") -> Community level renewable energy project | O41: 2030 | P41: =IF(lang="English","Year","Année") -> Year | Q41: The unit costs provided are default values only. They provide an order of magnitude for the overall investment. Local task force should validate these, especially as projects are completed and costs better understood.
C42: 20 | D42: =D41 -> 0.2406 | E42: 0.0962 | F42: 0.0962 | G42: 0.0962 | I42: =IF(lang="English","Estimated Annual Power Generation","Production annuelle d’électricité estimée") -> Estimated Annual Power Generation | N42: 200 | O42: MWh
C43: 21 | D43: 0.0962 | E43: 0.0962 | F43: 0.0962 | G43: 0.0962 | I43: =IF(lang="English","LCA GHG emission per kWh","Valeur ACV GES") -> LCA GHG emission per kWh | N43: 30 | O43: g CO2e/kWh | Q43: Les coûts unitaires fournis sont uniquement des valeurs par défaut. Ils donnent un ordre de grandeur pour l’investissement global. Le groupe de travail local devrait les valider, d’autant plus que les projets sont terminés et que les coûts sont mieux compris.
C44: 22 | D44: =D43 -> 0.0962 | E44: 0.0962 | F44: 0.0962 | G44: 0.0962 | I44: =IF(lang="English","Note: this energy source can only be credited to the building sector.","Attention : cette source d'énergie doit etre dédiée au secteur du bâtiment") -> Note: this energy source can only be credited to the building sector.
C45: 23 | D45: =D44 -> 0.0962 | E45: 0.0962 | F45: 0.0962 | G45: 0.0962 | I45: The impact of such a project appears in the result matrix as "Community level renewable energy project credit (kg/CO2)". See sample LCA GHG emission values below. L'impact d'un tel projet apparaît dans la matrice de résultats dans "Crédit pour un projet d'énergie renouvelable au niveau communautaire (kg/CO2)". Voir exemples des valeurs d'emission pour differentes technologies ci-bas.
Q47: =IF(lang="English","Note: LCA = Life Cycle Analysis","Note: ACV = Analyse du cylce de vie") -> Note: LCA = Life Cycle Analysis
C49: Sample LCA GHG emission values (g CO2e / kWhr)
C50: Exemple des valeurs ACV d'emission pour differentes technologies (g CO2e / kWhr)
J51: Minimum | K51: 25th percentile | L51: Median | M51: 75th percentile | N51: Maximum
C52: Photovoltaics // photovoltaique | J52: 20 | K52: 40 | L52: 55 | M52: 80 | N52: 220
C53: Concentrating Solar power // solaire a concentration | J53: 10 | K53: 15 | L53: 20 | M53: 25 | N53: 250
C54: Wind // éolien | J54: 5 | K54: 10 | L54: 15 | M54: 20 | N54: 80
C55: Nuclear // nucléaire | J55: 10 | K55: 12 | L55: 15 | M55: 20 | N55: 240
C56: NG combine cycle // Production d'elec. au gas naturel | J56: 380 | L56: 450 | N56: 750
C57: Coal / Charbon | J57: 700 | L57: 950 | N57: 1700
C62: SOURCE:
C63: Life Cycle Assessment Harmonization | Energy Analysis | NREL, Gavin Heat, The National Renewable Energy Laboratory is a national laboratory of the U.S. Department of Energy, Office of Energy Efficiency and Renewable Energy, operated by the Alliance for Sustainable Energy LLC., 2023.
C66: hhtps://www.nrel.gov/analysis/life-cycle-assessment.html
A86: Information below is for programmer only. Information ci-dessous pour programmeur seulement.
B100: Imported from the Statistic Tab, existing heating systems % by type:
B101: Linear extrapolation based on 2019 to 2020 changes | I101: Reference year selected by User | M101: Sourced default efficiencies (see snips beside) | N101: Assumned default efficiencies
B102: From NEUD data in "Statistics" Tab | I102: ='Scenarios definition'!C17 -> 2020
B103: 2021 | C103: 2022 | D103: 2023 | E103: 2024 | F103: 2025 | G103: 2026 | H103: in play
N104: =I102 -> 2020 | O104: Current
A105: Heating Oil – Normal Efficiency | B105: =IF((Statistics!AF33+(Statistics!$AF33-Statistics!$AE33))/100<0,0,(Statistics!AF33+(Statistics!$AF33-Statistics!$AE33))/100) -> 0 | C105: =IF(B105+(Statistics!$AF33-Statistics!$AE33)/100<0,0,B105+(Statistics!$AF33-Statistics!$AE33)/100) -> 0 | D105: =IF(C105+(Statistics!$AF33-Statistics!$AE33)/100<0,0,C105+(Statistics!$AF33-Statistics!$AE33)/100) -> 0 | E105: =IF(D105+(Statistics!$AF33-Statistics!$AE33)/100<0,0,D105+(Statistics!$AF33-Statistics!$AE33)/100) -> 0 | F105: =IF(E105+(Statistics!$AF33-Statistics!$AE33)/100<0,0,E105+(Statistics!$AF33-Statistics!$AE33)/100) -> 0 | G105: =IF(F105+(Statistics!$AF33-Statistics!$AE33)/100<0,0,F105+(Statistics!$AF33-Statistics!$AE33)/100) -> 0 | H105: =SUMIF(Financial!B$103:G$103,'Scenarios definition'!T$15,Financial!B105:G105) -> 0 | I105: =SUMIF(Statistics!L$31:AF$31,Financial!I$102,Statistics!L33:AF33)/100 -> 0 | J105: =Statistics!K33 -> Heating Oil – Normal Efficiency | M105: 0.72 | N105: =IF(SUM(I105:I107)=80%,0,(M105*I105+M106*I106+I107*M107)/(+I106+I107+I105)) -> 0.81 | O105: =IF((+E106+E107+E105)=0,M106,(M105*E105+M106*E106+E107*M107)/(+E106+E107+E105)) -> 0.81 | P105: Oil
A106: Heating Oil – Medium Efficiency | B106: =IF((Statistics!AF34+(Statistics!$AF34-Statistics!$AE34))/100<0,0,(Statistics!AF34+(Statistics!$AF34-Statistics!$AE34))/100) -> 0.01685548 | C106: =IF(B106+(Statistics!$AF34-Statistics!$AE34)/100<0,0,B106+(Statistics!$AF34-Statistics!$AE34)/100) -> 0.00984413 | D106: =IF(C106+(Statistics!$AF34-Statistics!$AE34)/100<0,0,C106+(Statistics!$AF34-Statistics!$AE34)/100) -> 0.00283278 | E106: =IF(D106+(Statistics!$AF34-Statistics!$AE34)/100<0,0,D106+(Statistics!$AF34-Statistics!$AE34)/100) -> 0 | F106: =IF(E106+(Statistics!$AF34-Statistics!$AE34)/100<0,0,E106+(Statistics!$AF34-Statistics!$AE34)/100) -> 0 | G106: =IF(F106+(Statistics!$AF34-Statistics!$AE34)/100<0,0,F106+(Statistics!$AF34-Statistics!$AE34)/100) -> 0 | H106: =SUMIF(Financial!B$103:G$103,'Scenarios definition'!T$15,Financial!B106:G106) -> 0.00283278 | I106: =SUMIF(Statistics!L$31:AF$31,Financial!I$102,Statistics!L34:AF34)/100 -> 0.02386683 | J106: =Statistics!K34 -> Heating Oil – Medium Efficiency | M106: 0.81
A107: Heating Oil – High Efficiency | B107: =IF((Statistics!AF35+(Statistics!$AF35-Statistics!$AE35))/100<0,0,(Statistics!AF35+(Statistics!$AF35-Statistics!$AE35))/100) -> 0 | C107: =IF(B107+(Statistics!$AF35-Statistics!$AE35)/100<0,0,B107+(Statistics!$AF35-Statistics!$AE35)/100) -> 0 | D107: =IF(C107+(Statistics!$AF35-Statistics!$AE35)/100<0,0,C107+(Statistics!$AF35-Statistics!$AE35)/100) -> 0 | E107: =IF(D107+(Statistics!$AF35-Statistics!$AE35)/100<0,0,D107+(Statistics!$AF35-Statistics!$AE35)/100) -> 0 | F107: =IF(E107+(Statistics!$AF35-Statistics!$AE35)/100<0,0,E107+(Statistics!$AF35-Statistics!$AE35)/100) -> 0 | G107: =IF(F107+(Statistics!$AF35-Statistics!$AE35)/100<0,0,F107+(Statistics!$AF35-Statistics!$AE35)/100) -> 0 | H107: =SUMIF(Financial!B$103:G$103,'Scenarios definition'!T$15,Financial!B107:G107) -> 0 | I107: =SUMIF(Statistics!L$31:AF$31,Financial!I$102,Statistics!L35:AF35)/100 -> 0 | J107: =Statistics!K35 -> Heating Oil – High Efficiency | M107: 0.92
A108: Natural Gas – Normal Efficiency | B108: =IF((Statistics!AF36+(Statistics!$AF36-Statistics!$AE36))/100<0,0,(Statistics!AF36+(Statistics!$AF36-Statistics!$AE36))/100) -> 2.11e-06 | C108: =IF(B108+(Statistics!$AF36-Statistics!$AE36)/100<0,0,B108+(Statistics!$AF36-Statistics!$AE36)/100) -> 0 | D108: =IF(C108+(Statistics!$AF36-Statistics!$AE36)/100<0,0,C108+(Statistics!$AF36-Statistics!$AE36)/100) -> 0 | E108: =IF(D108+(Statistics!$AF36-Statistics!$AE36)/100<0,0,D108+(Statistics!$AF36-Statistics!$AE36)/100) -> 0 | F108: =IF(E108+(Statistics!$AF36-Statistics!$AE36)/100<0,0,E108+(Statistics!$AF36-Statistics!$AE36)/100) -> 0 | G108: =IF(F108+(Statistics!$AF36-Statistics!$AE36)/100<0,0,F108+(Statistics!$AF36-Statistics!$AE36)/100) -> 0 | H108: =SUMIF(Financial!B$103:G$103,'Scenarios definition'!T$15,Financial!B108:G108) -> 0 | I108: =SUMIF(Statistics!L$31:AF$31,Financial!I$102,Statistics!L36:AF36)/100 -> 1.143e-05 | J108: =Statistics!K36 -> Natural Gas – Normal Efficiency | M108: 0.8 | N108: =IF(SUM(I108:I110)=0,85%,(M108*I108+M109*I109+I110*M110)/(+I109+I110+I108)) -> 0.9536405551 | O108: =IF((+E109+E110+E108)=0,M109,(M108*E108+M109*E109+E110*M110)/(+E109+E110+E108)) -> 0.9551500911 | P108: gas
A109: Natural Gas – Medium Efficiency | B109: =IF((Statistics!AF37+(Statistics!$AF37-Statistics!$AE37))/100<0,0,(Statistics!AF37+(Statistics!$AF37-Statistics!$AE37))/100) -> 0.00899541 | C109: =IF(B109+(Statistics!$AF37-Statistics!$AE37)/100<0,0,B109+(Statistics!$AF37-Statistics!$AE37)/100) -> 0.00812185 | D109: =IF(C109+(Statistics!$AF37-Statistics!$AE37)/100<0,0,C109+(Statistics!$AF37-Statistics!$AE37)/100) -> 0.00724829 | E109: =IF(D109+(Statistics!$AF37-Statistics!$AE37)/100<0,0,D109+(Statistics!$AF37-Statistics!$AE37)/100) -> 0.00637473 | F109: =IF(E109+(Statistics!$AF37-Statistics!$AE37)/100<0,0,E109+(Statistics!$AF37-Statistics!$AE37)/100) -> 0.00550117 | G109: =IF(F109+(Statistics!$AF37-Statistics!$AE37)/100<0,0,F109+(Statistics!$AF37-Statistics!$AE37)/100) -> 0.00462761 | H109: =SUMIF(Financial!B$103:G$103,'Scenarios definition'!T$15,Financial!B109:G109) -> 0.00724829 | I109: =SUMIF(Statistics!L$31:AF$31,Financial!I$102,Statistics!L37:AF37)/100 -> 0.00986897 | J109: =Statistics!K37 -> Natural Gas – Medium Efficiency | M109: 0.9
A110: Natural Gas – High Efficiency | B110: =IF((Statistics!AF38+(Statistics!$AF38-Statistics!$AE38))/100<0,0,(Statistics!AF38+(Statistics!$AF38-Statistics!$AE38))/100) -> 0.08076144 | C110: =IF(B110+(Statistics!$AF38-Statistics!$AE38)/100<0,0,B110+(Statistics!$AF38-Statistics!$AE38)/100) -> 0.07800409 | D110: =IF(C110+(Statistics!$AF38-Statistics!$AE38)/100<0,0,C110+(Statistics!$AF38-Statistics!$AE38)/100) -> 0.07524674 | E110: =IF(D110+(Statistics!$AF38-Statistics!$AE38)/100<0,0,D110+(Statistics!$AF38-Statistics!$AE38)/100) -> 0.07248939 | F110: =IF(E110+(Statistics!$AF38-Statistics!$AE38)/100<0,0,E110+(Statistics!$AF38-Statistics!$AE38)/100) -> 0.06973204 | G110: =IF(F110+(Statistics!$AF38-Statistics!$AE38)/100<0,0,F110+(Statistics!$AF38-Statistics!$AE38)/100) -> 0.06697469 | H110: =SUMIF(Financial!B$103:G$103,'Scenarios definition'!T$15,Financial!B110:G110) -> 0.07524674 | I110: =SUMIF(Statistics!L$31:AF$31,Financial!I$102,Statistics!L38:AF38)/100 -> 0.08351879 | J110: =Statistics!K38 -> Natural Gas – High Efficiency | M110: 0.96
A111: Electric | B111: =IF((Statistics!AF39+(Statistics!$AF39-Statistics!$AE39))/100<0,0,(Statistics!AF39+(Statistics!$AF39-Statistics!$AE39))/100) -> 0.59219353 | C111: =IF(B111+(Statistics!$AF39-Statistics!$AE39)/100<0,0,B111+(Statistics!$AF39-Statistics!$AE39)/100) -> 0.60775361 | D111: =IF(C111+(Statistics!$AF39-Statistics!$AE39)/100<0,0,C111+(Statistics!$AF39-Statistics!$AE39)/100) -> 0.62331369 | E111: =IF(D111+(Statistics!$AF39-Statistics!$AE39)/100<0,0,D111+(Statistics!$AF39-Statistics!$AE39)/100) -> 0.63887377 | F111: =IF(E111+(Statistics!$AF39-Statistics!$AE39)/100<0,0,E111+(Statistics!$AF39-Statistics!$AE39)/100) -> 0.65443385 | G111: =IF(F111+(Statistics!$AF39-Statistics!$AE39)/100<0,0,F111+(Statistics!$AF39-Statistics!$AE39)/100) -> 0.66999393 | H111: =SUMIF(Financial!B$103:G$103,'Scenarios definition'!T$15,Financial!B111:G111) -> 0.62331369 | I111: =SUMIF(Statistics!L$31:AF$31,Financial!I$102,Statistics!L39:AF39)/100 -> 0.57663345 | J111: =Statistics!K39 -> Electric
A112: Heat Pump | B112: =IF((Statistics!AF40+(Statistics!$AF40-Statistics!$AE40))/100<0,0,(Statistics!AF40+(Statistics!$AF40-Statistics!$AE40))/100) -> 0.04675345 | C112: =IF(B112+(Statistics!$AF40-Statistics!$AE40)/100<0,0,B112+(Statistics!$AF40-Statistics!$AE40)/100) -> 0.04866194 | D112: =IF(C112+(Statistics!$AF40-Statistics!$AE40)/100<0,0,C112+(Statistics!$AF40-Statistics!$AE40)/100) -> 0.05057043 | E112: =IF(D112+(Statistics!$AF40-Statistics!$AE40)/100<0,0,D112+(Statistics!$AF40-Statistics!$AE40)/100) -> 0.05247892 | F112: =IF(E112+(Statistics!$AF40-Statistics!$AE40)/100<0,0,E112+(Statistics!$AF40-Statistics!$AE40)/100) -> 0.05438741 | G112: =IF(F112+(Statistics!$AF40-Statistics!$AE40)/100<0,0,F112+(Statistics!$AF40-Statistics!$AE40)/100) -> 0.0562959 | H112: =SUMIF(Financial!B$103:G$103,'Scenarios definition'!T$15,Financial!B112:G112) -> 0.05057043 | I112: =SUMIF(Statistics!L$31:AF$31,Financial!I$102,Statistics!L40:AF40)/100 -> 0.04484496 | J112: =Statistics!K40 -> Heat Pump
A113: Other1 | B113: =IF((Statistics!AF41+(Statistics!$AF41-Statistics!$AE41))/100<0,0,(Statistics!AF41+(Statistics!$AF41-Statistics!$AE41))/100) -> 0.00500749 | C113: =IF(B113+(Statistics!$AF41-Statistics!$AE41)/100<0,0,B113+(Statistics!$AF41-Statistics!$AE41)/100) -> 0.00356428 | D113: =IF(C113+(Statistics!$AF41-Statistics!$AE41)/100<0,0,C113+(Statistics!$AF41-Statistics!$AE41)/100) -> 0.00212107 | E113: =IF(D113+(Statistics!$AF41-Statistics!$AE41)/100<0,0,D113+(Statistics!$AF41-Statistics!$AE41)/100) -> 0.00067786 | F113: =IF(E113+(Statistics!$AF41-Statistics!$AE41)/100<0,0,E113+(Statistics!$AF41-Statistics!$AE41)/100) -> 0 | G113: =IF(F113+(Statistics!$AF41-Statistics!$AE41)/100<0,0,F113+(Statistics!$AF41-Statistics!$AE41)/100) -> 0 | H113: =SUMIF(Financial!B$103:G$103,'Scenarios definition'!T$15,Financial!B113:G113) -> 0.00212107 | I113: =SUMIF(Statistics!L$31:AF$31,Financial!I$102,Statistics!L41:AF41)/100 -> 0.0064507 | J113: Coal and propane | M113: 0.81 | N113: =M113 -> 0.81 | O113: =M113 -> 0.81 | P113: Propane
A114: Wood | B114: =IF((Statistics!AF42+(Statistics!$AF42-Statistics!$AE42))/100<0,0,(Statistics!AF42+(Statistics!$AF42-Statistics!$AE42))/100) -> 0.01149776 | C114: =IF(B114+(Statistics!$AF42-Statistics!$AE42)/100<0,0,B114+(Statistics!$AF42-Statistics!$AE42)/100) -> 0.01098075 | D114: =IF(C114+(Statistics!$AF42-Statistics!$AE42)/100<0,0,C114+(Statistics!$AF42-Statistics!$AE42)/100) -> 0.01046374 | E114: =IF(D114+(Statistics!$AF42-Statistics!$AE42)/100<0,0,D114+(Statistics!$AF42-Statistics!$AE42)/100) -> 0.00994673 | F114: =IF(E114+(Statistics!$AF42-Statistics!$AE42)/100<0,0,E114+(Statistics!$AF42-Statistics!$AE42)/100) -> 0.00942972 | G114: =IF(F114+(Statistics!$AF42-Statistics!$AE42)/100<0,0,F114+(Statistics!$AF42-Statistics!$AE42)/100) -> 0.00891271 | H114: =SUMIF(Financial!B$103:G$103,'Scenarios definition'!T$15,Financial!B114:G114) -> 0.01046374 | I114: =SUMIF(Statistics!L$31:AF$31,Financial!I$102,Statistics!L42:AF42)/100 -> 0.01201477 | J114: =Statistics!K42 -> Wood
A115: Dual Systems | B115: =IF((Statistics!AF43+(Statistics!$AF43-Statistics!$AE43))/100<0,0,(Statistics!AF43+(Statistics!$AF43-Statistics!$AE43))/100) -> 0 | C115: =IF(B115+(Statistics!$AF43-Statistics!$AE43)/100<0,0,B115+(Statistics!$AF43-Statistics!$AE43)/100) -> 0 | D115: =IF(C115+(Statistics!$AF43-Statistics!$AE43)/100<0,0,C115+(Statistics!$AF43-Statistics!$AE43)/100) -> 0 | E115: =IF(D115+(Statistics!$AF43-Statistics!$AE43)/100<0,0,D115+(Statistics!$AF43-Statistics!$AE43)/100) -> 0 | F115: =IF(E115+(Statistics!$AF43-Statistics!$AE43)/100<0,0,E115+(Statistics!$AF43-Statistics!$AE43)/100) -> 0 | G115: =IF(F115+(Statistics!$AF43-Statistics!$AE43)/100<0,0,F115+(Statistics!$AF43-Statistics!$AE43)/100) -> 0 | H115: =SUMIF(Financial!B$103:G$103,'Scenarios definition'!T$15,Financial!B115:G115) -> 0 | I115: =SUMIF(Statistics!L$31:AF$31,Financial!I$102,Statistics!L43:AF43)/100 -> 0 | J115: =Statistics!K43 -> Dual Systems
A116: Wood/Electric | B116: =IF((Statistics!AF44+(Statistics!$AF44-Statistics!$AE44))/100<0,0,(Statistics!AF44+(Statistics!$AF44-Statistics!$AE44))/100) -> 0.17656824 | C116: =IF(B116+(Statistics!$AF44-Statistics!$AE44)/100<0,0,B116+(Statistics!$AF44-Statistics!$AE44)/100) -> 0.17533814 | D116: =IF(C116+(Statistics!$AF44-Statistics!$AE44)/100<0,0,C116+(Statistics!$AF44-Statistics!$AE44)/100) -> 0.17410804 | E116: =IF(D116+(Statistics!$AF44-Statistics!$AE44)/100<0,0,D116+(Statistics!$AF44-Statistics!$AE44)/100) -> 0.17287794 | F116: =IF(E116+(Statistics!$AF44-Statistics!$AE44)/100<0,0,E116+(Statistics!$AF44-Statistics!$AE44)/100) -> 0.17164784 | G116: =IF(F116+(Statistics!$AF44-Statistics!$AE44)/100<0,0,F116+(Statistics!$AF44-Statistics!$AE44)/100) -> 0.17041774 | H116: =SUMIF(Financial!B$103:G$103,'Scenarios definition'!T$15,Financial!B116:G116) -> 0.17410804 | I116: =SUMIF(Statistics!L$31:AF$31,Financial!I$102,Statistics!L44:AF44)/100 -> 0.17779834 | J116: =Statistics!K44 -> Wood/Electric
A117: Wood/Heating Oil | B117: =IF((Statistics!AF45+(Statistics!$AF45-Statistics!$AE45))/100<0,0,(Statistics!AF45+(Statistics!$AF45-Statistics!$AE45))/100) -> 0.02149367 | C117: =IF(B117+(Statistics!$AF45-Statistics!$AE45)/100<0,0,B117+(Statistics!$AF45-Statistics!$AE45)/100) -> 0.01976927 | D117: =IF(C117+(Statistics!$AF45-Statistics!$AE45)/100<0,0,C117+(Statistics!$AF45-Statistics!$AE45)/100) -> 0.01804487 | E117: =IF(D117+(Statistics!$AF45-Statistics!$AE45)/100<0,0,D117+(Statistics!$AF45-Statistics!$AE45)/100) -> 0.01632047 | F117: =IF(E117+(Statistics!$AF45-Statistics!$AE45)/100<0,0,E117+(Statistics!$AF45-Statistics!$AE45)/100) -> 0.01459607 | G117: =IF(F117+(Statistics!$AF45-Statistics!$AE45)/100<0,0,F117+(Statistics!$AF45-Statistics!$AE45)/100) -> 0.01287167 | H117: =SUMIF(Financial!B$103:G$103,'Scenarios definition'!T$15,Financial!B117:G117) -> 0.01804487 | I117: =SUMIF(Statistics!L$31:AF$31,Financial!I$102,Statistics!L45:AF45)/100 -> 0.02321807 | J117: =Statistics!K45 -> Wood/Heating Oil | N117: Back up ratio | P117: 0.2
A118: Natural Gas/Electric | B118: =IF((Statistics!AF46+(Statistics!$AF46-Statistics!$AE46))/100<0,0,(Statistics!AF46+(Statistics!$AF46-Statistics!$AE46))/100) -> 0.01052285 | C118: =IF(B118+(Statistics!$AF46-Statistics!$AE46)/100<0,0,B118+(Statistics!$AF46-Statistics!$AE46)/100) -> 0.0103015 | D118: =IF(C118+(Statistics!$AF46-Statistics!$AE46)/100<0,0,C118+(Statistics!$AF46-Statistics!$AE46)/100) -> 0.01008015 | E118: =IF(D118+(Statistics!$AF46-Statistics!$AE46)/100<0,0,D118+(Statistics!$AF46-Statistics!$AE46)/100) -> 0.0098588 | F118: =IF(E118+(Statistics!$AF46-Statistics!$AE46)/100<0,0,E118+(Statistics!$AF46-Statistics!$AE46)/100) -> 0.00963745 | G118: =IF(F118+(Statistics!$AF46-Statistics!$AE46)/100<0,0,F118+(Statistics!$AF46-Statistics!$AE46)/100) -> 0.0094161 | H118: =SUMIF(Financial!B$103:G$103,'Scenarios definition'!T$15,Financial!B118:G118) -> 0.01008015 | I118: =SUMIF(Statistics!L$31:AF$31,Financial!I$102,Statistics!L46:AF46)/100 -> 0.0107442 | J118: =Statistics!K46 -> Natural Gas/Electric
A119: Heating Oil/Electric | B119: =IF((Statistics!AF47+(Statistics!$AF47-Statistics!$AE47))/100<0,0,(Statistics!AF47+(Statistics!$AF47-Statistics!$AE47))/100) -> 0.02934856 | C119: =IF(B119+(Statistics!$AF47-Statistics!$AE47)/100<0,0,B119+(Statistics!$AF47-Statistics!$AE47)/100) -> 0.02766764 | D119: =IF(C119+(Statistics!$AF47-Statistics!$AE47)/100<0,0,C119+(Statistics!$AF47-Statistics!$AE47)/100) -> 0.02598672 | E119: =IF(D119+(Statistics!$AF47-Statistics!$AE47)/100<0,0,D119+(Statistics!$AF47-Statistics!$AE47)/100) -> 0.0243058 | F119: =IF(E119+(Statistics!$AF47-Statistics!$AE47)/100<0,0,E119+(Statistics!$AF47-Statistics!$AE47)/100) -> 0.02262488 | G119: =IF(F119+(Statistics!$AF47-Statistics!$AE47)/100<0,0,F119+(Statistics!$AF47-Statistics!$AE47)/100) -> 0.02094396 | H119: =SUMIF(Financial!B$103:G$103,'Scenarios definition'!T$15,Financial!B119:G119) -> 0.02598672 | I119: =SUMIF(Statistics!L$31:AF$31,Financial!I$102,Statistics!L47:AF47)/100 -> 0.03102948 | J119: =Statistics!K47 -> Heating Oil/Electric
B120: =IF((Statistics!AF48+(Statistics!$AF48-Statistics!$AE48))/100<0,0,(Statistics!AF48+(Statistics!$AF48-Statistics!$AE48))/100) -> 0.99999999 | C120: =IF(B120+(Statistics!$AF48-Statistics!$AE48)/100<0,0,B120+(Statistics!$AF48-Statistics!$AE48)/100) -> 0.99999999 | D120: =IF(C120+(Statistics!$AF48-Statistics!$AE48)/100<0,0,C120+(Statistics!$AF48-Statistics!$AE48)/100) -> 0.99999999 | E120: =IF(D120+(Statistics!$AF48-Statistics!$AE48)/100<0,0,D120+(Statistics!$AF48-Statistics!$AE48)/100) -> 0.99999999 | F120: =IF(E120+(Statistics!$AF48-Statistics!$AE48)/100<0,0,E120+(Statistics!$AF48-Statistics!$AE48)/100) -> 0.99999999 | G120: =IF(F120+(Statistics!$AF48-Statistics!$AE48)/100<0,0,F120+(Statistics!$AF48-Statistics!$AE48)/100) -> 0.99999999 | H120: =SUMIF(Financial!B$103:G$103,'Scenarios definition'!T$15,Financial!B120:G120) -> 0.99999999 | I120: =SUMIF(Statistics!L$31:AF$31,Financial!I$102,Statistics!L48:AF48)/100 -> 0.99999999 | J120: =Statistics!K48 -> 0
B121: =SUM(B105:B120) -> 1.99999998 | C121: 2.00000719 | D121: 2.00001651 | E121: 2.0042044 | F121: 2.01199042 | G121: 2.0204543
I124: Summarizing all those heating systems into the 5 heating systems used for scenario definition
D125: Main FF | E125: ref, year | F125: current | M125: =N104 -> 2020 | O125: =O104 -> Current
D126: gas | E126: =SUM(I108:I110) -> 0.09339919 | F126: =SUM(H108:H110) -> 0.08249503 | H126: A | I126: Beseboard or electric furnace (ea.) | M126: =I111+(I116+I118+I119)*P117 -> 0.620547854 | O126: =H111+(H116+H118+H119)*P117 -> 0.665348672
D127: oil | E127: =SUM(I105:I107) -> 0.02386683 | F127: =SUM(H105:H107) -> 0.00283278 | I127: Dominant Fossil Fuel | M127: =IF(E126=MAX(E126:E128),D126,IF(E127=MAX(E126:E128),D127,D128)) -> gas | O127: =IF(T24="",IF(F126=MAX(F126:F128),D126,IF(F127=MAX(F126:F128),D127,D128)),IF(T24="GN","gas",IF(T24="huile","oil",T24))) -> gas
D128: propane | E128: =I113 -> 0.0064507 | F128: =H113 -> 0.00212107 | H128: B | I128: % fossil fuel heating system | M128: =SUM(I105:I110)+I113+I117*P117+(I118+I119)*(1-P117) -> 0.161779278 | O128: =SUM(H105:H110)+H113+H117*P117+(H118+H119)*(1-P117) -> 0.11991135
I129: Efficiency | M129: =SUMIF(P105:P113,M127,N105:N113) -> 0.9536405551 | O129: =SUMIF(P105:P113,O127,O105:O113) -> 0.9551500911
H130: C | I130: Wood (ea.) | M130: =(I114+(I116+I117)*(1-P117)) -> 0.172827898 | O130: =(H114+(H116+H117)*(1-P117)) -> 0.164186068
H131: D | I131: Air source heat pump (ASHP) (ea.) | M131: =I112 -> 0.04484496 | O131: =H112 -> 0.05057043
A132: ARCHETYPES AREA | K132: check A+B+C+D | M132: =M126+M128+M130+M131 -> 0.99999999 | O132: =O126+O128+O130+O131 -> 1.00001652
A133: Note from programmer. | M133: Scenario 1 | O133: Scenario 2
A134: Imported from Archetypes Files from "Analysis" Tab to populate Scenarios 1 and 2
A135: Archetype | E135: Sq. ft. | F135: m2 | I135: Dominant fossil fuel as per provincial statistics | O135: =IF(F126=MAX(F126:F128),D126,IF(F127=MAX(F126:F128),D127,D128)) -> gas
A136: =Statistics!AG54 -> Before 1946 All dwellings , Single Detached, Single Attached, Apart., Mob. H. | E136: =F136/0.3048^2 -> 2182.921033 | F136: =Statistics!G54 -> 202.8
A137: =Statistics!AG55 -> 1946-1977 Large , Single Detached | E137: 6110.671944 | F137: =Statistics!G55 -> 567.7
A138: =Statistics!AG56 -> 1946-1977 , Single Detached, Single Detached, Apart., Mob. H. | E138: 2045.142979 | F138: =Statistics!G56 -> 190
A139: =Statistics!AG57 -> 1978-1995 Small , Apart., Mob. H. | E139: 581.2511625 | F139: =Statistics!G57 -> 54
A140: =Statistics!AG58 -> 1978-1995 Large , Single Detached | E140: 4515.46042 | F140: =Statistics!G58 -> 419.5
A141: =Statistics!AG59 -> 1978-1995 , Single Detached, Single Attached, Apart. | E141: 947.2241167 | F141: =Statistics!G59 -> 88
A142: =Statistics!AG60 -> 1996-2010 Two Storey , Single Detached | E142: 2162.469603 | F142: =Statistics!G60 -> 200.9
A143: =Statistics!AG61 -> 1996-2010 Small , Single Attached, Single Attached, Apart., Mob. H. | E143: 1280.90534 | F143: =Statistics!G61 -> 119
A144: =Statistics!AG62 -> 1996-2010 , Single Detached, Single Attached, Apart. | E144: 2038.684633 | F144: =Statistics!G62 -> 189.4
A145: =Statistics!AG63 -> 2011-2020 Small , Single Detached, Single Attached, Apart., Mob. H. | E145: 818.0571917 | F145: =Statistics!G63 -> 76
A146: =Statistics!AG64 -> 2011-2020 , Single Detached, Single Attached, Apart. | E146: 2129.10148 | F146: =Statistics!G64 -> 197.8
A149: Lookup table for energy source costs per kWh and GHG emissions
A150: Bois
A151: Gas
A200: This data copied into the report by the report generating macro.
A201: Principal énergie fossile | E201: (Selon statistic provincial) | I201: ='User Input Output'!I21 -> 
A202: Coût du combustible fossile dominant | I202: =Financial!L18 -> 1.61 | J202: =IF(M127="oil","$/l",IF(M127="gas","$/m3","$/l")) -> $/m3
A203: Coût du combustible fossile $/kWh | I203: =Financial!L19 -> 41.62357808 | J203: $/kWh
A204: Coefficient d'émission moyen, elect. (kgCO2e/kWh) | I204: ='User Input Output'!B15 -> 0.0181 | J204: kg/kWh
A205: Intensité GES pour oil (kgCO2e/kWh) | I205: ='User Input Output'!B16 -> 0.2159187265 | J205: kg/kWh
A206: Intensité GES du bois de chauffage (kgCO2e/kWh) | I206: ='User Input Output'!B17 -> 0.004 | J206: kg/kWh
A207: Plan tarifaire électricité (taux horaires (TOU) ou fixe | I207: ='User Input Output'!B18 -> TOU
G208: Tarif pointe | I208: =MAX(Financial!D22:G45) -> 0.2406 | J208: $/kWh
G209: Tarif base | I209: =MIN(Financial!D22:G45) -> 0.0962 | J209: $/kWh
A210: Tarif fixe pour l'électricité si applicable ($/kWh) | I210: ='User Input Output'!B19 -> n/a

Sheet Report
A1: ='User Input Output'!A14 -> CTAP | E1: =IF(lang="English","Report","Rapport") -> Report | I1: ='User Input Output'!K18 -> Quebec | S1: =TODAY() -> 2024-11-07
AD2: Instructions:
AD3: =IF(lang="english","To generate a report comparing a given scenario to the reference year, select Scenario 1 on the User Input Output Tab, and execute Step 2. Come back to this Tab, and then click the first button below.","Pour générer un rapport comparant un scénario donné à l'année de référence, sélectionnez le scénario « 1 » dans l'onglet « Entrée-sortie utilisateur » et exécutez l'étape 2. Revenez à cet onglet, puis cliquez sur le premier bouton ci-dessous.") -> To generate a report comparing a given scenario to the reference year, select Scenario 1 on the User Input Output Tab, and execute Step 2. Come back to this Tab, and then click the first button below.
A4: =IF(lang="english","Parameters:","Paramètres:") -> Parameters: | I4: ='Scenarios definition'!C22 -> Baseline scenario 2020 | O4: =A40 -> Scenario number 3 year: | R4: =F40 -> 2030 | S4: =I5 -> Total no. of dwelings: | X4: =F52 -> 1291
I5: =IF(lang="english","Total no. of dwelings:","Nombre total de logements:") -> Total no. of dwelings: | M5: ='Scenarios definition'!B34 -> 4130835 | O5: =G40 -> test data for report
A8: =IF(lang="English",'User Input Output'!G20,'User Input Output'!G21) -> Dominant fossil fuel: | E8: =IF(lang="English","(As per provincial statistics)","(Selon statistic provincial)") -> (As per provincial statistics) | I8: Huile a chauffage | O8: Huile a chauffage
A9: =IF(lang="English","Cost of dominant fossil fuel","Coût du combustible fossile dominant") -> Cost of dominant fossil fuel | I9: 1.61 | J9: $/l | O9: 1.61 | P9: $/l
A10: ='User Input Output'!A20 -> Fossil fuel price in $/kWh | I10: 41.62357808 | J10: $/kWh | O10: 41.62357808 | P10: $/kWh
A11: ='User Input Output'!A15 -> Elec GHG Intensity (kgCO2e/kWh) | I11: 0.1815 | J11: kg/kWh | O11: 0.059 | P11: kg/kWh
A12: ='User Input Output'!A16 -> GHG Intensity of gas (kgCO2e/kWh) | I12: 0.24745 | J12: kg/kWh | O12: 0.24745 | P12: kg/kWh
A13: ='User Input Output'!A17 -> Wood GHG Intensity (kgCO2e/kWh) | I13: 0.004 | J13: kg/kWh | O13: 0.004 | P13: kg/kWh
A14: ='User Input Output'!A18 -> Electricl Rate Plan (Time of use TOU or fixed) | I14: TOU | O14: TOU
G15: =IF(lang="English","Peak rate","Tarif pointe") -> Peak rate | I15: 0.2406 | J15: $/kWh | O15: 0.2406 | P15: $/kWh
G16: =IF(lang="English","Base rate","Tarif base") -> Base rate | I16: 0.0962 | J16: $/kWh | O16: 0.0962 | P16: $/kWh
A17: ='User Input Output'!A19 -> Fixed Elec. Rate, if applicable. ($/kWh) | I17: n/a | O17: n/a
AD19: =IF(lang="English","Then in the User Input Output tab, select the scenario to compare to the reference case, and execute Step 2. Come back to this Tab, and then click the button below.","Ensuite, dans l'onglet « Entrée-sortie utilisateur », sélectionnez le scénario à comparer au cas de référence et exécutez l'étape 2. Revenez à cet onglet, puis cliquez sur le bouton ci-dessous.") -> Then in the User Input Output tab, select the scenario to compare to the reference case, and execute Step 2. Come back to this Tab, and then click the button below.
A22: ='Scenarios definition'!A22 -> Scenario number 1 year: | F22: ='Scenarios definition'!B22 -> 2020 | G22: ='Scenarios definition'!C22 -> Baseline scenario 2020
G23: ='Scenarios definition'!D19 -> Select space heating method | O23: ='Scenarios definition'!K19 -> Additional low carbon energy technology options | V23: ='Scenarios definition'!S19 -> Energy conservation measures (ECMs)
G24: ='Scenarios definition'!C20 -> Electricity | H24: ='Scenarios definition'!D20 -> Combustion | K24: ='Scenarios definition'!G20 -> Heat pump | M24: ='Scenarios definition'!I20 -> Hybrid | N24: ='Scenarios definition'!J20 -> 0 | O24: ='Scenarios definition'!K20 -> Enter number of buildings to be upgraded and capacities | V24: ='Scenarios definition'!S20 -> ( energy retrofit and appliances ugrades)
A25: ='Scenarios definition'!A21 -> Archetype | F25: ='Scenarios definition'!B21 -> Total number of buildings Nombre total d'unites (ea.) | G25: ='Scenarios definition'!C21 -> Baseboard or electric furnace Plinthe ou fournaise électrique (ea.) | H25: ='Scenarios definition'!D21 -> gas | I25: ='Scenarios definition'!E21 -> Efficiency Efficacité (%) | J25: ='Scenarios definition'!F21 -> Wood Bois de chaufage (ea.) | K25: ='Scenarios definition'!G21 -> Air source heat pump thermo- pompe source air (ASHP) (ea.) | L25: ='Scenarios definition'!H21 -> Ground source heat pump Thermopompe source sol (GSHP) (ea.) | M25: ='Scenarios definition'!I21 -> Capacity of heap pump. Capacité de la thermopompe (HP) (kW) | N25: ='Scenarios definition'!J21 -> Heat Pump/ Hybrid Thermopompe /hybride option (select below) | O25: ='Scenarios definition'!K21 -> Solar domestic water heater Chauffe-eau solaire (SDHW) (ea.) | P25: ='Scenarios definition'!L21 -> Photo- voltaic array Panneaux solaires (PV) (ea.) | Q25: ='Scenarios definition'!M21 -> Capacity of PV array per building Capacité des panneaux solaires par unité (kWp) | R25: ='Scenarios definition'!N21 -> Battery electricity storage Stockage d’électricité par batterie (BES) (ea.) | S25: ='Scenarios definition'!O21 -> Battery electricity storage capacity Capacité de stockage d’électricité de la batterie (kWhr) | T25: ='Scenarios definition'!P21 -> Thermal energy storage (TES) Stockage d'énergie thermique (ea.) | U25: ='Scenarios definition'!Q21 -> Thermal energy storage capacity Capacité de stockage d’énergie thermique (kWh) | V25: ='Scenarios definition'!R21 -> Number of buildings retrofited (ea.) | W25: ='Scenarios definition'!S21 -> Heating Load Reduction Réduction de la charge de chauffage (%) | X25: ='Scenarios definition'!T21 -> Cooling Load Reduction Réduction de la charge de refroi- dissement (%) | Y25: ='Scenarios definition'!U21 -> Domestic Hot Water Reduction Réduction d'énergie pour l'eau chaude (%) | Z25: ='Scenarios definition'!V21 -> Lighting Load Reduction Réduction de la charge d'éclairage (%) | AA25: ='Scenarios definition'!W21 -> Plug Load Reduction Réduction de charge des prises électriques (%)
A26: ='Scenarios definition'!A23 -> Before 1946 All dwellings , Single Detached, Single Attached, Apart., Mob. H. | F26: ='Scenarios definition'!B23 -> 543304 | G26: ='Scenarios definition'!C23 -> 337146 | H26: ='Scenarios definition'!D23 -> 87896 | I26: ='Scenarios definition'!E23 -> 0.9536405551 | J26: ='Scenarios definition'!F23 -> 93898 | K26: ='Scenarios definition'!G23 -> 24364 | L26: ='Scenarios definition'!H23 -> 0 | M26: ='Scenarios definition'!I23 -> 28.9555 | N26: ='Scenarios definition'!J23 -> Fossil fuel | O26: ='Scenarios definition'!K23 -> 0 | P26: ='Scenarios definition'!L23 -> 0 | Q26: ='Scenarios definition'!M23 -> 0 | R26: ='Scenarios definition'!N23 -> 0 | S26: =IF(R26=0,0,'Scenarios definition'!O23) -> 0 | T26: ='Scenarios definition'!P23 -> 0 | U26: =IF(T26=0,0,'Scenarios definition'!Q23) -> 0 | V26: ='Scenarios definition'!R23 -> 0 | W26: ='Scenarios definition'!S23 -> 0 | X26: ='Scenarios definition'!T23 -> 0 | Y26: ='Scenarios definition'!U23 -> 0 | Z26: ='Scenarios definition'!V23 -> 0 | AA26: ='Scenarios definition'!W23 -> 0 | AD26: =IF(lang="English","You can now print this report to a pdf or a printer.","Vous pouvez maintenant imprimer ce rapport au format PDF ou sur une imprimante.") -> You can now print this report to a pdf or a printer.
A27: ='Scenarios definition'!A24 -> 1946-1977 Large , Single Detached | F27: ='Scenarios definition'!B24 -> 247881 | G27: ='Scenarios definition'!C24 -> 153822 | H27: ='Scenarios definition'!D24 -> 40103 | I27: ='Scenarios definition'!E24 -> 0.9536405551 | J27: ='Scenarios definition'!F24 -> 42840 | K27: ='Scenarios definition'!G24 -> 11116 | L27: ='Scenarios definition'!H24 -> 0 | M27: ='Scenarios definition'!I24 -> 24.1785 | N27: ='Scenarios definition'!J24 -> Fossil fuel | O27: ='Scenarios definition'!K24 -> 0 | P27: ='Scenarios definition'!L24 -> 0 | Q27: ='Scenarios definition'!M24 -> 0 | R27: ='Scenarios definition'!N24 -> 0 | S27: =IF(R27=0,0,'Scenarios definition'!O24) -> 0 | T27: ='Scenarios definition'!P24 -> 0 | U27: =IF(T27=0,0,'Scenarios definition'!Q24) -> 0 | V27: ='Scenarios definition'!R24 -> 0 | W27: ='Scenarios definition'!S24 -> 0 | X27: ='Scenarios definition'!T24 -> 0 | Y27: ='Scenarios definition'!U24 -> 0 | Z27: ='Scenarios definition'!V24 -> 0 | AA27: ='Scenarios definition'!W24 -> 0
A28: ='Scenarios definition'!A25 -> 1946-1977 , Single Detached, Single Detached, Apart., Mob. H. | F28: ='Scenarios definition'!B25 -> 768095 | G28: ='Scenarios definition'!C25 -> 476639 | H28: ='Scenarios definition'!D25 -> 124263 | I28: ='Scenarios definition'!E25 -> 0.9536405551 | J28: ='Scenarios definition'!F25 -> 132748 | K28: ='Scenarios definition'!G25 -> 34445 | L28: ='Scenarios definition'!H25 -> 0 | M28: ='Scenarios definition'!I25 -> 15.7799 | N28: ='Scenarios definition'!J25 -> Fossil fuel | O28: ='Scenarios definition'!K25 -> 0 | P28: ='Scenarios definition'!L25 -> 0 | Q28: ='Scenarios definition'!M25 -> 0 | R28: ='Scenarios definition'!N25 -> 0 | S28: =IF(R28=0,0,'Scenarios definition'!O25) -> 0 | T28: ='Scenarios definition'!P25 -> 0 | U28: =IF(T28=0,0,'Scenarios definition'!Q25) -> 0 | V28: ='Scenarios definition'!R25 -> 0 | W28: ='Scenarios definition'!S25 -> 0 | X28: ='Scenarios definition'!T25 -> 0 | Y28: ='Scenarios definition'!U25 -> 0 | Z28: ='Scenarios definition'!V25 -> 0 | AA28: ='Scenarios definition'!W25 -> 0
A29: ='Scenarios definition'!A26 -> 1978-1995 Small , Apart., Mob. H. | F29: ='Scenarios definition'!B26 -> 289882 | G29: ='Scenarios definition'!C26 -> 179885 | H29: ='Scenarios definition'!D26 -> 46898 | I29: ='Scenarios definition'!E26 -> 0.9536405551 | J29: ='Scenarios definition'!F26 -> 50099 | K29: ='Scenarios definition'!G26 -> 13000 | L29: ='Scenarios definition'!H26 -> 0 | M29: ='Scenarios definition'!I26 -> 9.0708 | N29: ='Scenarios definition'!J26 -> Fossil fuel | O29: ='Scenarios definition'!K26 -> 0 | P29: ='Scenarios definition'!L26 -> 0 | Q29: ='Scenarios definition'!M26 -> 0 | R29: ='Scenarios definition'!N26 -> 0 | S29: =IF(R29=0,0,'Scenarios definition'!O26) -> 0 | T29: ='Scenarios definition'!P26 -> 0 | U29: =IF(T29=0,0,'Scenarios definition'!Q26) -> 0 | V29: ='Scenarios definition'!R26 -> 0 | W29: ='Scenarios definition'!S26 -> 0 | X29: ='Scenarios definition'!T26 -> 0 | Y29: ='Scenarios definition'!U26 -> 0 | Z29: ='Scenarios definition'!V26 -> 0 | AA29: ='Scenarios definition'!W26 -> 0
A30: ='Scenarios definition'!A27 -> 1978-1995 Large , Single Detached | F30: ='Scenarios definition'!B27 -> 263856 | G30: ='Scenarios definition'!C27 -> 163735 | H30: ='Scenarios definition'!D27 -> 42687 | I30: ='Scenarios definition'!E27 -> 0.9536405551 | J30: ='Scenarios definition'!F27 -> 45601 | K30: ='Scenarios definition'!G27 -> 11833 | L30: ='Scenarios definition'!H27 -> 0 | M30: ='Scenarios definition'!I27 -> 20.3664 | N30: ='Scenarios definition'!J27 -> Fossil fuel | O30: ='Scenarios definition'!K27 -> 0 | P30: ='Scenarios definition'!L27 -> 0 | Q30: ='Scenarios definition'!M27 -> 0 | R30: ='Scenarios definition'!N27 -> 0 | S30: =IF(R30=0,0,'Scenarios definition'!O27) -> 0 | T30: ='Scenarios definition'!P27 -> 0 | U30: =IF(T30=0,0,'Scenarios definition'!Q27) -> 0 | V30: ='Scenarios definition'!R27 -> 0 | W30: ='Scenarios definition'!S27 -> 0 | X30: ='Scenarios definition'!T27 -> 0 | Y30: ='Scenarios definition'!U27 -> 0 | Z30: ='Scenarios definition'!V27 -> 0 | AA30: ='Scenarios definition'!W27 -> 0
A31: ='Scenarios definition'!A28 -> 1978-1995 , Single Detached, Single Attached, Apart. | F31: ='Scenarios definition'!B28 -> 597434 | G31: ='Scenarios definition'!C28 -> 370736 | H31: ='Scenarios definition'!D28 -> 96653 | I31: ='Scenarios definition'!E28 -> 0.9536405551 | J31: ='Scenarios definition'!F28 -> 103253 | K31: ='Scenarios definition'!G28 -> 26792 | L31: ='Scenarios definition'!H28 -> 0 | M31: ='Scenarios definition'!I28 -> 14.9618 | N31: ='Scenarios definition'!J28 -> Fossil fuel | O31: ='Scenarios definition'!K28 -> 0 | P31: ='Scenarios definition'!L28 -> 0 | Q31: ='Scenarios definition'!M28 -> 0 | R31: ='Scenarios definition'!N28 -> 0 | S31: =IF(R31=0,0,'Scenarios definition'!O28) -> 0 | T31: ='Scenarios definition'!P28 -> 0 | U31: =IF(T31=0,0,'Scenarios definition'!Q28) -> 0 | V31: ='Scenarios definition'!R28 -> 0 | W31: ='Scenarios definition'!S28 -> 0 | X31: ='Scenarios definition'!T28 -> 0 | Y31: ='Scenarios definition'!U28 -> 0 | Z31: ='Scenarios definition'!V28 -> 0 | AA31: ='Scenarios definition'!W28 -> 0
A32: ='Scenarios definition'!A29 -> 1996-2010 Two Storey , Single Detached | F32: ='Scenarios definition'!B29 -> 181270 | G32: ='Scenarios definition'!C29 -> 112486 | H32: ='Scenarios definition'!D29 -> 29327 | I32: ='Scenarios definition'!E29 -> 0.9536405551 | J32: ='Scenarios definition'!F29 -> 31328 | K32: ='Scenarios definition'!G29 -> 8129 | L32: ='Scenarios definition'!H29 -> 0 | M32: ='Scenarios definition'!I29 -> 17.6279 | N32: ='Scenarios definition'!J29 -> Fossil fuel | O32: ='Scenarios definition'!K29 -> 0 | P32: ='Scenarios definition'!L29 -> 0 | Q32: ='Scenarios definition'!M29 -> 0 | R32: ='Scenarios definition'!N29 -> 0 | S32: =IF(R32=0,0,'Scenarios definition'!O29) -> 0 | T32: ='Scenarios definition'!P29 -> 0 | U32: =IF(T32=0,0,'Scenarios definition'!Q29) -> 0 | V32: ='Scenarios definition'!R29 -> 0 | W32: ='Scenarios definition'!S29 -> 0 | X32: ='Scenarios definition'!T29 -> 0 | Y32: ='Scenarios definition'!U29 -> 0 | Z32: ='Scenarios definition'!V29 -> 0 | AA32: ='Scenarios definition'!W29 -> 0
A33: ='Scenarios definition'!A30 -> 1996-2010 Small , Single Attached, Single Attached, Apart., Mob. H. | F33: ='Scenarios definition'!B30 -> 268693 | G33: ='Scenarios definition'!C30 -> 166736 | H33: ='Scenarios definition'!D30 -> 43470 | I33: ='Scenarios definition'!E30 -> 0.9536405551 | J33: ='Scenarios definition'!F30 -> 46437 | K33: ='Scenarios definition'!G30 -> 12050 | L33: ='Scenarios definition'!H30 -> 0 | M33: ='Scenarios definition'!I30 -> 13.7496 | N33: ='Scenarios definition'!J30 -> Fossil fuel | O33: ='Scenarios definition'!K30 -> 0 | P33: ='Scenarios definition'!L30 -> 0 | Q33: ='Scenarios definition'!M30 -> 0 | R33: ='Scenarios definition'!N30 -> 0 | S33: =IF(R33=0,0,'Scenarios definition'!O30) -> 0 | T33: ='Scenarios definition'!P30 -> 0 | U33: =IF(T33=0,0,'Scenarios definition'!Q30) -> 0 | V33: ='Scenarios definition'!R30 -> 0 | W33: ='Scenarios definition'!S30 -> 0 | X33: ='Scenarios definition'!T30 -> 0 | Y33: ='Scenarios definition'!U30 -> 0 | Z33: ='Scenarios definition'!V30 -> 0 | AA33: ='Scenarios definition'!W30 -> 0
A34: ='Scenarios definition'!A31 -> 1996-2010 , Single Detached, Single Attached, Apart. | F34: ='Scenarios definition'!B31 -> 410438 | G34: ='Scenarios definition'!C31 -> 254696 | H34: ='Scenarios definition'!D31 -> 66401 | I34: ='Scenarios definition'!E31 -> 0.9536405551 | J34: ='Scenarios definition'!F31 -> 70935 | K34: ='Scenarios definition'!G31 -> 18406 | L34: ='Scenarios definition'!H31 -> 0 | M34: ='Scenarios definition'!I31 -> 14.3357 | N34: ='Scenarios definition'!J31 -> Fossil fuel | O34: ='Scenarios definition'!K31 -> 0 | P34: ='Scenarios definition'!L31 -> 0 | Q34: ='Scenarios definition'!M31 -> 0 | R34: ='Scenarios definition'!N31 -> 0 | S34: =IF(R34=0,0,'Scenarios definition'!O31) -> 0 | T34: ='Scenarios definition'!P31 -> 0 | U34: =IF(T34=0,0,'Scenarios definition'!Q31) -> 0 | V34: ='Scenarios definition'!R31 -> 0 | W34: ='Scenarios definition'!S31 -> 0 | X34: ='Scenarios definition'!T31 -> 0 | Y34: ='Scenarios definition'!U31 -> 0 | Z34: ='Scenarios definition'!V31 -> 0 | AA34: ='Scenarios definition'!W31 -> 0
A35: ='Scenarios definition'!A32 -> 2011-2020 Small , Single Detached, Single Attached, Apart., Mob. H. | F35: ='Scenarios definition'!B32 -> 281603 | G35: ='Scenarios definition'!C32 -> 174748 | H35: ='Scenarios definition'!D32 -> 45559 | I35: ='Scenarios definition'!E32 -> 0.9536405551 | J35: ='Scenarios definition'!F32 -> 48668 | K35: ='Scenarios definition'!G32 -> 12628 | L35: ='Scenarios definition'!H32 -> 0 | M35: ='Scenarios definition'!I32 -> 8.1215 | N35: ='Scenarios definition'!J32 -> Fossil fuel | O35: ='Scenarios definition'!K32 -> 0 | P35: ='Scenarios definition'!L32 -> 0 | Q35: ='Scenarios definition'!M32 -> 0 | R35: ='Scenarios definition'!N32 -> 0 | S35: =IF(R35=0,0,'Scenarios definition'!O32) -> 0 | T35: ='Scenarios definition'!P32 -> 0 | U35: =IF(T35=0,0,'Scenarios definition'!Q32) -> 0 | V35: ='Scenarios definition'!R32 -> 0 | W35: ='Scenarios definition'!S32 -> 0 | X35: ='Scenarios definition'!T32 -> 0 | Y35: ='Scenarios definition'!U32 -> 0 | Z35: ='Scenarios definition'!V32 -> 0 | AA35: ='Scenarios definition'!W32 -> 0
A36: ='Scenarios definition'!A33 -> 2011-2020 , Single Detached, Single Attached, Apart. | F36: ='Scenarios definition'!B33 -> 278379 | G36: ='Scenarios definition'!C33 -> 172747 | H36: ='Scenarios definition'!D33 -> 45037 | I36: ='Scenarios definition'!E33 -> 0.9536405551 | J36: ='Scenarios definition'!F33 -> 48111 | K36: ='Scenarios definition'!G33 -> 12484 | L36: ='Scenarios definition'!H33 -> 0 | M36: ='Scenarios definition'!I33 -> 7.8538 | N36: ='Scenarios definition'!J33 -> Fossil fuel | O36: ='Scenarios definition'!K33 -> 0 | P36: ='Scenarios definition'!L33 -> 0 | Q36: ='Scenarios definition'!M33 -> 0 | R36: ='Scenarios definition'!N33 -> 0 | S36: =IF(R36=0,0,'Scenarios definition'!O33) -> 0 | T36: ='Scenarios definition'!P33 -> 0 | U36: =IF(T36=0,0,'Scenarios definition'!Q33) -> 0 | V36: ='Scenarios definition'!R33 -> 0 | W36: ='Scenarios definition'!S33 -> 0 | X36: ='Scenarios definition'!T33 -> 0 | Y36: ='Scenarios definition'!U33 -> 0 | Z36: ='Scenarios definition'!V33 -> 0 | AA36: ='Scenarios definition'!W33 -> 0
F37: =SUM(F26:F36) -> 4130835 | G37: =SUM(G26:G36) -> 2563376 | H37: 668294 | J37: 713918 | K37: 185247 | L37: 0
G38: =G37/$F37 -> 0.6205466933 | H38: =H37/$F37 -> 0.1617818189 | J38: =J37/$F37 -> 0.1728265593 | K38: 0.04484492845 | L38: 0
A40: ='Scenarios definition'!A400 -> Scenario number 3 year: | E40: ='Scenarios definition'!A400 -> Scenario number 3 year: | F40: 2030 | G40: test data for report | H40: 0 | I40: 0 | J40: 0 | K40: 0 | L40: 0 | M40: 0 | N40: 0 | O40: 0 | P40: 0 | Q40: 0 | R40: 0 | S40: 0 | T40: 0 | U40: 0 | V40: 0 | W40: 0 | X40: 0 | Y40: 0 | Z40: 0 | AA40: 0
A41: =A26 -> Before 1946 All dwellings , Single Detached, Single Attached, Apart., Mob. H. | F41: 127 | G41: 73 | H41: 24 | I41: 0.81 | J41: 28 | K41: 2 | L41: 0 | M41: 19.6324 | N41: Fossil fuel | O41: 0 | P41: 0 | Q41: 0 | R41: 0 | S41: 13.5 | T41: 0 | U41: 240 | V41: 0 | W41: 0 | X41: 0 | Y41: 0 | Z41: 0 | AA41: 0
A42: =A27 -> 1946-1977 Large , Single Detached | F42: 57 | G42: 32 | H42: 12 | I42: 0.81 | J42: 12 | K42: 1 | L42: 0 | M42: 24.5587 | N42: Fossil fuel | O42: 0 | P42: 0 | Q42: 0 | R42: 0 | S42: 13.5 | T42: 0 | U42: 240 | V42: 6 | W42: 0 | X42: 0 | Y42: 0 | Z42: 0 | AA42: 0
A43: 1946-1977 , Single Detached, Single Detached, Apart., Mob. H. | F43: 140 | G43: 80 | H43: 4 | I43: 0.81 | J43: 31 | K43: 25 | L43: 0 | M43: 21.2612 | N43: Fossil fuel | O43: 0 | P43: 0 | Q43: 0 | R43: 0 | S43: 13.5 | T43: 0 | U43: 240 | V43: 0 | W43: 0 | X43: 0.25 | Y43: 0 | Z43: 0 | AA43: 0
A44: 1978-1995 Small , Apart., Mob. H. | F44: 87 | G44: 50 | H44: 3 | I44: 0.81 | J44: 19 | K44: 15 | L44: 0 | M44: 13.607 | N44: Fossil fuel | O44: 0 | P44: 0 | Q44: 0 | R44: 0 | S44: 13.5 | T44: 0 | U44: 240 | V44: 0 | W44: 0 | X44: 0.25 | Y44: 0 | Z44: 0 | AA44: 0
A45: 1978-1995 Large , Single Detached | F45: 39 | G45: 22 | H45: 8 | I45: 0.81 | J45: 8 | K45: 1 | L45: 0 | M45: 14.843 | N45: Fossil fuel | O45: 0 | P45: 0 | Q45: 0 | R45: 0 | S45: 13.5 | T45: 0 | U45: 240 | V45: 0 | W45: 0 | X45: 0 | Y45: 0 | Z45: 0 | AA45: 0
A46: 1978-1995 , Single Detached, Single Attached, Apart. | F46: 200 | G46: 115 | H46: 37 | I46: 0.81 | J46: 44 | K46: 4 | L46: 0 | M46: 7.3415 | N46: Fossil fuel | O46: 0 | P46: 100 | Q46: 4 | R46: 0 | S46: 13.5 | T46: 0 | U46: 240 | V46: 0 | W46: 0 | X46: 0 | Y46: 0 | Z46: 0 | AA46: 0
A47: 1996-2010 Two Storey , Single Detached | F47: 138 | G47: 79 | H47: 27 | I47: 0.81 | J47: 30 | K47: 2 | L47: 0 | M47: 19.7155 | N47: Fossil fuel | O47: 0 | P47: 65 | Q47: 5 | R47: 0 | S47: 13.5 | T47: 0 | U47: 240 | V47: 0 | W47: 0 | X47: 0 | Y47: 0 | Z47: 0 | AA47: 0
A48: 1996-2010 Small , Single Attached, Single Attached, Apart., Mob. H. | F48: 104 | G48: 60 | H48: 19 | I48: 0.81 | J48: 23 | K48: 2 | L48: 0 | M48: 18.6578 | N48: Fossil fuel | O48: 0 | P48: 0 | Q48: 0 | R48: 0 | S48: 13.5 | T48: 0 | U48: 240 | V48: 0 | W48: 0 | X48: 0 | Y48: 0 | Z48: 0 | AA48: 0
A49: 1996-2010 One storey , Single Detached, Single Attached | F49: 104 | G49: 60 | H49: 19 | I49: 0.81 | J49: 23 | K49: 2 | L49: 0 | M49: 8.6114 | N49: Fossil fuel | O49: 0 | P49: 0 | Q49: 0 | R49: 0 | S49: 13.5 | T49: 0 | U49: 240 | V49: 0 | W49: 0 | X49: 0 | Y49: 0 | Z49: 0 | AA49: 0
A50: 2011-2020 Small , Single Detached, Single Attached, Apart., Mob. H. | F50: 131 | G50: 46 | H50: 16 | I50: 0.81 | J50: 18 | K50: 51 | L50: 0 | M50: 6.9851 | N50: Fossil fuel | O50: 0 | P50: 0 | Q50: 0 | R50: 0 | S50: 13.5 | T50: 0 | U50: 240 | V50: 0 | W50: 0 | X50: 0 | Y50: 0 | Z50: 0 | AA50: 0
A51: 2011-2020 , Single Detached, Single Attached, Apart. | F51: 164 | G51: 65 | H51: 22 | I51: 0.81 | J51: 25 | K51: 52 | L51: 0 | M51: 11.3593 | N51: Fossil fuel | O51: 0 | P51: 0 | Q51: 0 | R51: 0 | S51: 13.5 | T51: 0 | U51: 240 | V51: 0 | W51: 0 | X51: 0 | Y51: 0 | Z51: 0 | AA51: 0
F52: =SUM(F41:F51) -> 1291 | G52: =SUM(G41:G51) -> 682 | H52: =SUM(H41:H51) -> 191 | J52: =SUM(J41:J51) -> 261 | K52: =SUM(K41:K51) -> 157 | L52: =SUM(L41:L51) -> 0
G53: =G52/$F52 -> 0.5282726569 | H53: =H52/$F52 -> 0.1479473277 | J53: =J52/$F52 -> 0.2021688613 | K53: =K52/$F52 -> 0.1216111541 | L53: =L52/$F52 -> 0
A57: Resultats: | K57: Reference | N57: Ce scenario | S57: Changement | V57: Commentaires
A58: Results: | K58: Reference | N58: This scenario | S58: Change | V58: Comments
K59: ='User Input Output'!$B22 -> 0 | N59: ='User Input Output'!$B22 -> 0
A60: ='User Input Output'!A23 -> Peak Elec. (kW) | K60: 7997.709972 | N60: ='User Input Output'!$B23 -> 12999.05615 | S60: =IF(K60=0,0,(N60-K60)/K60) -> 0.6253472798
K61: 0 | N61: ='User Input Output'!$B24 -> 0
A62: ='User Input Output'!A25 -> PV Production (kWh) | K62: 0 | N62: ='User Input Output'!$B25 -> 1009438.779 | S62: =IF(K62=0,0,(N62-K62)/K62) -> 0
K63: 0 | N63: ='User Input Output'!$B26 -> 0
A64: ='User Input Output'!A27 -> Total Electricity Consumed (kWh) | K64: 21572000 | N64: ='User Input Output'!$B27 -> 33985000 | S64: 0.5754218431
A65: ='User Input Output'!A28 -> Total fossil fuel (kWh) | K65: 7909000 | N65: ='User Input Output'!$B28 -> 6480000 | S65: -0.1806802377
A66: ='User Input Output'!A29 -> Total Wood (kWh) | K66: 7463000 | N66: ='User Input Output'!$B29 -> 9995000 | S66: 0.3392737505
A67: ='User Input Output'!A30 -> Annual Total Energy Purchased (minus PV) (kWh) | K67: 36945000 | N67: ='User Input Output'!$B30 -> 49451000 | S67: 0.3385031804
A68: ='User Input Output'!A31 -> GHG reduction resulting from the community level RE project (kg/CO2) - 2030 | K68: 0 | N68: ='User Input Output'!$B31 -> 2380 | S68: 0
A69: ='User Input Output'!A32 -> GHG associated to electricity consumption (kg/CO2) | K69: 3915000 | N69: ='User Input Output'!$B32 -> 596000 | S69: -0.8477650064
A70: ='User Input Output'!A33 -> GHG associated to fossil fuels consumption (kg/CO2) | K70: 1957000 | N70: ='User Input Output'!$B33 -> 1399000 | S70: -0.2851303015
A71: ='User Input Output'!A34 -> GHG associated to wood consumption (kg/CO2) | K71: 29855.5265 | N71: ='User Input Output'!$B34 -> 39983.58974 | S71: 0.3392357944
A72: ='User Input Output'!A35 -> Total GHG (kg/CO2e) | K72: 5902000 | N72: ='User Input Output'!$B35 -> 2038380 | S72: -0.6546289393
A73: ='User Input Output'!A36 -> Rough imlementation cost ($000) | K73: 0 | N73: ='User Input Output'!$B36 -> 1925
A74: ='User Input Output'!A37 -> Electricity Cost ($) | K74: 2228000 | N74: ='User Input Output'!$B37 -> 3414000 | S74: 0.5323159785
A75: ='User Input Output'!A38 -> Fossil fuel costs ($) | K75: 1185039.716 | N75: ='User Input Output'!$B38 -> 184155.7939 | S75: -0.8445994752
A76: ='User Input Output'!A39 -> Total Costof Energy ($) | K76: 3413000 | N76: ='User Input Output'!$B39 -> 3598000 | S76: 0.05420451216
N78: =IF(lang="English","GHG reduction in tons/year","Reduction des GES (tons/annee)") -> GHG reduction in tons/year | T78: =(K72-N72)/(F40-F22)/1000 -> 386.362
N79: =IF(lang="English","GHG reduction in %","Reduction des GES (%)") -> GHG reduction in % | T79: =(K72-N72)/K72 -> 0.6546289393
N80: =IF(lang="English","GHG reduction in tons","Reduction des GES (tonnes)") -> GHG reduction in tons | T80: =(K72-N72)/1000 -> 3863.62
N81: =A73 -> Rough imlementation cost ($000) | T81: =N73-K73 -> 1925
N82: =IF(lang="English","Cost of GHG reduction in $/ton","Coût approximatif ($/tonne CO2)") -> Cost of GHG reduction in $/ton | T82: =T81/((K72-N72)/1000)*1000 -> 498.2374043
N83: =IF(lang="English","Energy cost savings $000/year","Economie des coûts de l'energie, ($ 000)/annee") -> Energy cost savings $000/year | T83: =(K76-N76)/1000 -> -185
X93: 1

Sheet Q&A English
A1: Questions and Answers Section: | C1: Also see comments in the various cells of the tool
A3: Category | B3: Question | C3: Answer
A5: % reduction in emergy demand | B5: How do I decide to use a given percentage of space heating energy reduction when defining a given scenario? | C5: When setting a value, for example 50% or 70%, an experienced energy advisor familiar with the local building stock characteristics should be involved. As well, representatives of trades with local knowledge - HVAC contractors, renovators, electricians, even real estate agents - would be able to provide costing perspectives to determine the point at which measures to improve further energy conservation may reach the threshold of "law of diminishing returns". And this may vary per archetypes. The perspective of home owners and landlords should also be sought through public consultations. See the related sections in the user manual about the making up of a local task force, about developing value proposition and the serval resource links provided in the "Useful Links" of this software file.
A6: Costing | B6: How is the energy retrofit cost calculated ? | C6: A default value per square foot per % energy reduction is given at the tp of the "Financial" Tab.
A7: Costing | B7: What are factors impacting unit cost of a fossil fuel to electricity conversion | C7: Default unit costs for each interventions are provided for preliminary results. However, subject matter experts, HVAC contractors/designers and electricians must be consulted to evaluate if the air distribution duct network are appropriate to distribute the warm air within the dwellings and if the electrical service entrance can handle the additional load for the heat pumps, for example. Depending on the existing systems, more or less modifications may be required. Each archetype of each vintage in a given region may have similar cost components and this is better assessed by local workers/ subject matter experts.
A8: Costing | B8: What are the factors impacting cost of a ground source heat pump vs that of an air source heat pump? | C8: Ground source heat pumps require a relatively large footprint and disturbance of ground cover, significant earth moving operations and a large amount of tubing to provide heat exchange loop bellow the frost depth. GSHP are very expensive initially but provide reliable performance in very cold climate regions.
A9: Costing | B9: How accurate are the default unit costs? | C9: The defaults unit costs provided are very approximate. Every building, every region have their own context. And unit costs vary with supply and demand and other external factors. The purpose of the very coarse financial analysis is to provide order of magnitude of the investment required to implement a given scenario, for the entire building stock.
A10: Costing | B10: How do I assess if the default unit costs are appropriate for our local circumstances? | C10: The cost of building level interventions are subject to several external factors: supply chain hick-ups, exceptional variation in demand (remember the deck building mania during lumber during Covid?), labor shortages, even geopolitical event may cause commodity prices fluctuation finding their way into equipment and material unit costs. So "accurate unit costs" are not a realistic concept. CTAP provides "back of the envelope" costing for a stock of building. Any individual building may have specific conditions that make these unit costs absolutely unreliable: access, existing conditions, operational restrictions, etc... On a case by case, specific evaluation must be performed. That being said, the local task force which should include local trades representatives, and the first several implementations case studies should provide a mean to validate or adjust these unit costs. That can be done in the top table of the "Financial" Tab.
A11: Electrical storage | B11: When is the electrical storage drawn and recharged in batteries? | C11: Electrical storage draw/ charge is based on a schedule (user input). Themal storage schedule should be derrived based on time of use utility rate.
A12: Electrical storage | B12: How is the electrical storage drawn and recharged when PV panels are installed? | C12: Electrical storage draw/ charge is based on a schedule (user input). Themal storage schedule should be derrived based on time of use utility rate.
A13: Electrical storage | B13: How is the electrical storage capacity determined? | C13: User Input
A14: Embodied carbon | B14: Is embodied carbon included in the analysis? | C14: No, Except for the option of including a community based renewable project, where the full life cycle GHG emission per kWh are taken into account.
A15: Emission factors | B15: How accurate are the future average emission factors (AEFs) for the provincial grids? | C15: These are the subject of ongoing discussion and research. Average emission factors (AEF) are considered for "inventories" . As electrification progresses, there is a need to assess heating system technologies that rely on electricity using mean margin factors (MMEF). This is better done by analyzing the various options using a specialized carbon accounting too. Such a tool is under review at NRCan and will be incorporated to CTAP when ready. See "Emission factors" Tab for source.
A16: Emission factors | B16: What if my jurisdiction has a local power grid with AEF factors different than the provincial average? | C16: In the Financial Tab, Cell 38 and 39 allow you to select a custom AEF. The actual custom AEF forecast can be defined in Line 16 of the "Emission Factors" Tab.
A17: Fossil fuels mix | B17: Can CTAP evaluate the contribution of a mix of heating systems with various fossil fuels, for example oil, natural gas and propane in an analysis? | C17: No. CTAP works with the "dominant" fossil fuel in any given region as per the provincial statistics. The combustion gases combine with fugitive natural gas in the supply chain yield approximatively the same GHG as for oil or propane. The difference in a few percentage points of furnaces with second and third most common fossil fuels does not alter the overall results significantly.
A18: Fossil fuels mix | B18: What if my jurisdiction does not have the same dominant fossil fuel as the provincial statistics? | C18: The dominant fossil fuel can be overwritten in Cell T24 of the "Financial" Tab.
A19: Heat pump | B19: What seasonal COP (SCOP) is assumed for ASHP (air source heat pump)? | C19: ASHP COP is a function of ambient temperature. The perofmance curve is based on a performance map of readily availble equipment.
A20: Heat pump | B20: What seasonal COP (SCOP) is assumed for GSHP (ground source heat pump)? | C20: 4.1 (Heating), 3.9 (Cooling)
A21: Heat pump | B21: What is the temperature range for heat pump operation | C21: ASHP will operate to ambient temperatures as low as -15°C.
A22: Heat pump | B22: How is the heat pum capacity determined? | C22: The capacity is determined to be that of the archetype in the given climate zone. When a scenario includes a reduction of heat load through renovations, the heat pump capacity is automatically adjusted down.
A23: Hybrid system | B23: In hybrid systems, how is the split between primary and back-up energy determined? | C23: Hybrid heating systems involve a heat pump (ASHP of GSHP) and an auxiliary/ back-up heaing source. Heatpump operation is prioritized - auxiliary heating system is used, as needed, when the thermal demand exceeds the heat pump capacity (heat pump capacity is a user input). For Hybrid heating systems which include an ASHP: the auxiliary heating source is also used to meet the full heating load when ambient temperatures are below the operation range of the ASHP (-15°C).
A24: Previous improvments | B24: Are recent initiatives (example conversions from fossil fuels to electric heating systems, baseboards, HP or others) being credited in this analysis? | C24: Yes. The reference year and current status use the provincial statistics of existing heating system technologies in any given year. Should your jurisdiction have been more or less active in that regard, these numbers can be adjusted in the "Scenarios Definition" Tab accordingly.
A25: Refrigerants | B25: Does the analysis consider GHG associated to refrigerant leakage in heat pumps? | C25: No. This could be added in a future version as those GHG can be significant. An independent analysis can be performed using the HSCAT (Heating System Carbon Accounting Tool) now under review at NRCan. Once peer reviewed, this will be added to CTAP.
A26: Thermal storage | B26: How is the thermal storage drawn and recharged in the daily cycle? | C26: Thermal storage draw/ charge is based on a schedule (user input). Themal storage schedule should be derrived based on time of use utility rate.
A27: Thermal storage | B27: How is the thermal storage capacity determined? | C27: User Input, but a default value is provided.
A28: New dwellings additions | B28: Where must new dwelling be added? | C28: The growth in dwelling for future svenario must be included in the most recent archetypes provided. If the dwellings are to be built "net-zero", this means that from a GHG inventry point of view, they add nothing. If they are not, but are still of better performance than the existing dwellings in that archetype, the ECM fileds can be used to reflect that better performance. The composite scenario feature can also be used to account for growth of dwellings.

Sheet Usefull links
C5: What Is The Cost Of A Ground Source Heat Pump? (climatebiz.com)
C9: Useful links regarding biomass:
C10: · Biomass / Rural community programs/ small scale district biomass
C12: https://www.nrcan.gc.ca/reducingdiesel
C13: · See attached pdf on small scale biomass energy system. From the UK, but still very informative
C14: · Here are NRCan publication: https://publications.gc.ca/site/fra/9.647721/publication.html https://d1ied5g1xfgpx8.cloudfront.net/pdfs/9511.pdf
C15: Small scale biomass district heating system: https://www.sciencedirect.com/science/article/abs/pii/S0306261915013422
C17: A Real Estate valuation study was performed a few years back in Edmonton aiming at determining the added valuation to a property following energy savings measures investment. It would be interesting to discuss the findings and any gaps with local RE professionals. A copy of the study can be found at this link:
C18: https://homes.changeforclimate.ca/wp-content/uploads/2019/08/City-of-Edmonton-Hedonic-Price-Analysis-Energy-Efficiency-Final.pdf?5f4561&5f4561
C20: Additional helpful links:
C21: · NRCan DER guides and others:
C22: Energy efficiency for homes (nrcan.gc.ca)
C24: · NRCan research on exterior wall panels for insulation value upgrade:
C25: https://www.nrcan.gc.ca/energy-efficiency/data-research-insights-energy-efficiency/housing-innovation/peer-prefabricated-exterior-energy-retrofit/19406
C26: · Looking ahead of the curve… for our next LCCES CTAP process workshop in the fall: link to financial incentives:
C27: https://oee.nrcan.gc.ca/residential/programs/programs.cfm?attr=24
C28: https://oee.nrcan.gc.ca/corporate/statistics/neud/dpa/policy_e/programs.cfm
C29: https://www.nrcan.gc.ca/energy-efficiency/homes/canada-greener-homes-grant/start-your-energy-efficient-retrofits/plan-document-and-complete-your-home-retrofits/eligible-grants-for-my-home-retrofit/23504
C31: * A Real Estate valuation study was performed a few years back in Edmonton aiming at determining the added valuation to a property following energy savings measures investment. It would be interesting to discuss the findings and any gaps with local RE professionals. A copy of the study can be found at this link:
C32: https://homes.changeforclimate.ca/wp-content/uploads/2019/08/City-of-Edmonton-Hedonic-Price-Analysis-Energy-Efficiency-Final.pdf?5f4561&5f4561
C34: Additional helpful links:
C35: · NRCan DER guides and others:
C36: Energy efficiency for homes (nrcan.gc.ca)
C38: · NRCan research on exterior wall panels for insulation value upgrade:
C39: https://www.nrcan.gc.ca/energy-efficiency/data-research-insights-energy-efficiency/housing-innovation/peer-prefabricated-exterior-energy-retrofit/19406
C40: · Looking ahead of the curve… for our next LCCES CTAP process workshop in the fall: link to financial incentives:
C41: https://oee.nrcan.gc.ca/residential/programs/programs.cfm?attr=24
C42: https://oee.nrcan.gc.ca/corporate/statistics/neud/dpa/policy_e/programs.cfm
C43: https://www.nrcan.gc.ca/energy-efficiency/homes/canada-greener-homes-grant/start-your-energy-efficient-retrofits/plan-document-and-complete-your-home-retrofits/eligible-grants-for-my-home-retrofit/23504
C45: 1) More guides
C46: All via this link: https://www.nrcan.gc.ca/energy-efficiency/homes/local-energy-efficiency-partnerships-leep/leep-technology-guides/17346
C48: CER – Provincial and Territorial Energy Profiles – Alberta (cer-rec.gc.ca)
C50: https://www.canada.ca/en/environment-climate-change/news/2021/07/government-of-canada-confirms-ambitious-new-greenhouse-gas-emissions-reduction-target.html
C52: https://data.ec.gc.ca/data/substances/monitor/canada-s-greenhouse-gas-emissions-projections/Current-Projections-Actuelles/Energy-Energie/Grid-O%26G-Intensities-Intensites-Reseau-Delectricite-P%26G/Electricity-grid-intensities-intensites-reseau-delectricite-1.csv
C55: Energy content of wood
C56: https://www.engineeringtoolbox.com/wood-combustion-heat-d_372.html
C57: …of propane
C58: http://www.alaskawoodheating.com/energy_content.php
C59: 91,800 Btu/gal
C60: https://hypertextbook.com/facts/2002/EricLeung.shtml
C61: 7.5 kWh/l
B65: https://data.ec.gc.ca/data/substances/monitor/canada-s-greenhouse-gas-emissions-projections/Current-Projections-Actuelles/Energy-Energie/Grid-O%26G-Intensities-Intensites-Reseau-Delectricite-P%26G/Electricity-grid-intensities-intensites-reseau-delectricite-1.csv

Sheet Questions et réponses
A1: Questions et réponses | C1: Voir aussi commentaire dans les diverse cellule du "spreadsheet"
A3: Catégorie | B3: Questions | C3: Réponses
A5: Carbone incorporé | B5: Le carbone incorporé est-il inclus dans l’analyse ? | C5: Non, sauf pour l'option d'inclure un projet renouvelable à l'échelle communautaire, où les émissions de GES par kWh sur le cycle de vie complet sont prises en compte.
A6: Coûts | B6: Comment est calculé le coût de la rénovation énergétique ? | C6: Une valeur par défaut par pied carré par % de réduction d'énergie est indiquée en haut de l'onglet « Financier ».
A7: Coûts | B7: Quels sont les facteurs ayant une incidence sur le coût de la conversion d’un système de chauffage aux combustibles fossiles en système de chauffage à l’électricité ? | C7: Les coûts unitaires par défaut pour chaque intervention sont fournis à titre de résultats préliminaires. Cependant, des experts en la matière, des entrepreneurs/concepteurs CVC et des électriciens doivent être consultés pour évaluer si le réseau de conduits de distribution d'air est approprié pour distribuer l'air chaud dans les logements et si l'entrée de service électrique peut supporter la charge supplémentaire pour les pompes à chaleur, par exemple. exemple. Selon les systèmes existants, plus ou moins de modifications peuvent être nécessaires. Chaque archétype de chaque millésime dans une région donnée peut avoir des éléments de coût similaires et ceci est mieux évalué par les travailleurs/experts locaux en la matière.
A8: Coûts | B8: Quels sont les facteurs ayant un impact sur le coût d’une pompe à chaleur géothermique par rapport à celui d’une pompe à chaleur à air ? | C8: Les pompes à chaleur géothermiques nécessitent une empreinte au sol relativement importante et une perturbation de la couverture végétale, des opérations de terrassement importantes et une grande quantité de tubes pour fournir une boucle d'échange thermique en dessous de la profondeur de gel. Les GSHP sont très chers au départ mais offrent des performances fiables dans les régions au climat très froid.
A9: Coûts | B9: Quelle est la précision des coûts unitaires par défaut ? | C9: Les coûts unitaires par défaut fournis sont très approximatifs. Chaque bâtiment, chaque région a son propre contexte. Et les coûts unitaires varient en fonction de l’offre et de la demande ainsi que d’autres facteurs externes. L’objectif de l’analyse financière très grossière est de fournir un ordre de grandeur de l’investissement nécessaire à la mise en œuvre d’un scénario donné, pour l’ensemble du parc immobilier.
A10: Coûts | B10: Comment puis-je évaluer si les coûts unitaires par défaut sont adaptés à nos circonstances locales ? | C10: Le coût des interventions au niveau du bâtiment est soumis à plusieurs facteurs externes : des problèmes dans la chaîne d'approvisionnement, des variations exceptionnelles de la demande (vous vous souvenez de la folie de la construction de terrasses pendant le bois d'œuvre pendant la Covid ?), des pénuries de main-d'œuvre et même des événements géopolitiques peuvent entraîner des fluctuations des prix des matières premières. en coûts unitaires d’équipement et de matériel. Les « coûts unitaires précis » ne constituent donc pas un concept réaliste. CTAP fournit un chiffrage « à l'arrière de l'enveloppe » pour un parc de bâtiments. Tout bâtiment individuel peut présenter des conditions spécifiques qui rendent ces coûts unitaires absolument peu fiables : accès, conditions existantes, restrictions d'exploitation, etc... Au cas par cas, une évaluation spécifique doit être réalisée. Cela étant dit, le groupe de travail local, qui devrait inclure des représentants des métiers locaux, et les premières études de cas de mise en œuvre devraient fournir un moyen de valider ou d'ajuster ces coûts unitaires. Cela peut être fait dans le tableau supérieur de l'onglet « Financial ».
A11: Divers combustibles fossiles | B11: Le CTAP peut-il évaluer dans une analyse la contribution d’un mélange de systèmes de chauffage utilisant divers combustibles fossiles, par exemple l'huile de chaufage, le gaz naturel et le propane ? | C11: Non. L'OETC travaille avec le combustible fossile « dominant » dans une région donnée, selon les statistiques provinciales. Les gaz de combustion se combinent au gaz naturel fugitif dans la chaîne d’approvisionnement et produisent à peu près les mêmes GES que le pétrole ou le propane. La différence de quelques points de pourcentage entre les systemes utilisant un deuxième ou troisième combustible fossile parmis les plus courants ne modifie pas de manière significative les résultats globaux.
A12: Divers combustibles fossiles | B12: Et si le combustible fossile dominant de ma région est différent de celui de la province? (statistique) | C12: Il peut être changé dans la cellule T24 de l'onglet "Financials"
A13: Facteurs d'émissions | B13: Quelle est la précision des futurs facteurs d’émission moyens pour les réseaux électriques provinciaux ? | C13: Ceux-ci font l’objet de discussions et de recherches continues. Des facteurs d'émission moyens sont pris en compte pour les « inventaires » de GES. À mesure que l’électrification progresse, il devient nécessaire d’évaluer les technologies de systèmes de chauffage qui dépendent de l’électricité à l’aide de facteurs de marge moyenne (MMEF). Il est préférable d’y parvenir en analysant les différentes options à l’aide d’une comptabilité carbone spécialisée. Un tel outil est en cours d'examen à RNCan et sera intégré au CTAP lorsqu'il sera prêt. La source des facteurs d'émission utilisés se trouve dans l'onglet "Emission factors".
B14: Que se passe-t-il si mon territoire dispose d’un réseau électrique local dont les facteurs d'émission diffèrent de la moyenne provinciale ? | C14: Dans l’onglet "Financial", les cellules 38 et 39 vous permettent de sélectionner une previsioen personnalisé. La prévision personnalisée réelle peut être définie à la ligne 16 de l’onglet «Emission Factors ».
A15: Hybride | B15: Dans les systèmes hybrides, comment est déterminée la répartition entre l’énergie primaire et l’énergie de secours ? | C15: Les systèmes de chauffage hybrides impliquent une pompe à chaleur (ASHP ou GSHP) et une source de chauffage auxiliaire/de secours. Le fonctionnement de la pompe à chaleur est prioritaire : le système de chauffage d'appoint est utilisé, au besoin, lorsque la demande thermique dépasse la capacité de la pompe à chaleur (la capacité de la pompe à chaleur est une entrée de l'utilisateur). Pour les systèmes de chauffage hybrides qui incluent un ASHP : la source de chauffage d'appoint est également utilisée pour répondre à la pleine charge de chauffage lorsque les températures ambiantes sont inférieures à la plage de fonctionnement de l'ASHP (-15°C).
A16: Initiatives récemment réalisées | B16: Les initiatives récemment réalisées (par exemple, conversions de combustibles fossiles vers des systèmes de chauffage électriques, des plinthes, des HP ou autres) sont-elles créditées dans cette analyse ? | C16: Oui. L'année de référence et la situation actuelle utilisent les statistiques provinciales sur les technologies de systèmes de chauffage existantes au cours d'une année donnée. Si votre juridiction a été plus ou moins active à cet égard, ces chiffres peuvent être ajustés en conséquence dans l'onglet « Définition des scénarios », dans les cellules K43 à W53.
A17: Pourcentage de réduction d'énergie | B17: Comment puis-je décider d’utiliser un pourcentage donné de réduction d’énergie pour le chauffage des locaux lors de la définition d’un scénario donné ? | C17: Lors de la définition d'une valeur, par exemple 50 % ou 70 %, un conseiller en énergie expérimenté et familier avec les caractéristiques du parc immobilier local doit être impliqué. De plus, des représentants des métiers possédant une connaissance locale - entrepreneurs en CVC, rénovateurs, électriciens et même agents immobiliers - seraient en mesure de fournir des perspectives de coûts pour déterminer le point à partir duquel les mesures visant à améliorer davantage les économies d'énergie pourraient atteindre le seuil de la « loi des rendements décroissants ». Et cela peut varier selon les archétypes. Le point de vue des propriétaires et des propriétaires devrait également être recherché par le biais de consultations publiques. Voir les sections connexes du manuel d'utilisation sur la constitution d'un groupe de travail local, sur le développement d'une proposition de valeur et les liens de ressources serval fournis dans les « Liens utiles » de ce fichier logiciel.
A18: PV | B18: Comment le stockage électrique est-il consommé et rechargé lorsque des panneaux photovoltaïques sont installés ? | C18: La consommation/charge de stockage électrique est basée sur un horaire horaire (entrée de l'utilisateur). Le calendrier horaire du stockage thermique doit être calculé en fonction du tarif du service public au moment de l’utilisation.
A19: Refrigerant | B19: L’analyse prend-elle en compte les GES associés aux fuites de réfrigérant dans les pompes à chaleur ? | C19: Non. Cela pourrait être ajouté dans une prochaine version car ces GES peuvent être importants. Une analyse indépendante peut être effectuée à l’aide du HSCAT (Heating System Carbon Accounting Tool) actuellement en cours d’examen à RNCan. Une fois terminé, celui-ci sera ajouté au CTAP.
A20: Stockage électrique | B20: Quand le stockage électrique est-il puisé et rechargé en batteries ? | C20: La consommation/charge de stockage électrique est basée sur un horaire horaire (entrée de l'utilisateur). Le calendrier horaire du stockage thermique doit être calculé en fonction du tarif du service public au moment de l’utilisation.
A21: Stockage électrique | B21: Comment est déterminée la capacité de stockage électrique ? | C21: Défini par l'usager, mais une valeur par défaut est incluse.
A22: Stockage thermique | B22: Comment le stockage thermique est-il puisé et rechargé dans le cycle quotidien ? | C22: Le prélèvement/la charge du stockage thermique est basé sur un programme horaire (saisie de l'utilisateur). Le calendrier horaire du stockage thermique doit être calculé en fonction du tarif du service public au moment de l’utilisation.
A23: Stockage thermique | B23: Comment est déterminée la capacité de stockage thermique ? | C23: Défini par l'usager , mais une valeur par défaut est incluse
A24: Thermopompe | B24: Quel coefficient de performance ou coefficient de performance saisonnier est supposé pour les pompes à chaleur géothermiques ? | C24: Le coefficient de performance ASHP est fonction de la température ambiante. La courbe de performance est basée sur une carte de performance d'équipements facilement disponibles.
A25: Thermopompe | B25: Quel coefficient de performance ou coefficient de performance saisonnier est supposé pour les pompes à chaleur aérothermiques ? | C25: Le COP ASHP est fonction de la température ambiante. La courbe de performance est basée sur une carte de performance d'équipements facilement disponibles.
A26: Thermopompe | B26: Quelle est la plage de température pour le fonctionnement de la pompe à chaleur? | C26: ASHP fonctionnera à des températures ambiantes aussi basses que -15°C.
A27: Thermopompe | B27: Comment est déterminé la capacité de la thermopompe | C27: Selon la demande de chaleur de l'archétype pour la zone climatique en question. La capacité s'ajuste automatiquement si le scénario contient une rénovation énergétique misant sur un pourcentage donné de réduction.
A28: Augmentation du nombre de logements | B28: Où faut-il ajouter de nouveaux logements ? | C28: La croissance du nombre de logements pour futur scénarios doit être incluse dans les archétypes les plus récents fournis. Si les logements doivent être construits « net zéro », cela signifie que du point de vue de l’inventaire des GES, ils n’ajoutent rien et il n'est pas nécessaire de les ajouter. Si ce n'est pas le cas, mais qu'ils offrent toujours de meilleures performances que les logements existants dans cet archétype, les mesures d'économie d'energie peuvent être utilisés pour refléter cette meilleure performance. La fonctionnalité de scénario composite peut également être utilisée pour tenir compte de la croissance des logements.

Sheet Emission factors
A1: Electric Grid Intensity | B1: By Province (including Biomass & RNG CO2 emissions)/Intensité du réseau électrique par province (incluant les émissions de CO2 provenant de la biomasse et du gaz naturel renouvelable)
A2: Region (English) / Rï¿½gion (anglais) | B2: Region (French) / Rï¿½gion (franï¿½ais) | C2: Units (English) / Unitï¿½s (anglais) | D2: Units (French) / Unitï¿½s (franï¿½ais) | E2: 2005 | F2: 2006 | G2: 2007 | H2: 2008 | I2: 2009 | J2: 2010 | K2: 2011 | L2: 2012 | M2: 2013 | N2: 2014 | O2: 2015 | P2: 2016 | Q2: 2017 | R2: 2018 | S2: 2019 | T2: 2020 | U2: 2021 | V2: 2022 | W2: 2023 | X2: 2024 | Y2: 2025 | Z2: 2026 | AA2: 2027 | AB2: 2028 | AC2: 2029 | AD2: 2030 | AE2: 2031 | AF2: 2032 | AG2: 2033 | AH2: 2034 | AI2: 2035 | AJ2: 2036 | AK2: 2037 | AL2: 2038 | AM2: 2039 | AN2: 2040 | AO2: 2041 | AP2: 2042 | AQ2: 2043 | AR2: 2044 | AS2: 2045 | AT2: 2046 | AU2: 2047 | AV2: 2048 | AW2: 2049 | AX2: 2050
A3: Alberta | B3: Alberta | C3: t CO2e/GWh | D3: t CO2/GWh | E3: 961.2 | F3: 987.7 | G3: 923.8 | H3: 914.5 | I3: 826.1 | J3: 842.3 | K3: 800.1 | L3: 759.6 | M3: 785.7 | N3: 808.1 | O3: 811.2 | P3: 760.1 | Q3: 737.3 | R3: 598.5 | S3: 567.4 | T3: 523.1 | U3: 456.7 | V3: 369.4 | W3: 330 | X3: 186.9 | Y3: 182.7 | Z3: 192.1 | AA3: 212.9 | AB3: 147.1 | AC3: 149.4 | AD3: 153.6 | AE3: 138.3 | AF3: 130.8 | AG3: 127.8 | AH3: 119.3 | AI3: 115.6 | AJ3: 113.1 | AK3: 111.9 | AL3: 112.7 | AM3: 113.9 | AN3: 115.7 | AO3: 116.6 | AP3: 117.2 | AQ3: 118.4 | AR3: 120.1 | AS3: 121 | AT3: 121.6 | AU3: 122.7 | AV3: 124.1 | AW3: 122.5 | AX3: 124.4
A4: British Columbia | B4: Colombie-Britannique | C4: t CO2e/GWh | D4: t CO2/GWh | E4: 46.5 | F4: 41 | G4: 36.8 | H4: 41.8 | I4: 35.4 | J4: 44.4 | K4: 35.9 | L4: 23.4 | M4: 26.3 | N4: 20.8 | O4: 17.9 | P4: 21.7 | Q4: 21.1 | R4: 19.4 | S4: 20.6 | T4: 17.2 | U4: 22.1 | V4: 17.5 | W4: 16.2 | X4: 16 | Y4: 14.5 | Z4: 13.2 | AA4: 12.3 | AB4: 11.8 | AC4: 10.9 | AD4: 10.7 | AE4: 9.6 | AF4: 9.1 | AG4: 8.5 | AH4: 8.2 | AI4: 8.1 | AJ4: 8 | AK4: 8 | AL4: 8 | AM4: 8 | AN4: 8 | AO4: 8.1 | AP4: 8.1 | AQ4: 8.1 | AR4: 8.1 | AS4: 8.1 | AT4: 8.1 | AU4: 8.1 | AV4: 8.1 | AW4: 7.9 | AX4: 7.7
A5: Manitoba | B5: Manitoba | C5: t CO2e/GWh | D5: t CO2/GWh | E5: 19.2 | F5: 23.6 | G5: 26.2 | H5: 20.8 | I5: 9.5 | J5: 4.4 | K5: 5.8 | L5: 5.3 | M5: 5.4 | N5: 5.6 | O5: 5.6 | P5: 3.3 | Q5: 3.1 | R5: 1.8 | S5: 1.8 | T5: 1.9 | U5: 2.6 | V5: 0 | W5: 0 | X5: 0 | Y5: 0 | Z5: 0 | AA5: 0 | AB5: 0 | AC5: 0 | AD5: 0 | AE5: 0 | AF5: 0 | AG5: 0 | AH5: 0 | AI5: 0 | AJ5: 0 | AK5: 0 | AL5: 0 | AM5: 0 | AN5: 0 | AO5: 0 | AP5: 0 | AQ5: 0 | AR5: 0 | AS5: 0 | AT5: 0 | AU5: 0 | AV5: 0 | AW5: 0 | AX5: 0
A6: New Brunswick | B6: Nouveau-Brunswick | C6: t CO2e/GWh | D6: t CO2/GWh | E6: 590 | F6: 595.8 | G6: 539.4 | H6: 547.2 | I6: 537.8 | J6: 371.1 | K6: 326.2 | L6: 275.6 | M6: 264.4 | N6: 300.9 | O6: 302.7 | P6: 333.2 | Q6: 261.2 | R6: 281.8 | S6: 261.1 | T6: 181.5 | U6: 259.1 | V6: 255.1 | W6: 245 | X6: 242.1 | Y6: 243.6 | Z6: 230.3 | AA6: 230 | AB6: 228.1 | AC6: 105.1 | AD6: 59 | AE6: 43.8 | AF6: 35.1 | AG6: 21.4 | AH6: 16 | AI6: 10 | AJ6: 10 | AK6: 10.1 | AL6: 10.1 | AM6: 10.2 | AN6: 10.1 | AO6: 10.2 | AP6: 2.8 | AQ6: 2.8 | AR6: 2.8 | AS6: 2.8 | AT6: 2.8 | AU6: 2.8 | AV6: 2.8 | AW6: 2.8 | AX6: 2.9
A7: Newfoundland and Labrador | B7: Terre-Neuve-et-Labrador | C7: t CO2e/GWh | D7: t CO2/GWh | E7: 86.7 | F7: 65.2 | G7: 105.8 | H7: 85.4 | I7: 84.5 | J7: 71.7 | K7: 81.7 | L7: 79.3 | M7: 85.9 | N7: 119.8 | O7: 136.6 | P7: 151.4 | Q7: 145.1 | R7: 104.5 | S7: 103.5 | T7: 89.4 | U7: 80.9 | V7: 6.3 | W7: 9.4 | X7: 9.1 | Y7: 9.2 | Z7: 10.3 | AA7: 9.2 | AB7: 9.2 | AC7: 10.5 | AD7: 0 | AE7: 0 | AF7: 0 | AG7: 0 | AH7: 0 | AI7: 0 | AJ7: 0 | AK7: 0 | AL7: 0 | AM7: 0 | AN7: 0 | AO7: 0 | AP7: 0 | AQ7: 0 | AR7: 0 | AS7: 0 | AT7: 0 | AU7: 0 | AV7: 0 | AW7: 0 | AX7: 0
A8: Northwest Territories | B8: Territoires du Nord-Ouest | C8: t CO2e/GWh | D8: t CO2/GWh | E8: 302.2 | F8: 271.7 | G8: 291.8 | H8: 265.1 | I8: 210 | J8: 225.4 | K8: 222.4 | L8: 192.7 | M8: 180.1 | N8: 231.4 | O8: 353.7 | P8: 187.3 | Q8: 182.2 | R8: 194.9 | S8: 180.2 | T8: 172.9 | U8: 169.1 | V8: 253 | W8: 145.5 | X8: 1 | Y8: 0 | Z8: 0 | AA8: 0 | AB8: 0 | AC8: 0 | AD8: 0 | AE8: 0 | AF8: 0 | AG8: 0 | AH8: 0 | AI8: 0 | AJ8: 0 | AK8: 0 | AL8: 0 | AM8: 0 | AN8: 0 | AO8: 0 | AP8: 0 | AQ8: 0 | AR8: 0 | AS8: 0 | AT8: 0 | AU8: 0 | AV8: 0 | AW8: 0 | AX8: 0
A9: Nova Scotia | B9: Nouvelle-ï¿½cosse | C9: t CO2e/GWh | D9: t CO2/GWh | E9: 973.7 | F9: 1029.3 | G9: 984.3 | H9: 810.8 | I9: 827.2 | J9: 746.7 | K9: 751 | L9: 732.7 | M9: 719.4 | N9: 692.6 | O9: 647.1 | P9: 636.8 | Q9: 657.8 | R9: 691.9 | S9: 653.8 | T9: 628.7 | U9: 590.5 | V9: 661.8 | W9: 642.7 | X9: 560.1 | Y9: 513.9 | Z9: 482.4 | AA9: 453.1 | AB9: 370.9 | AC9: 144.2 | AD9: 84.6 | AE9: 75.7 | AF9: 65.9 | AG9: 59 | AH9: 52.8 | AI9: 45.1 | AJ9: 41.8 | AK9: 38.3 | AL9: 37.4 | AM9: 36.6 | AN9: 35.8 | AO9: 34.8 | AP9: 33.8 | AQ9: 33.2 | AR9: 32.4 | AS9: 31.4 | AT9: 30.4 | AU9: 29.7 | AV9: 29.1 | AW9: 24.8 | AX9: 26
A10: Nunavut | B10: Nunavut | C10: t CO2e/GWh | D10: t CO2/GWh | E10: 606.1 | F10: 507.6 | G10: 510.2 | H10: 539.1 | I10: 566.8 | J10: 566.8 | K10: 482.4 | L10: 484.2 | M10: 453.9 | N10: 567.6 | O10: 481.8 | P10: 607.6 | Q10: 574.9 | R10: 675.4 | S10: 673.5 | T10: 616.3 | U10: 638.9 | V10: 825.1 | W10: 798.9 | X10: 718.3 | Y10: 577.5 | Z10: 561.3 | AA10: 537.5 | AB10: 540.7 | AC10: 533.8 | AD10: 527.7 | AE10: 515.9 | AF10: 506.1 | AG10: 516.5 | AH10: 515.6 | AI10: 525.5 | AJ10: 529.5 | AK10: 535.2 | AL10: 537.4 | AM10: 545.5 | AN10: 551.6 | AO10: 553.5 | AP10: 562.6 | AQ10: 560.3 | AR10: 567.7 | AS10: 570.4 | AT10: 577.6 | AU10: 580.7 | AV10: 582.8 | AW10: 589.9 | AX10: 590.8
A11: Ontario | B11: Ontario | C11: t CO2e/GWh | D11: t CO2/GWh | E11: 243.9 | F11: 218.2 | G11: 240 | H11: 200.4 | I11: 124.6 | J11: 148 | K11: 100.4 | L11: 100.8 | M11: 67.8 | N11: 36.3 | O11: 46.3 | P11: 39.6 | Q11: 20.2 | R11: 29.2 | S11: 27.8 | T11: 28.4 | U11: 28.9 | V11: 75.4 | W11: 86.3 | X11: 68.1 | Y11: 89.2 | Z11: 74.5 | AA11: 89.6 | AB11: 77.5 | AC11: 71.2 | AD11: 59.5 | AE11: 57.8 | AF11: 52.2 | AG11: 45.1 | AH11: 35.9 | AI11: 33 | AJ11: 30.8 | AK11: 29.1 | AL11: 27.5 | AM11: 25.6 | AN11: 24.8 | AO11: 23.8 | AP11: 23.3 | AQ11: 22.6 | AR11: 21.6 | AS11: 20.5 | AT11: 19 | AU11: 17.8 | AV11: 17.2 | AW11: 17.9 | AX11: 19
A12: Prince Edward Island | B12: ï¿½le-du-Prince-ï¿½douard | C12: t CO2e/GWh | D12: t CO2/GWh | E12: 388.8129714 | F12: 427.4815731 | G12: 414.8357548 | H12: 454.8104692 | I12: 476.8759475 | J12: 370.9669907 | K12: 317.6430079 | L12: 311.8271692 | M12: 220.6849707 | N12: 199.9381571 | O12: 238.4449506 | P12: 239.1715485 | Q12: 234.9467294 | R12: 248.8197168 | S12: 215 | T12: 163 | U12: 172.0014877 | V12: 175.7927805 | W12: 163.768188 | X12: 151.6778472 | Y12: 132.1651261 | Z12: 133.659094 | AA12: 131.6874004 | AB12: 147.4510107 | AC12: 122.708519 | AD12: 67.14268165 | AE12: 48.51586664 | AF12: 54.15163779 | AG12: 36.05936532 | AH12: 43.03176522 | AI12: 31.66479896 | AJ12: 41.68738625 | AK12: 31.06570753 | AL12: 37.16062251 | AM12: 33.04250169 | AN12: 43.51320998 | AO12: 0.815132238 | AP12: 2.919731482 | AQ12: 5.443269851 | AR12: 5.512815197 | AS12: 5.645481233 | AT12: 5.718210068 | AU12: 0.4142558193 | AV12: 7.078706711 | AW12: 7.055165711 | AX12: 7.091951622
A13: Quebec | B13: Quï¿½bec | C13: t CO2e/GWh | D13: t CO2/GWh | E13: 11.4 | F13: 7.5 | G13: 18.5 | H13: 7.8 | I13: 9.9 | J13: 2.3 | K13: 2.6 | L13: 2.4 | M13: 1.4 | N13: 1.5 | O13: 1.3 | P13: 1.5 | Q13: 1.4 | R13: 1.4 | S13: 6.4 | T13: 1.8 | U13: 1.5 | V13: 4.9 | W13: 0.5 | X13: 0.4 | Y13: 0.4 | Z13: 3.9 | AA13: 7.7 | AB13: 11.2 | AC13: 14.7 | AD13: 18.1 | AE13: 18 | AF13: 17.9 | AG13: 17.8 | AH13: 17.7 | AI13: 17.6 | AJ13: 17.5 | AK13: 17.4 | AL13: 17.3 | AM13: 17.3 | AN13: 17.2 | AO13: 17.1 | AP13: 17.1 | AQ13: 17 | AR13: 16.9 | AS13: 16.8 | AT13: 11.7 | AU13: 11.7 | AV13: 11.6 | AW13: 11.6 | AX13: 11.5
A14: Saskatchewan | B14: Saskatchewan | C14: t CO2e/GWh | D14: t CO2/GWh | E14: 844.7 | F14: 813 | G14: 802.8 | H14: 770.2 | I14: 873 | J14: 847 | K14: 798.5 | L14: 808.5 | M14: 685.3 | N14: 701 | O14: 737.9 | P14: 722.7 | Q14: 704.6 | R14: 721.6 | S14: 700 | T14: 628.6 | U14: 726.7 | V14: 618.5 | W14: 587 | X14: 582.9 | Y14: 525.3 | Z14: 523.5 | AA14: 513.3 | AB14: 407.4 | AC14: 383.5 | AD14: 167.5 | AE14: 160.3 | AF14: 138.6 | AG14: 131.3 | AH14: 124.2 | AI14: 99.9 | AJ14: 91.2 | AK14: 87.9 | AL14: 83.8 | AM14: 79.6 | AN14: 75.8 | AO14: 77.3 | AP14: 78.3 | AQ14: 79.2 | AR14: 78.1 | AS14: 78 | AT14: 73.4 | AU14: 68.8 | AV14: 62.2 | AW14: 51.2 | AX14: 49.9
A15: Yukon Territory | B15: Yukon | C15: t CO2e/GWh | D15: t CO2/GWh | E15: 70 | F15: 53.4 | G15: 53.2 | H15: 51.2 | I15: 44.6 | J15: 48.5 | K15: 68.6 | L15: 42.8 | M15: 41.4 | N15: 41.5 | O15: 44.7 | P15: 47.2 | Q15: 53.5 | R15: 76.3 | S15: 113.3 | T15: 111.1 | U15: 79.6 | V15: 145.2 | W15: 159.8 | X15: 178.4 | Y15: 111.5 | Z15: 126 | AA15: 102.3 | AB15: 78.6 | AC15: 57.8 | AD15: 39.4 | AE15: 12.3 | AF15: 0.5 | AG15: 0 | AH15: 0.1 | AI15: 0.6 | AJ15: 1.7 | AK15: 4.7 | AL15: 9.9 | AM15: 15.6 | AN15: 22 | AO15: 31.4 | AP15: 39.6 | AQ15: 41.8 | AR15: 30.4 | AS15: 24.3 | AT15: 19.5 | AU15: 16.3 | AV15: 18.2 | AW15: 20.1 | AX15: 24.7
A16: =IF(lang="englis","CUSTOM AEF FORECAST","Prévision alternatif de l'intensité de l'électricité") -> Prévision alternatif de l'intensité de l'électricité | E16: 45 | F16: 55 | G16: 65 | H16: 75 | I16: 85 | J16: 95 | K16: 105 | L16: 115 | M16: 125 | N16: 135 | O16: 145 | P16: 155 | Q16: 165 | R16: 175 | S16: 185 | T16: 195 | U16: 205 | V16: 215 | W16: 225 | X16: 235 | Y16: 245 | Z16: 255 | AA16: 265 | AB16: 275 | AC16: 285 | AD16: 295 | AE16: 305 | AF16: 315 | AG16: 325 | AH16: 335 | AI16: 345 | AJ16: 355 | AK16: 365 | AL16: 375 | AM16: 385 | AN16: 395 | AO16: 405 | AP16: 415 | AQ16: 425 | AR16: 435 | AS16: 445 | AT16: 455 | AU16: 465 | AV16: 475 | AW16: 485 | AX16: 495
A17: In use | B17: =Cities!J3 -> Quebec | E17: =IF(Financial!$I$40="Use custom AEF // Utiiser prévisions propre a votre jurisdiction",E16,SUMIF($A$3:$A$15,$B17,E3:E15)) -> 11.4 | F17: =IF(Financial!$I$40="Use custom AEF // Utiiser prévisions propre a votre jurisdiction",F16,SUMIF($A$3:$A$15,$B17,F3:F15)) -> 7.5 | G17: =IF(Financial!$I$40="Use custom AEF // Utiiser prévisions propre a votre jurisdiction",G16,SUMIF($A$3:$A$15,$B17,G3:G15)) -> 18.5 | H17: =IF(Financial!$I$40="Use custom AEF // Utiiser prévisions propre a votre jurisdiction",H16,SUMIF($A$3:$A$15,$B17,H3:H15)) -> 7.8 | I17: =IF(Financial!$I$40="Use custom AEF // Utiiser prévisions propre a votre jurisdiction",I16,SUMIF($A$3:$A$15,$B17,I3:I15)) -> 9.9 | J17: =IF(Financial!$I$40="Use custom AEF // Utiiser prévisions propre a votre jurisdiction",J16,SUMIF($A$3:$A$15,$B17,J3:J15)) -> 2.3 | K17: =IF(Financial!$I$40="Use custom AEF // Utiiser prévisions propre a votre jurisdiction",K16,SUMIF($A$3:$A$15,$B17,K3:K15)) -> 2.6 | L17: =IF(Financial!$I$40="Use custom AEF // Utiiser prévisions propre a votre jurisdiction",L16,SUMIF($A$3:$A$15,$B17,L3:L15)) -> 2.4 | M17: =IF(Financial!$I$40="Use custom AEF // Utiiser prévisions propre a votre jurisdiction",M16,SUMIF($A$3:$A$15,$B17,M3:M15)) -> 1.4 | N17: =IF(Financial!$I$40="Use custom AEF // Utiiser prévisions propre a votre jurisdiction",N16,SUMIF($A$3:$A$15,$B17,N3:N15)) -> 1.5 | O17: =IF(Financial!$I$40="Use custom AEF // Utiiser prévisions propre a votre jurisdiction",O16,SUMIF($A$3:$A$15,$B17,O3:O15)) -> 1.3 | P17: =IF(Financial!$I$40="Use custom AEF // Utiiser prévisions propre a votre jurisdiction",P16,SUMIF($A$3:$A$15,$B17,P3:P15)) -> 1.5 | Q17: =IF(Financial!$I$40="Use custom AEF // Utiiser prévisions propre a votre jurisdiction",Q16,SUMIF($A$3:$A$15,$B17,Q3:Q15)) -> 1.4 | R17: =IF(Financial!$I$40="Use custom AEF // Utiiser prévisions propre a votre jurisdiction",R16,SUMIF($A$3:$A$15,$B17,R3:R15)) -> 1.4 | S17: =IF(Financial!$I$40="Use custom AEF // Utiiser prévisions propre a votre jurisdiction",S16,SUMIF($A$3:$A$15,$B17,S3:S15)) -> 6.4 | T17: =IF(Financial!$I$40="Use custom AEF // Utiiser prévisions propre a votre jurisdiction",T16,SUMIF($A$3:$A$15,$B17,T3:T15)) -> 1.8 | U17: =IF(Financial!$I$40="Use custom AEF // Utiiser prévisions propre a votre jurisdiction",U16,SUMIF($A$3:$A$15,$B17,U3:U15)) -> 1.5 | V17: =IF(Financial!$I$40="Use custom AEF // Utiiser prévisions propre a votre jurisdiction",V16,SUMIF($A$3:$A$15,$B17,V3:V15)) -> 4.9 | W17: =IF(Financial!$I$40="Use custom AEF // Utiiser prévisions propre a votre jurisdiction",W16,SUMIF($A$3:$A$15,$B17,W3:W15)) -> 0.5 | X17: =IF(Financial!$I$40="Use custom AEF // Utiiser prévisions propre a votre jurisdiction",X16,SUMIF($A$3:$A$15,$B17,X3:X15)) -> 0.4 | Y17: =IF(Financial!$I$40="Use custom AEF // Utiiser prévisions propre a votre jurisdiction",Y16,SUMIF($A$3:$A$15,$B17,Y3:Y15)) -> 0.4 | Z17: =IF(Financial!$I$40="Use custom AEF // Utiiser prévisions propre a votre jurisdiction",Z16,SUMIF($A$3:$A$15,$B17,Z3:Z15)) -> 3.9 | AA17: =IF(Financial!$I$40="Use custom AEF // Utiiser prévisions propre a votre jurisdiction",AA16,SUMIF($A$3:$A$15,$B17,AA3:AA15)) -> 7.7 | AB17: =IF(Financial!$I$40="Use custom AEF // Utiiser prévisions propre a votre jurisdiction",AB16,SUMIF($A$3:$A$15,$B17,AB3:AB15)) -> 11.2 | AC17: =IF(Financial!$I$40="Use custom AEF // Utiiser prévisions propre a votre jurisdiction",AC16,SUMIF($A$3:$A$15,$B17,AC3:AC15)) -> 14.7 | AD17: =IF(Financial!$I$40="Use custom AEF // Utiiser prévisions propre a votre jurisdiction",AD16,SUMIF($A$3:$A$15,$B17,AD3:AD15)) -> 18.1 | AE17: =IF(Financial!$I$40="Use custom AEF // Utiiser prévisions propre a votre jurisdiction",AE16,SUMIF($A$3:$A$15,$B17,AE3:AE15)) -> 18 | AF17: =IF(Financial!$I$40="Use custom AEF // Utiiser prévisions propre a votre jurisdiction",AF16,SUMIF($A$3:$A$15,$B17,AF3:AF15)) -> 17.9 | AG17: =IF(Financial!$I$40="Use custom AEF // Utiiser prévisions propre a votre jurisdiction",AG16,SUMIF($A$3:$A$15,$B17,AG3:AG15)) -> 17.8 | AH17: =IF(Financial!$I$40="Use custom AEF // Utiiser prévisions propre a votre jurisdiction",AH16,SUMIF($A$3:$A$15,$B17,AH3:AH15)) -> 17.7 | AI17: =IF(Financial!$I$40="Use custom AEF // Utiiser prévisions propre a votre jurisdiction",AI16,SUMIF($A$3:$A$15,$B17,AI3:AI15)) -> 17.6 | AJ17: =IF(Financial!$I$40="Use custom AEF // Utiiser prévisions propre a votre jurisdiction",AJ16,SUMIF($A$3:$A$15,$B17,AJ3:AJ15)) -> 17.5 | AK17: =IF(Financial!$I$40="Use custom AEF // Utiiser prévisions propre a votre jurisdiction",AK16,SUMIF($A$3:$A$15,$B17,AK3:AK15)) -> 17.4 | AL17: =IF(Financial!$I$40="Use custom AEF // Utiiser prévisions propre a votre jurisdiction",AL16,SUMIF($A$3:$A$15,$B17,AL3:AL15)) -> 17.3 | AM17: =IF(Financial!$I$40="Use custom AEF // Utiiser prévisions propre a votre jurisdiction",AM16,SUMIF($A$3:$A$15,$B17,AM3:AM15)) -> 17.3 | AN17: =IF(Financial!$I$40="Use custom AEF // Utiiser prévisions propre a votre jurisdiction",AN16,SUMIF($A$3:$A$15,$B17,AN3:AN15)) -> 17.2 | AO17: =IF(Financial!$I$40="Use custom AEF // Utiiser prévisions propre a votre jurisdiction",AO16,SUMIF($A$3:$A$15,$B17,AO3:AO15)) -> 17.1 | AP17: =IF(Financial!$I$40="Use custom AEF // Utiiser prévisions propre a votre jurisdiction",AP16,SUMIF($A$3:$A$15,$B17,AP3:AP15)) -> 17.1 | AQ17: =IF(Financial!$I$40="Use custom AEF // Utiiser prévisions propre a votre jurisdiction",AQ16,SUMIF($A$3:$A$15,$B17,AQ3:AQ15)) -> 17 | AR17: =IF(Financial!$I$40="Use custom AEF // Utiiser prévisions propre a votre jurisdiction",AR16,SUMIF($A$3:$A$15,$B17,AR3:AR15)) -> 16.9 | AS17: =IF(Financial!$I$40="Use custom AEF // Utiiser prévisions propre a votre jurisdiction",AS16,SUMIF($A$3:$A$15,$B17,AS3:AS15)) -> 16.8 | AT17: =IF(Financial!$I$40="Use custom AEF // Utiiser prévisions propre a votre jurisdiction",AT16,SUMIF($A$3:$A$15,$B17,AT3:AT15)) -> 11.7 | AU17: =IF(Financial!$I$40="Use custom AEF // Utiiser prévisions propre a votre jurisdiction",AU16,SUMIF($A$3:$A$15,$B17,AU3:AU15)) -> 11.7 | AV17: =IF(Financial!$I$40="Use custom AEF // Utiiser prévisions propre a votre jurisdiction",AV16,SUMIF($A$3:$A$15,$B17,AV3:AV15)) -> 11.6 | AW17: =IF(Financial!$I$40="Use custom AEF // Utiiser prévisions propre a votre jurisdiction",AW16,SUMIF($A$3:$A$15,$B17,AW3:AW15)) -> 11.6 | AX17: =IF(Financial!$I$40="Use custom AEF // Utiiser prévisions propre a votre jurisdiction",AX16,SUMIF($A$3:$A$15,$B17,AX3:AX15)) -> 11.5
A18: Notes:
A19: The electricity grid intensities are calculated from Canadaï¿½s greenhouse gas and air pollutant emissions projections (https://protect-us.mimecast.com/s/7QlWCjRVD8tLMMEcWsGBw?domain=publications.gc.ca).
A20: The electricity grid intensities are computed by dividing electricity emissions by electricity sales from the utility grid within a province or territory. Electricity emissions are the sum of emissions from utility electricity production and emissions from industrial electricity sold to the utility grid (including emissions from electricity losses).
A21: This methodology implies that imports and exports of electricity are assumed to have an emissions intensity of zero while the electricity imported still contributes to the sales of electricity from the utility grid. This also means that emissions from exported electricity are attributed to the exporting province or territory.
A22: "x" indicates content suppressed in order to meet the confidentiality requirements of the Statistics Act.
A23: "0" Indicates data truncated due to rounding.
A24: -: no data.

Sheet Cities (hidden)
B1: Validation Table for Cities part of any given CTAP version | J1: From user inpu output Tab:
B2: Population and dwelling counts: Canada, provinces and territories, and census subdivisions (municipalities) 1 | J2: =Statistics!D2 -> Quebec | K2: =SUMIF(AT3:AT14,J2,AU3:AU14) -> 5
B3: Frequency: Occasional | J3: =B14 -> Quebec | AT3: NS | AU3: 1
B4: Table: 98-10-0002-02 | AT4: NF | AU4: 2
B5: Release date: 2022-02-09 | AT5: PEI | AU5: 3
B6: Geography: Canada, Province or territory, Census division, Census subdivision | AT6: NB | AU6: 4
B7: Universe: All persons, 2021 and 2016 censuses – 100% data | AT7: Quebec | AU7: 5
B8: Variable List: Population and dwelling counts (13) | AT8: Ontario | AU8: 6
B9: https://www150.statcan.gc.ca/t1/tbl1/en/tv.action?pid=9810000202&pickMembers%5B0%5D=1.488 | AT9: MB | AU9: 7
S10: 42 | AT10: BC | AU10: 8
C11: Total private dwellings, 2021 | D11: Total private dwellings, 2016 | S11: =C11 -> Total private dwellings, 2021 | AF11: =D11 -> Total private dwellings, 2016 | AT11: YK | AU11: 9
B12: City | F12: NS | G12: NF | H12: PE | I12: NB | J12: Qc | K12: ON | L12: MB | M12: BC | N12: YK | O12: NW | P12: AB | Q12: SK | S12: NS | T12: NF | U12: PE | V12: NB | W12: Qc | X12: ON | Y12: MB | Z12: BC | AA12: YK | AB12: NW | AC12: AB | AD12: SK | AF12: NS | AG12: NF | AH12: PE | AI12: NB | AJ12: Qc | AK12: ON | AL12: MB | AM12: BC | AN12: YK | AO12: NW | AP12: AB | AQ12: SK | AT12: NW | AU12: 10
A13: 1 | F13: 1 | G13: 2 | H13: 3 | I13: 4 | J13: 5 | K13: 6 | L13: 7 | M13: 8 | N13: 9 | O13: 10 | P13: 11 | Q13: 12 | S13: 1 | T13: 2 | U13: 3 | V13: 4 | W13: 5 | X13: 6 | Y13: 7 | Z13: 8 | AA13: 9 | AB13: 10 | AC13: 11 | AD13: 12 | AF13: 1 | AG13: 2 | AH13: 3 | AI13: 4 | AJ13: 5 | AK13: 6 | AL13: 7 | AM13: 8 | AN13: 9 | AO13: 10 | AP13: 11 | AQ13: 12 | AT13: AB | AU13: 11
A14: 2 | B14: =HLOOKUP($K$2,$F$13:$Q$1301,$A14) -> Quebec | C14: =HLOOKUP($K$2,$S$13:$AD$1301,$A14) -> 4050164 | D14: =HLOOKUP($K$2,$AF$13:$AQ$1301,$A14) -> 3858943 | F14: Nova Scotia | G14: Newfoundland and Labrador | H14: Prince Edward Island | I14: New Brunswick | J14: Quebec | K14: Ontario | L14: Manitoba | M14: British Columbia | N14: Yukon | O14: Northwest Territories | P14: Alberta | Q14: Saskatchewan | S14: 476007 | T14: 269184 | U14: 74934 | V14: 366146 | W14: 4050164 | X14: 5929250 | Y14: 571528 | Z14: 2211694 | AA14: 19610 | AB14: 17603 | AC14: 1772670 | AD14: 513725 | AF14: 458568 | AG14: 265739 | AH14: 71119 | AI14: 359721 | AJ14: 3858943 | AK14: 5598391 | AL14: 539748 | AM14: 2063417 | AN14: 17987 | AO14: 17666 | AP14: 1654129 | AQ14: 495582 | AT14: SK | AU14: 12
A15: 3 | B15: =HLOOKUP($K$2,$F$13:$Q$1301,A15) -> Abercorn | C15: 240 | D15: 236 | F15: Amherst | G15: Admirals Beach | H15: Abram-Village 3 | I15: Aberdeen | J15: Abercorn | K15: Abitibi 70 | L15: A Kwis Ki Mahka 4 | M15: 105 Mile Post 2 | N15: Beaver Creek | O15: Aklavik | P15: Acadia No. 34 | Q15: Abbey | S15: 4799 | T15: 76 | U15: 155 | V15: 468 | W15: 240 | X15: 76 | Y15: 21 | Z15: 5 | AA15: 61 | AB15: 274 | AC15: 196 | AD15: 85 | AF15: 4745 | AG15: 80 | AH15: 134 | AI15: 503 | AJ15: 236 | AK15: 63 | AL15: 26 | AM15: 4 | AN15: 71 | AO15: 281 | AP15: 184 | AQ15: 88
A16: 4 | B16: Acton Vale | C16: 3628 | D16: 3594 | F16: Annapolis Royal | G16: Anchor Point | H16: Alberton | I16: Acadieville | J16: Acton Vale | K16: Addington Highlands 4 | L16: Alexander | M16: Abbotsford | N16: Burwash Landing | O16: Behchokò | P16: Acme | Q16: Aberdeen 4 | S16: 364 | T16: 131 | U16: 595 | V16: 381 | W16: 3628 | X16: 2052 | Y16: 4347 | Z16: 55659 | AA16: 52 | AB16: 541 | AC16: 294 | AD16: 264 | AF16: 346 | AG16: 130 | AH16: 554 | AI16: 388 | AJ16: 3594 | AK16: 2326 | AL16: 4144 | AM16: 51770 | AN16: 74 | AO16: 562 | AP16: 301 | AQ16: 254
A17: 5 | B17: Adstock | C17: 1767 | D17: 1803 | F17: Annapolis Valley First Nation | G17: Appleton | H17: Alberton 3 | I17: Addington | J17: Adstock | K17: Adelaide-Metcalfe | L17: Alonsa | M17: Agats Meadow 8 | N17: Carcross | O17: Colville Lake | P17: Airdrie | Q17: Aberdeen No. 373 | S17: 330 | T17: 285 | U17: 1210 | V17: 354 | W17: 1767 | X17: 1056 | Y17: 659 | Z17: 0 | AA17: 229 | AB17: 43 | AC17: 27037 | AD17: 528 | AF17: 56 | AG17: 246 | AH17: 1254 | AI17: 333 | AJ17: 1803 | AK17: 1045 | AL17: 672 | AM17: 1 | AN17: 228 | AO17: 45 | AP17: 22398 | AQ17: 558
A18: 6 | B18: Aguanish | C18: 152 | D18: 148 | F18: Annapolis, Subd. A | G18: Aquaforte | H18: Alexandra 3 | I18: Allardville | J18: Aguanish | K18: Adjala-Tosorontio | L18: Altona | M18: Ahahswinis 1 | N18: Carcross 4 | O18: Déline | P18: Beach | Q18: Abernethy | S18: 3435 | T18: 63 | U18: 97 | V18: 919 | W18: 152 | X18: 3995 | Y18: 1760 | Z18: 62 | AA18: 16 | AB18: 226 | AC18: 743 | AD18: 108 | AF18: 3412 | AG18: 71 | AH18: 84 | AI18: 932 | AJ18: 148 | AK18: 3974 | AL18: 1689 | AM18: 61 | AN18: 18 | AO18: 239 | AP18: 743 | AQ18: 104
A19: 7 | B19: Akulivik | C19: 204 | D19: 187 | F19: Annapolis, Subd. B | G19: Arnold's Cove | H19: Annandale - Little Pond - Howe Bay 3 | I19: Alma | J19: Akulivik | K19: Admaston/Bromley | L19: Arborg | M19: Ahaminaquus 12 | N19: Carmacks | O19: Dettah | P19: Alexander 134 | Q19: Abernethy No. 186 | S19: 2353 | T19: 547 | U19: 169 | V19: 196 | W19: 204 | X19: 1305 | Y19: 531 | Z19: 0 | AA19: 302 | AB19: 85 | AC19: 297 | AD19: 165 | AF19: 2342 | AG19: 537 | AH19: 172 | AI19: 202 | AJ19: 187 | AK19: 1288 | AL19: 512 | AM19: 0 | AN19: 271 | AO19: 85 | AP19: 349 | AQ19: 196
A20: 8 | B20: Akulivik 2 | C20: 0 | D20: 0 | F20: Annapolis, Subd. C | G20: Avondale | H20: Bedeque and Area | I20: Alma 2 | J20: Akulivik 2 | K20: Agency 1 | L20: Argyle | M20: Aitchelitch 9 | N20: Champagne Landing 10 3 | O20: Enterprise | P20: Alexander 134B 3 | Q20: Ahtahkakoop 104 | S20: 2516 | T20: 346 | U20: 132 | V20: 5 | W20: 0 | X20: 0 | Y20: 515 | Z20: 13 | AA20: 30 | AB20: 51 | AC20: 5 | AD20: 435 | AF20: 2488 | AG20: 373 | AH20: 128 | AI20: 3 | AJ20: 0 | AK20: 0 | AL20: 511 | AM20: 5 | AN20: 43 | AO20: 52 | AP20: 2 | AQ20: 424
A21: 9 | B21: Akwesasne 3 6 | C21: .. | D21: 763 | F21: Annapolis, Subd. D | G21: Badger | H21: Belfast 3 | I21: Alnwick | J21: Akwesasne 3 6 | K21: Ajax | L21: Armstrong | M21: Alberni 2 | N21: Dawson | O21: Fort Good Hope | P21: Alexis 133 | Q21: Air Ronge 3 | S21: 1964 | T21: 357 | U21: 971 | V21: 1852 | W21: .. | X21: 40275 | Y21: 1056 | Z21: 0 | AA21: 836 | AB21: 231 | AC21: 214 | AD21: 465 | AF21: 1805 | AG21: 325 | AH21: 1027 | AI21: 1882 | AJ21: 763 | AK21: 38105 | AL21: 915 | AM21: 3 | AN21: 756 | AO21: 238 | AP21: 209 | AQ21: 440
A22: 10 | B22: Albanel | C22: 987 | D22: 988 | F22: Antigonish | G22: Baie Verte | H22: Borden 3 | I22: Andover | J22: Albanel | K22: Akwesasne (Part) 59 3 5 | L22: Beausejour | M22: Alberni-Clayoquot A | N22: Destruction Bay | O22: Fort Liard | P22: Alexis Whitecourt 232 3 | Q22: Alameda | S22: 2675 | T22: 647 | U22: 410 | V22: 387 | W22: 987 | X22: .. | Y22: 1572 | Z22: 404 | AA22: 32 | AB22: 209 | AC22: 0 | AD22: 187 | AF22: 2596 | AG22: 646 | AH22: 430 | AI22: 407 | AJ22: 988 | AK22: 849 | AL22: 1518 | AM22: 444 | AN22: 32 | AO22: 210 | AP22: 0 | AQ22: 187
A23: 11 | B23: Albertville | C23: 163 | D23: 126 | F23: Antigonish, Subd. A | G23: Baine Harbour | H23: Borden-Carleton | I23: Aroostook | J23: Albertville | K23: Alberton | L23: Berens River 13 3 | M23: Alberni-Clayoquot B | N23: Faro | O23: Fort McPherson | P23: Alix | Q23: Albertville 4 | S23: 4478 | T23: 69 | U23: 365 | V23: 163 | W23: 163 | X23: 355 | Y23: 321 | Z23: 229 | AA23: 423 | AB23: 318 | AC23: 385 | AD23: 57 | AF23: 4222 | AG23: 61 | AH23: 376 | AI23: 165 | AJ23: 126 | AK23: 366 | AL23: 283 | AM23: 220 | AN23: 444 | AO23: 314 | AP23: 385 | AQ23: 56
A24: 12 | B24: Alleyn-et-Cawood | C24: 303 | D24: 281 | F24: Antigonish, Subd. B | G24: Bauline | H24: Brackley 3 | I24: Atholville | J24: Alleyn-et-Cawood | K24: Alderville First Nation | L24: Bifrost-Riverton | M24: Alberni-Clayoquot C | N24: Haines Junction | O24: Fort Providence | P24: Alliance 3 | Q24: Alice Beach | S24: 2849 | T24: 172 | U24: 240 | V24: 1550 | W24: 303 | X24: 282 | Y24: 1598 | Z24: 680 | AA24: 380 | AB24: 292 | AC24: 100 | AD24: 132 | AF24: 2890 | AG24: 174 | AH24: 234 | AI24: 1584 | AJ24: 281 | AK24: 266 | AL24: 1583 | AM24: 359 | AN24: 336 | AO24: 292 | AP24: 108 | AQ24: 131
A25: 13 | B25: Alma 5 | C25: 14493 | D25: 14310 | F25: Argyle | G25: Bay Bulls | H25: Breadalbane | I25: Balmoral | J25: Alma 5 | K25: Alfred and Plantagenet | L25: Birdtail Creek 57 | M25: Alberni-Clayoquot D | N25: Ibex Valley | O25: Fort Resolution | P25: Allison Bay 219 5 | Q25: Alida | S25: 3818 | T25: 631 | U25: 74 | V25: 131 | W25: 14493 | X25: 4297 | Y25: 129 | Z25: 1251 | AA25: 261 | AB25: 223 | AC25: 40 | AD25: 74 | AF25: 3821 | AG25: 589 | AH25: 76 | AI25: 120 | AJ25: 14310 | AK25: 4218 | AL25: 120 | AM25: 1131 | AN25: 216 | AO25: 280 | AP25: 46 | AQ25: 68
A26: 14 | B26: Amherst | C26: 1613 | D26: 1665 | F26: Barrington | G26: Bay de Verde | H26: Cardigan 3 | I26: Balmoral 2 | J26: Amherst | K26: Algoma, Unorganized, North Part | L26: Black River 9 | M26: Alberni-Clayoquot E | N26: Johnsons Crossing | O26: Fort Simpson | P26: Amisk | Q26: Allan | S26: 3546 | T26: 200 | U26: 54 | V26: 713 | W26: 1613 | X26: 5019 | Y26: 191 | Z26: 1330 | AA26: 12 | AB26: 572 | AC26: 105 | AD26: 279 | AF26: 3494 | AG26: 216 | AH26: 59 | AI26: 720 | AJ26: 1665 | AK26: 5489 | AL26: 264 | AM26: 1257 | AN26: 12 | AO26: 562 | AP26: 103 | AQ26: 274
A27: 15 | B27: Amos | C27: 6051 | D27: 5910 | F27: Bear River (Part) 6 | G27: Bay L'Argent | H27: Central Kings 3 | I27: Bas-Caraquet | J27: Amos | K27: Algoma, Unorganized, South East Part | L27: Black Sturgeon | M27: Alberni-Clayoquot F | N27: Keno Hill | O27: Fort Smith | P27: Andrew | Q27: Alvena | S27: 56 | T27: 134 | U27: 56 | V27: 687 | W27: 6051 | X27: 1 | Y27: 34 | Z27: 902 | AA27: 52 | AB27: 1009 | AC27: 238 | AD27: 52 | AF27: 53 | AG27: 132 | AH27: 51 | AI27: 675 | AJ27: 5910 | AK27: 4 | AL27: 0 | AM27: 863 | AN27: 33 | AO27: 1088 | AP27: 266 | AQ27: 46
A28: 16 | B28: Amqui | C28: 3015 | D28: 2992 | F28: Bear River (Part) 6 2 | G28: Bay Roberts | H28: Central Kings 3b | I28: Bath | J28: Amqui | K28: Algonquin Highlands | L28: Bloodvein 12 | M28: Albert Flat 5 | N28: Kloo Lake | O28: Gamètì | P28: Argentia Beach | Q28: Amiskosakahikan 210 3 | S28: 56 | T28: 2803 | U28: 176 | V28: 223 | W28: 3015 | X28: 3325 | Y28: 202 | Z28: 23 | AA28: 2 | AB28: 104 | AC28: 101 | AD28: 4 | AF28: 53 | AG28: 2658 | AH28: 173 | AI28: 224 | AJ28: 2992 | AK28: 3453 | AL28: 198 | AM28: 9 | AN28: 3 | AO28: 96 | AP28: 100 | AQ28: 37
A29: 17 | B29: Ange-Gardien | C29: 1143 | D29: 1069 | F29: Bear River 6B | G29: Baytona | H29: Central Prince 3 | I29: Bathurst | J29: Ange-Gardien | K29: Alnwick/Haldimand | L29: Boissevain-Morton | M29: Alert Bay 4 | N29: Lake Laberge 1 | O29: Hay River | P29: Arrowwood | Q29: Annaheim | S29: 3 | T29: 162 | U29: 529 | V29: 2293 | W29: 1143 | X29: 3323 | Y29: 1141 | Z29: 266 | AA29: 13 | AB29: 1541 | AC29: 78 | AD29: 95 | AF29: 3 | AG29: 129 | AH29: 501 | AI29: 2292 | AJ29: 1069 | AK29: 3064 | AL29: 1095 | AM29: 278 | AN29: 20 | AO29: 1572 | AP29: 79 | AQ29: 94
A30: 18 | B30: Armagh | C30: 785 | D30: 808 | F30: Beaver Lake 17 | G30: Beachside | H30: Charlottetown | I30: Bathurst 2 | J30: Armagh | K30: Amaranth | L30: Brandon 4 | M30: Alert Bay 5 | N30: Macpherson-Grizzly Valley | O30: Hay River Dene 1 | P30: Athabasca | Q30: Antelope Park No. 322 | S30: 6 | T30: 70 | U30: 18364 | V30: 6445 | W30: 785 | X30: 1428 | Y30: 22526 | Z30: 175 | AA30: 865 | AB30: 116 | AC30: 1325 | AD30: 67 | AF30: 5 | AG30: 80 | AH30: 17193 | AI30: 6317 | AJ30: 808 | AK30: 1376 | AL30: 21493 | AM30: 194 | AN30: 647 | AO30: 111 | AP30: 1313 | AQ30: 61
A31: 19 | B31: Arundel | C31: 402 | D31: 412 | F31: Berwick | G31: Bellburns | H31: Clyde River | I31: Beaubassin East / Beaubassin-est | J31: Arundel | K31: Amherstburg | L31: Brenda-Waskada | M31: Alexandria 3 5 | N31: Marsh Lake | O31: Inuvik | P31: Athabasca County | Q31: Antler No. 61 | S31: 1080 | T31: 41 | U31: 271 | V31: 3368 | W31: 402 | X31: 9548 | Y31: 332 | Z31: .. | AA31: 527 | AB31: 1464 | AC31: 3746 | AD31: 199 | AF31: 1071 | AG31: 46 | AH31: 270 | AI31: 3388 | AJ31: 412 | AK31: 8951 | AL31: 352 | AM31: 13 | AN31: 531 | AO31: 1477 | AP31: 4093 | AQ31: 240
A32: 20 | B32: Ascot Corner | C32: 1364 | D32: 1235 | F32: Bridgewater | G32: Belleoram | H32: Cornwall | I32: Belledune | J32: Ascot Corner | K32: Armour | L32: Brochet 197 3 6 | M32: Alexis 9 | N32: Mayo | O32: Jean Marie River | P32: Banff 5 | Q32: Aquadeo | S32: 4493 | T32: 170 | U32: 2770 | V32: 782 | W32: 1364 | X32: 1087 | Y32: .. | Z32: 4 | AA32: 149 | AB32: 37 | AC32: 3287 | AD32: 450 | AF32: 4299 | AG32: 175 | AH32: 2132 | AI32: 883 | AJ32: 1235 | AK32: 1080 | AL32: 138 | AM32: 6 | AN32: 133 | AO32: 33 | AP32: 2729 | AQ32: 387
A33: 21 | B33: Aston-Jonction | C33: 180 | D33: 174 | F33: Cape Breton 3 | G33: Birchy Bay | H33: Crapaud | I33: Beresford | J33: Aston-Jonction | K33: Armstrong | L33: Brokenhead | M33: Alexis Creek 14 | N33: Moosehide Creek 2 | O33: Kakisa | P33: Barnwell | Q33: Arborfield | S33: 46471 | T33: 267 | U33: 158 | V33: 2785 | W33: 180 | X33: 523 | Y33: 2213 | Z33: 1 | AA33: 0 | AB33: 19 | AC33: 264 | AD33: 139 | AF33: 45741 | AG33: 260 | AH33: 133 | AI33: 2780 | AJ33: 174 | AK33: 521 | AL33: 2115 | AM33: 1 | AN33: 27 | AO33: 22 | AP33: 266 | AQ33: 146
A34: 22 | B34: Auclair | C34: 264 | D34: 265 | F34: Chapel Island 5 | G34: Bird Cove | H34: Crapaud, Part 1 3 | I34: Beresford 2 | J34: Auclair | K34: Arnprior | L34: Brokenhead 4 | M34: Alexis Creek 16 | N34: Mt. Lorne | O34: Lutselk'e | P34: Barons | Q34: Arborfield No. 456 | S34: 147 | T34: 88 | U34: 963 | V34: 2225 | W34: 264 | X34: 4458 | Y34: 178 | Z34: 0 | AA34: 246 | AB34: 139 | AC34: 148 | AD34: 163 | AF34: 167 | AG34: 93 | AH34: 979 | AI34: 2150 | AJ34: 265 | AK34: 4124 | AL34: 194 | AM34: 0 | AN34: 219 | AO34: 147 | AP34: 148 | AQ34: 165
A35: 23 | B35: Audet | C35: 317 | D35: 303 | F35: Chester | G35: Bishop's Cove | H35: Crapaud, Part 2 3 | I35: Bertrand | J35: Audet | K35: Aroland | L35: Buffalo Point 36 3 | M35: Alexis Creek 21 | N35: North Slope 3 | O35: Nahanni Butte | P35: Barrhead | Q35: Archerwill | S35: 6482 | T35: 147 | U35: 336 | V35: 665 | W35: 317 | X35: 58 | Y35: 292 | Z35: 0 | AA35: 0 | AB35: 39 | AC35: 1983 | AD35: 102 | AF35: 6492 | AG35: 147 | AH35: 323 | AI35: 678 | AJ35: 303 | AK35: 111 | AL35: 336 | AM35: 2 | AN35: 0 | AO35: 48 | AP35: 2009 | AQ35: 104
A36: 24 | B36: Aumond | C36: 623 | D36: 601 | F36: Clare | G36: Bishop's Falls | H36: Crossroads 3 | I36: Big Hole Tract 8 (North Half) 4 | J36: Aumond | K36: Arran-Elderslie | L36: Canupawakpa Dakota First Nation (Oak Lake 59) | M36: Alexis Creek 34 | N36: Old Crow | O36: Norman Wells | P36: Barrhead County No. 11 | Q36: Arcola | S36: 4393 | T36: 1540 | U36: 757 | V36: 15 | W36: 623 | X36: 2998 | Y36: 118 | Z36: 0 | AA36: 168 | AB36: 404 | AC36: 2677 | AD36: 320 | AF36: 4681 | AG36: 1502 | AH36: 690 | AI36: 17 | AJ36: 601 | AK36: 3030 | AL36: 106 | AM36: 2 | AN36: 189 | AO36: 406 | AP36: 2830 | AQ36: 321
A37: 25 | B37: Aupaluk | C37: 77 | D37: 75 | F37: Clark's Harbour | G37: Bonavista | H37: Darlington 3 | I37: Big Hole Tract 8 (South Half) 4 | J37: Aupaluk | K37: Ashfield-Colborne-Wawanosh | L37: Carberry | M37: Alkali Lake 1 | N37: Pelly Crossing | O37: Paulatuk | P37: Bashaw | Q37: Argyle No. 1 | S37: 399 | T37: 1732 | U37: 45 | V37: 16 | W37: 77 | X37: 3149 | Y37: 847 | Z37: 114 | AA37: 159 | AB37: 100 | AC37: 415 | AD37: 142 | AF37: 407 | AG37: 1749 | AH37: 39 | AI37: 16 | AJ37: 75 | AK37: 3030 | AL37: 835 | AM37: 122 | AN37: 159 | AO37: 110 | AP37: 418 | AQ37: 110
A38: 26 | B38: Aupaluk 2 | C38: 0 | D38: 0 | F38: Colchester, Subd. A | G38: Botwood | H38: East River, Part 1 3 | I38: Blacks Harbour | J38: Aupaluk 2 | K38: Asphodel-Norwood | L38: Carman | M38: Alkali Lake 4A | N38: Ross River | O38: Region 1, Unorganized | P38: Bassano | Q38: Arlington No. 79 | S38: 2262 | T38: 1389 | U38: 1170 | V38: 421 | W38: 0 | X38: 1985 | Y38: 1466 | Z38: 2 | AA38: 184 | AB38: 0 | AC38: 595 | AD38: 99 | AF38: 2219 | AG38: 1302 | AH38: 1132 | AI38: 411 | AJ38: 0 | AK38: 1758 | AL38: 1496 | AM38: 3 | AN38: 199 | AO38: 5 | AP38: 556 | AQ38: 97
A39: 27 | B39: Austin | C39: 1410 | D39: 1414 | F39: Colchester, Subd. B | G39: Branch | H39: East River, Part 2 3 | I39: Blackville | J39: Austin | K39: Assabaska 4 | L39: Cartier | M39: Anacla 12 | N39: Stewart Crossing | O39: Region 2, Unorganized | P39: Bawlf | Q39: Arm River No. 252 | S39: 9836 | T39: 142 | U39: 308 | V39: 970 | W39: 1410 | X39: 0 | Y39: 850 | Z39: 52 | AA39: 20 | AB39: 0 | AC39: 176 | AD39: 117 | AF39: 9564 | AG39: 174 | AH39: 367 | AI39: 974 | AJ39: 1414 | AK39: 83 | AL39: 853 | AM39: 44 | AN39: 20 | AO39: 0 | AP39: 175 | AQ39: 109
A40: 28 | B40: Authier | C40: 134 | D40: 125 | F40: Colchester, Subd. C | G40: Brent's Cove | H40: Eastern Kings 3 | I40: Blackville 2 | J40: Authier | K40: Assiginack | L40: Cartwright-Roblin | M40: Anahim's Flat 1 | N40: Swift River 3 | O40: Region 3, Unorganized | P40: Beaumont 3 | Q40: Arran | S40: 5779 | T40: 84 | U40: 499 | V40: 446 | W40: 134 | X40: 710 | Y40: 489 | Z40: 133 | AA40: 3 | AB40: 0 | AC40: 7168 | AD40: 15 | AF40: 6031 | AG40: 85 | AH40: 618 | AI40: 417 | AJ40: 125 | AK40: 730 | AL40: 489 | AM40: 129 | AN40: 6 | AO40: 0 | AP40: 6015 | AQ40: 25
A41: 29 | B41: Authier-Nord | C41: 159 | D41: 164 | F41: Cole Harbour 30 | G41: Brighton | H41: Greenmount-Montrose 3 | I41: Blissfield | J41: Authier-Nord | K41: Athens 4 | L41: Chemawawin 2 | M41: Anahim's Meadow | N41: Tagish | O41: Region 4, Unorganized | P41: Beaver County | Q41: Asquith | S41: 130 | T41: 97 | U41: 127 | V41: 256 | W41: 159 | X41: 1325 | Y41: 375 | Z41: 4 | AA41: 413 | AB41: 78 | AC41: 2434 | AD41: 277 | AF41: 123 | AG41: 98 | AH41: 131 | AI41: 268 | AJ41: 164 | AK41: 1338 | AL41: 298 | AM41: 7 | AN41: 400 | AO41: 95 | AP41: 2381 | AQ41: 261
A42: 30 | B42: Ayer's Cliff 3 | C42: 643 | D42: 634 | F42: Cumberland, Subd. A 3 | G42: Brigus | H42: Hampshire 3 | I42: Blissville | J42: Ayer's Cliff 3 | K42: Atikokan | L42: Chemawawin 3 | M42: Anmore | N42: Teslin | O42: Region 5, Unorganized | P42: Beaver Lake 131 | Q42: Assiniboia 4 | S42: 2107 | T42: 506 | U42: 136 | V42: 369 | W42: 643 | X42: 1464 | Y42: 9 | Z42: 768 | AA42: 0 | AB42: 54 | AC42: 121 | AD42: 1236 | AF42: 2162 | AG42: 446 | AH42: 142 | AI42: 378 | AJ42: 634 | AK42: 1477 | AL42: 9 | AM42: 723 | AN42: 0 | AO42: 38 | AP42: 115 | AQ42: 1239
A43: 31 | B43: Baie-Atibenne | C43: 1 | D43: 1 | F43: Cumberland, Subd. B | G43: Bryant's Cove | H43: Hazelbrook 3 | I43: Botsford | J43: Baie-Atibenne | K43: Attawapiskat 91A | L43: Churchill | M43: Armstrong | N43: Teslin 3 | O43: Region 6, Unorganized | P43: Beaver Ranch 163 | Q43: Assiniboine 76 | S43: 3448 | T43: 149 | U43: 91 | V43: 978 | W43: 1 | X43: 404 | Y43: 540 | Z43: 2292 | AA43: 144 | AB43: 314 | AC43: 5 | AD43: 224 | AF43: 3558 | AG43: 162 | AH43: 83 | AI43: 1045 | AJ43: 1 | AK43: 415 | AL43: 433 | AM43: 2143 | AN43: 145 | AO43: 416 | AP43: 7 | AQ43: 214
A44: 32 | B44: Baie-Comeau | C44: 10163 | D44: 10190 | F44: Cumberland, Subd. C | G44: Buchans | H44: Hunter River | I44: Bouctouche | J44: Baie-Comeau | K44: Augusta | L44: Churchill 1 6 | M44: Ashcroft | N44: Teslin Post 13 3 | O44: Reliance | P44: Beaverlodge 5 | Q44: Atwater | S44: 4111 | T44: 338 | U44: 170 | V44: 1188 | W44: 10163 | X44: 3046 | Y44: .. | Z44: 876 | AA44: 11 | AB44: 1 | AC44: 1022 | AD44: 14 | AF44: 4003 | AG44: 417 | AH44: 164 | AI44: 1179 | AJ44: 10190 | AK44: 3004 | AL44: 137 | AM44: 801 | AN44: 17 | AO44: 1 | AP44: 1024 | AQ44: 16
A45: 33 | B45: Baie-de-la-Bouteille | C45: 17 | D45: 22 | F45: Cumberland, Subd. D | G45: Burgeo | H45: Johnstons River 3 | I45: Bright | J45: Baie-de-la-Bouteille | K45: Aurora | L45: Clanwilliam-Erickson 4 | M45: Ashcroft 4 | N45: Upper Liard | O45: Sachs Harbour | P45: Beiseker | Q45: Auvergne No. 76 | S45: 3322 | T45: 660 | U45: 172 | V45: 1477 | W45: 17 | X45: 22253 | Y45: 834 | Z45: 27 | AA45: 63 | AB45: 52 | AC45: 333 | AD45: 132 | AF45: 3380 | AG45: 655 | AH45: 155 | AI45: 1440 | AJ45: 22 | AK45: 19381 | AL45: 651 | AM45: 29 | AN45: 80 | AO45: 44 | AP45: 338 | AQ45: 141
A46: 34 | B46: Baie-des-Chaloupes | C46: 0 | D46: 0 | F46: Digby | G46: Burin | H46: Kensington | I46: Brighton | J46: Baie-des-Chaloupes | K46: Aylmer | L46: Coldwell | M46: Ashnola 10 | N46: Watson Lake 3 | O46: Salt Plains 195 | P46: Bentley | Q46: Avonlea | S46: 4099 | T46: 1155 | U46: 897 | V46: 773 | W46: 0 | X46: 3177 | Y46: 734 | Z46: 30 | AA46: 564 | AB46: 37 | AC46: 471 | AD46: 193 | AF46: 4048 | AG46: 1145 | AH46: 781 | AI46: 814 | AJ46: 0 | AK46: 3031 | AL46: 730 | AM46: 28 | AN46: 609 | AO46: 21 | AP46: 463 | AQ46: 191
A47: 35 | B47: Baie-des-Sables | C47: 336 | D47: 328 | F47: Digby 2 | G47: Burlington | H47: Kensington, Part 1 3 | I47: Brunswick | J47: Baie-des-Sables | K47: Baldwin 5 | L47: Cornwallis 4 | M47: Babine 16 5 | N47: Whitehorse | O47: Sambaa K’e | P47: Berwyn | Q47: Aylesbury | S47: 1133 | T47: 135 | U47: 1369 | V47: 193 | W47: 336 | X47: 326 | Y47: 1850 | Z47: 0 | AA47: 11970 | AB47: 49 | AC47: 274 | AD47: 38 | AF47: 1145 | AG47: 144 | AH47: 1424 | AI47: 159 | AJ47: 328 | AK47: 269 | AL47: 1778 | AM47: 2 | AN47: 10710 | AO47: 51 | AP47: 255 | AQ47: 30
A48: 36 | B48: Baie-d'Hudson | C48: 3 | D48: 0 | F48: East Hants | G48: Burnt Islands | H48: Kensington, Part 2 3 | I48: Buctouche 16 | J48: Baie-d'Hudson | K48: Bancroft | L48: Crane River 51 | M48: Babine 17 | N48: Whitehorse, Unorganized | O48: Tsiigehtchic | P48: Betula Beach | Q48: Aylsham | S48: 10046 | T48: 251 | U48: 277 | V48: 44 | W48: 3 | X48: 2007 | Y48: 130 | Z48: 40 | AA48: 239 | AB48: 73 | AC48: 46 | AD48: 44 | AF48: 9930 | AG48: 257 | AH48: 254 | AI48: 40 | AJ48: 0 | AK48: 1944 | AL48: 120 | AM48: 41 | AN48: 173 | AO48: 79 | AP48: 40 | AQ48: 44
A49: 37 | B49: Baie-du-Febvre | C49: 517 | D49: 522 | F49: Eskasoni 3 | G49: Campbellton | H49: Kingston 3 | I49: Burton | J49: Baie-du-Febvre | K49: Barrie | L49: Cross Lake 19 | M49: Babine 25 | N49: Yukon, Unorganized 3 | O49: Tuktoyaktuk | P49: Big Horn 144A 7 | Q49: Baildon No. 131 | S49: 1138 | T49: 289 | U49: 412 | V49: 2074 | W49: 517 | X49: 57276 | Y49: 430 | Z49: 37 | AA49: 1184 | AB49: 334 | AC49: .. | AD49: 208 | AF49: 1114 | AG49: 268 | AH49: 397 | AI49: 2020 | AJ49: 522 | AK49: 54227 | AL49: 369 | AM49: 48 | AN49: 1166 | AO49: 283 | AP49: 59 | AQ49: 219
A50: 38 | B50: Baie-D'Urfé | C50: 1375 | D50: 1381 | F50: Fisher's Grant 24 | G50: Cape Broyle | H50: Kinkora 3 | I50: Cambridge | J50: Baie-D'Urfé | K50: Bayham | L50: Cross Lake 19A | M50: Babine 6 5 | N50: 0 | O50: Tulita | P50: Big Lakes County 3 | Q50: Balcarres | S50: 158 | T50: 314 | U50: 879 | V50: 478 | W50: 1375 | X50: 2435 | Y50: 421 | Z50: 32 | AA50: 0 | AB50: 160 | AC50: 2632 | AD50: 271 | AF50: 158 | AG50: 291 | AH50: 842 | AI50: 617 | AJ50: 1381 | AK50: 2557 | AL50: 373 | AM50: 45 | AN50: 0 | AO50: 183 | AP50: 2709 | AQ50: 278
A51: 39 | B51: Baie-Johan-Beetz | C51: 58 | D51: 54 | F51: Glooscap 35 | G51: Cape St. George | H51: Kinkora | I51: Cambridge-Narrows | J51: Baie-Johan-Beetz | K51: Bear Island 1 | L51: Cross Lake 19E 4 | M51: Babine Lake 21B | N51: 0 | O51: Ulukhaktok | P51: Big Valley | Q51: Balgonie | S51: 52 | T51: 433 | U51: 169 | V51: 629 | W51: 58 | X51: 103 | Y51: 161 | Z51: 0 | AA51: 0 | AB51: 159 | AC51: 186 | AD51: 628 | AF51: 36 | AG51: 410 | AH51: 154 | AI51: 659 | AJ51: 54 | AK51: 93 | AL51: 153 | AM51: 0 | AN51: 0 | AO51: 148 | AP51: 189 | AQ51: 611
A52: 40 | B52: Baie-Obaoca | C52: 0 | D52: 0 | F52: Gold River 21 | G52: Carbonear | H52: Lennox Island 1 3 | I52: Campbellton | J52: Baie-Obaoca | K52: Bearskin Lake | L52: Dakota Plains 6A | M52: Baezaeko River 27 | N52: 0 | O52: Wekweètì | P52: Bighorn No. 8 5 | Q52: Bangor | S52: 34 | T52: 2289 | U52: 115 | V52: 3531 | W52: 0 | X52: 152 | Y52: 48 | Z52: 0 | AA52: 0 | AB52: 55 | AC52: 875 | AD52: 12 | AF52: 34 | AG52: 2166 | AH52: 115 | AI52: 3443 | AJ52: 0 | AK52: 140 | AL52: 41 | AM52: 3 | AN52: 0 | AO52: 51 | AP52: 761 | AQ52: 14
A53: 41 | B53: Baie-Sainte-Catherine | C53: 125 | D53: 132 | F53: Guysborough | G53: Carmanville | H53: Linkletter 3 | I53: Campobello Island | J53: Baie-Sainte-Catherine | K53: Beckwith | L53: Dakota Tipi 1 | M53: Baptiste Meadow 2 | N53: 0 | O53: Whatì | P53: Birch Cove | Q53: Barrier Valley No. 397 | S53: 3043 | T53: 457 | U53: 137 | V53: 612 | W53: 125 | X53: 3523 | Y53: 72 | Z53: 1 | AA53: 0 | AB53: 162 | AC53: 61 | AD53: 375 | AF53: 3196 | AG53: 378 | AH53: 129 | AI53: 616 | AJ53: 132 | AK53: 3100 | AL53: 51 | AM53: 2 | AN53: 0 | AO53: 152 | AP53: 74 | AQ53: 308
A54: 42 | B54: Baie-Saint-Paul | C54: 3782 | D54: 3674 | F54: Halifax | G54: Cartwright, Labrador | H54: Lot 11 and Area 3 | I54: Canning | J54: Baie-Saint-Paul | K54: Belleville | L54: Dauphin 3 | M54: Barnston Island 3 3 | N54: 0 | O54: Wrigley | P54: Birch Hills County | Q54: Battle River No. 438 3 | S54: 200473 | T54: 243 | U54: 318 | V54: 850 | W54: 3782 | X54: 24582 | Y54: 1023 | Z54: .. | AA54: 0 | AB54: 63 | AC54: 637 | AD54: 449 | AF54: 187338 | AG54: 221 | AH54: 294 | AI54: 755 | AJ54: 3674 | AK54: 22744 | AL54: 1054 | AM54: 16 | AN54: 0 | AO54: 71 | AP54: 616 | AQ54: 444
A55: 43 | B55: Baie-Trinité | C55: 341 | D55: 347 | F55: Indian Brook 14 | G55: Centreville-Wareham-Trinity | H55: Malpeque Bay 3 | I55: Canterbury | J55: Baie-Trinité | K55: Big Grassy River 35G | L55: Dauphin 3 2 | M55: Barriere | N55: 0 | O55: Yellowknife | P55: Birchcliff | Q55: Battleford | S55: 1124 | T55: 581 | U55: 991 | V55: 419 | W55: 341 | X55: 88 | Y55: 4048 | Z55: 848 | AA55: 0 | AB55: 7975 | AC55: 229 | AD55: 1877 | AF55: 382 | AG55: 561 | AH55: 947 | AI55: 456 | AJ55: 347 | AK55: 76 | AL55: 4080 | AM55: 816 | AN55: 0 | AO55: 7758 | AP55: 98 | AQ55: 1816
A56: 44 | B56: Barkmere | C56: 230 | D56: 367 | F56: Inverness, Subd. A | G56: Chance Cove | H56: Miltonvale Park 3 | I56: Canterbury 2 | J56: Barkmere | K56: Big Island Mainland 93 | L56: Dauphin River 48A | M56: Basque 18 3 | N56: 0 | P56: Bittern Lake | Q56: Bayne No. 371 | S56: 3257 | T56: 129 | U56: 501 | V56: 142 | W56: 230 | X56: 3 | Y56: 79 | Z56: .. | AA56: 0 | AB56: 0 | AC56: 84 | AD56: 202 | AF56: 3255 | AG56: 150 | AH56: 496 | AI56: 152 | AJ56: 367 | AK56: 2 | AL56: 0 | AM56: 4 | AN56: 0 | AO56: 0 | AP56: 88 | AQ56: 206
A57: 45 | B57: Barnston-Ouest 3 | C57: 259 | D57: 290 | F57: Inverness, Subd. B | G57: Change Islands | H57: Miminegash | I57: Cap-Pelé | J57: Barnston-Ouest 3 | K57: Billings | L57: De Salaberry | M57: Becher Bay 1 | N57: 0 | O57: Nunavut | P57: Black Diamond 3 | Q57: Beardy's 97 and Okemasis 96 | S57: 2688 | T57: 204 | U57: 74 | V57: 1144 | W57: 259 | X57: 675 | Y57: 1295 | Z57: 88 | AA57: 0 | AB57: 11720 | AC57: 1233 | AD57: 315 | AF57: 2775 | AG57: 196 | AH57: 72 | AI57: 1078 | AJ57: 290 | AK57: 731 | AL57: 1231 | AM57: 54 | AN57: 0 | AO57: 11433 | AP57: 1110 | AQ57: 311
A58: 46 | B58: Barraute | C58: 1012 | D58: 953 | F58: Inverness, Subd. C 3 | G58: Channel-Port aux Basques | H58: Miminegash 3 | I58: Caraquet | J58: Barraute | K58: Black River-Matheson | L58: Deloraine-Winchester | M58: Belcarra | N58: 0 | O58: Arctic Bay | P58: Blackfalds 3 | Q58: Beardy's and Okemasis 96 & 97C 3 | S58: 1969 | T58: 1814 | U58: 527 | V58: 659 | W58: 1012 | X58: 1403 | Y58: 929 | Z58: 289 | AA58: 0 | AB58: 239 | AC58: 3952 | AD58: 3 | AF58: 1982 | AG58: 1954 | AH58: 558 | AI58: 668 | AJ58: 953 | AK58: 1149 | AL58: 946 | AM58: 292 | AN58: 0 | AO58: 227 | AP58: 3554 | AQ58: 6
A59: 47 | B59: Batiscan | C59: 545 | D59: 517 | F59: Kentville | G59: Chapel Arm | H59: Miscouche | I59: Caraquet 2 | J59: Batiscan | K59: Blandford-Blenheim | L59: Division No. 1, Unorganized | M59: Bella Bella 1 | N59: 0 | O59: Arviat | P59: Blood 148 | Q59: Beardy's and Okemasis 96 and 97A | S59: 3090 | T59: 241 | U59: 401 | V59: 2150 | W59: 545 | X59: 2857 | Y59: 3062 | Z59: 457 | AA59: 0 | AB59: 694 | AC59: 1421 | AD59: 1 | AF59: 2891 | AG59: 244 | AH59: 372 | AI59: 2075 | AJ59: 517 | AK59: 2817 | AL59: 3139 | AM59: 409 | AN59: 0 | AO59: 639 | AP59: 1436 | AQ59: 3
A60: 48 | B60: Beaconsfield | C60: 6915 | D60: 6828 | F60: Kings, Subd. A | G60: Charlottetown (Labrador) | H60: Miscouche 3 | I60: Cardwell | J60: Beaconsfield | K60: Blind River | L60: Division No. 17, Unorganized | M60: Bella Coola 1 | N60: 0 | O60: Baker Lake | P60: Blood 148A | Q60: Beardy's and Okemasis 96 and 97B | S60: 10711 | T60: 140 | U60: 411 | V60: 721 | W60: 6915 | X60: 2207 | Y60: 737 | Z60: 312 | AA60: 0 | AB60: 661 | AC60: 0 | AD60: 5 | AF60: 10635 | AG60: 128 | AH60: 389 | AI60: 709 | AJ60: 6828 | AK60: 2219 | AL60: 783 | AM60: 295 | AN60: 0 | AO60: 667 | AP60: 0 | AQ60: 5
A61: 49 | B61: Béarn 3 | C61: 386 | D61: 400 | F61: Kings, Subd. B | G61: Clarenville | H61: Montague 3 | I61: Carleton | J61: Béarn 3 | K61: Bluewater | L61: Division No. 18, Unorganized, East Part | M61: Betty Creek 18 | N61: 0 | O61: Bathurst Inlet | P61: Bon Accord 3 | Q61: Beatty | S61: 5704 | T61: 3123 | U61: 40 | V61: 413 | W61: 386 | X61: 4882 | Y61: 561 | Z61: 0 | AA61: 0 | AB61: 0 | AC61: 590 | AD61: 30 | AF61: 5567 | AG61: 2809 | AH61: 41 | AI61: 404 | AJ61: 400 | AK61: 4532 | AL61: 546 | AM61: 0 | AN61: 0 | AO61: 1 | AP61: 579 | AQ61: 25
A62: 50 | B62: Beauceville 5 | C62: 2875 | D62: 2841 | F62: Kings, Subd. C | G62: Clarke's Beach | H62: Morell 3 | I62: Centreville | J62: Beauceville 5 | K62: Bonfield 5 | L62: Division No. 18, Unorganized, West Part | M62: Binche 2 | N62: 0 | O62: Cambridge Bay | P62: Bondiss | Q62: Beauval | S62: 3952 | T62: 678 | U62: 830 | V62: 263 | W62: 2875 | X62: 1080 | Y62: 0 | Z62: 54 | AA62: 0 | AB62: 701 | AC62: 177 | AD62: 279 | AF62: 3817 | AG62: 642 | AH62: 819 | AI62: 278 | AJ62: 2841 | AK62: 1068 | AL62: 0 | AM62: 81 | AN62: 0 | AO62: 646 | AP62: 195 | AQ62: 293
A63: 51 | B63: Beauharnois | C63: 6451 | D63: 6072 | F63: Kings, Subd. D | G63: Coachman's Cove | H63: Morell | I63: Charlo | J63: Beauharnois | K63: Bonnechere Valley | L63: Division No. 19, Unorganized 3 | M63: Blind Creek 6 | N63: 0 | O63: Cape Dorset | P63: Bonnyville 4 | Q63: Beaver Flat | S63: 2591 | T63: 74 | U63: 131 | V63: 724 | W63: 6451 | X63: 2320 | Y63: 3554 | Z63: 10 | AA63: 0 | AB63: 416 | AC63: 2986 | AD63: 128 | AF63: 2529 | AG63: 70 | AH63: 137 | AI63: 719 | AJ63: 6072 | AK63: 2317 | AL63: 3358 | AM63: 10 | AN63: 0 | AO63: 415 | AP63: 2706 | AQ63: 127
A64: 52 | B64: Beaulac-Garthby | C64: 814 | D64: 839 | F64: Lockeport | G64: Colinet | H64: Morell 2 | I64: Chatham | J64: Beaulac-Garthby | K64: Bracebridge | L64: Division No. 20, Unorganized, North Part 4 | M64: Blueberry River 205 | N64: 0 | O64: Chesterfield Inlet | P64: Bonnyville Beach | Q64: Beaver River No. 622 | S64: 307 | T64: 81 | U64: 9 | V64: 269 | W64: 814 | X64: 9053 | Y64: 43 | Z64: 69 | AA64: 0 | AB64: 131 | AC64: 66 | AD64: 894 | AF64: 320 | AG64: 73 | AH64: 9 | AI64: 262 | AJ64: 839 | AK64: 8874 | AL64: 47 | AM64: 71 | AN64: 0 | AO64: 129 | AP64: 70 | AQ64: 841
A65: 53 | B65: Beaumont | C65: 1171 | D65: 1328 | F65: Lunenburg 1 | G65: Colliers | H65: Mount Stewart | I65: Chipman | J65: Beaumont | K65: Bradford West Gwillimbury | L65: Division No. 20, Unorganized, South Part | M65: Bonaparte 3 | N65: 0 | O65: Clyde River | P65: Bonnyville No. 87 4 | Q65: Beechy | S65: 14233 | T65: 414 | U65: 118 | V65: 504 | W65: 1171 | X65: 13907 | Y65: 250 | Z65: 56 | AA65: 0 | AB65: 278 | AC65: 5487 | AD65: 112 | AF65: 14038 | AG65: 424 | AH65: 114 | AI65: 541 | AJ65: 1328 | AK65: 11918 | AL65: 262 | AM65: 50 | AN65: 0 | AO65: 288 | AP65: 5400 | AQ65: 147
A66: 54 | B66: Beaupré | C66: 2812 | D66: 2468 | F66: Lunenburg 2 | G66: Come By Chance | H66: Murray Harbour | I66: Chipman 2 | J66: Beaupré | K66: Brampton | L66: Division No. 21, Unorganized 3 | M66: Boothroyd 13 | N66: 0 | O66: Coral Harbour | P66: Bow Island | Q66: Belle Plaine | S66: 1242 | T66: 108 | U66: 186 | V66: 647 | W66: 2812 | X66: 189086 | Y66: 1239 | Z66: 0 | AA66: 0 | AB66: 303 | AC66: 724 | AD66: 37 | AF66: 1206 | AG66: 125 | AH66: 177 | AI66: 638 | AJ66: 2468 | AK66: 173428 | AL66: 1056 | AM66: 0 | AN66: 0 | AO66: 262 | AP66: 682 | AQ66: 43
A67: 55 | B67: Bécancour | C67: 6348 | D67: 6031 | F67: Mahone Bay | G67: Comfort Cove-Newstead | H67: Murray Harbour 3 | I67: Clarendon | J67: Bécancour | K67: Brant 4 | L67: Division No. 22, Unorganized 3 | M67: Boothroyd 8A | N67: 0 | O67: Gjoa Haven | P67: Bowden | Q67: Bengough | S67: 599 | T67: 247 | U67: 364 | V67: 64 | W67: 6348 | X67: 14778 | Y67: 1139 | Z67: 0 | AA67: 0 | AB67: 339 | AC67: 622 | AD67: 207 | AF67: 571 | AG67: 248 | AH67: 357 | AI67: 90 | AJ67: 6031 | AK67: 13288 | AL67: 1143 | AM67: 0 | AN67: 0 | AO67: 311 | AP67: 581 | AQ67: 250
A68: 56 | B68: Bedford | C68: 1324 | D68: 1281 | F68: Malagawatch 4 3 | G68: Conception Bay South | H68: Murray River | I68: Cocagne | J68: Bedford | K68: Brantford 4 | L68: Division No. 23, Unorganized 3 | M68: Boston Bar 1A | N68: 0 | O68: Grise Fiord | P68: Boyer 164 | Q68: Bengough No. 40 | S68: 22 | T68: 11364 | U68: 182 | V68: 1430 | W68: 1324 | X68: 43269 | Y68: 101 | Z68: 0 | AA68: 0 | AB68: 64 | AC68: 55 | AD68: 133 | AF68: 40 | AG68: 10553 | AH68: 182 | AI68: 1418 | AJ68: 1281 | AK68: 41131 | AL68: 71 | AM68: 0 | AN68: 0 | AO68: 62 | AP68: 67 | AQ68: 136
A69: 57 | B69: Bedford 2 | C69: 282 | D69: 286 | F69: Medway River 11 3 | G69: Conception Harbour | H69: Murray River, Part 1 3 | I69: Colborne | J69: Bedford 2 | K69: Brethour 5 | L69: Dog Creek 46 | M69: Bowen Island | N69: 0 | O69: Hall Beach | P69: Boyle | Q69: Benson No. 35 | S69: 7 | T69: 330 | U69: 700 | V69: 162 | W69: 282 | X69: 48 | Y69: 256 | Z69: 2036 | AA69: 0 | AB69: 205 | AC69: 433 | AD69: 212 | AF69: 3 | AG69: 392 | AH69: 668 | AI69: 144 | AJ69: 286 | AK69: 54 | AL69: 235 | AM69: 1915 | AN69: 0 | AO69: 189 | AP69: 464 | AQ69: 196
A70: 58 | B70: Bégin | C70: 491 | D70: 477 | F70: Membertou 28B | G70: Conche | H70: Murray River, Part 2 3 | I70: Coverdale | J70: Bégin | K70: Brighton | L70: Dufferin | M70: Bridge River 1 | N70: 0 | O70: Igloolik 3 | P70: Brazeau County | Q70: Bethune | S70: 411 | T70: 120 | U70: 63 | V70: 1919 | W70: 491 | X70: 5392 | Y70: 806 | Z70: 95 | AA70: 0 | AB70: 468 | AC70: 3167 | AD70: 189 | AF70: 349 | AG70: 125 | AH70: 71 | AI70: 1806 | AJ70: 477 | AK70: 5099 | AL70: 794 | AM70: 91 | AN70: 0 | AO70: 440 | AP70: 3194 | AQ70: 181
A71: 59 | B71: Belcourt | C71: 120 | D71: 116 | F71: Merigomish Harbour 31 | G71: Cook's Harbour | H71: New Glasgow 3 | I71: Dalhousie | J71: Belcourt | K71: Brock | L71: Dunnottar | M71: Bucktum 4 | N71: 0 | O71: Iqaluit | P71: Breton | Q71: Bienfait | S71: 0 | T71: 92 | U71: 2107 | V71: 551 | W71: 120 | X71: 5297 | Y71: 1206 | Z71: 2 | AA71: 0 | AB71: 3297 | AC71: 296 | AD71: 355 | AF71: 0 | AG71: 87 | AH71: 1986 | AI71: 531 | AJ71: 116 | AK71: 5035 | AL71: 1154 | AM71: 1 | AN71: 0 | AO71: 3419 | AP71: 292 | AQ71: 370
A72: 60 | B72: Belle-Rivière 3 | C72: 18 | D72: 0 | F72: Middleton | G72: Cormack | H72: New London 3 | I72: Dalhousie 2 | J72: Belle-Rivière 3 | K72: Brockton | L72: East St. Paul | M72: Bulkley River 19 | N72: 0 | O72: Kimmirut | P72: Brooks | Q72: Big Arm No. 251 | S72: 977 | T72: 230 | U72: 1134 | V72: 1678 | W72: 18 | X72: 4406 | Y72: 3504 | Z72: 60 | AA72: 0 | AB72: 150 | AC72: 5489 | AD72: 118 | AF72: 995 | AG72: 288 | AH72: 1048 | AI72: 1696 | AJ72: 0 | AK72: 4252 | AL72: 3304 | AM72: 44 | AN72: 0 | AO72: 139 | AP72: 5412 | AQ72: 126
A73: 61 | B73: Belleterre | C73: 181 | D73: 199 | F73: Millbrook 27 | G73: Corner Brook | H73: North River 3 | I73: Denmark | J73: Belleterre | K73: Brockville 4 | L73: Ebb and Flow 52 | M73: Bulkley-Nechako A | N73: 0 | O73: Kitikmeot, Unorganized | P73: Bruderheim 3 | Q73: Big Island Lake Cree Territory | S73: 364 | T73: 9552 | U73: 66 | V73: 677 | W73: 181 | X73: 11088 | Y73: 446 | Z73: 2269 | AA73: 0 | AB73: 0 | AC73: 552 | AD73: 179 | AF73: 309 | AG73: 9395 | AH73: 65 | AI73: 733 | AJ73: 199 | AK73: 10826 | AL73: 391 | AM73: 2213 | AN73: 0 | AO73: 0 | AP73: 629 | AQ73: 165
A74: 62 | B74: Beloeil | C74: 10338 | D74: 9273 | F74: Mulgrave | G74: Cottlesville | H74: North Rustico 3 | I74: Derby | J74: Beloeil | K74: Brooke-Alvinston | L74: Ellice-Archie | M74: Bulkley-Nechako B 5 | N74: 0 | O74: Kivalliq, Unorganized | P74: Burnstick Lake 4 | Q74: Big Quill No. 308 3 | S74: 316 | T74: 145 | U74: 200 | V74: 450 | W74: 10338 | X74: 983 | Y74: 392 | Z74: 797 | AA74: 0 | AB74: 4 | AC74: 54 | AD74: 246 | AF74: 327 | AG74: 148 | AH74: 162 | AI74: 466 | AJ74: 9273 | AK74: 994 | AL74: 413 | AM74: 880 | AN74: 0 | AO74: 0 | AP74: 57 | AQ74: 273
